Workbook

Sheet Uppgifter
B2: Flexarbetstid
B4: År | C4: 2026
B6: Namn
B8: Lunch | C8: 00:30:00
B9: (normalt)
B11: ="Flexsaldo från " & C4-1 -> Flexsaldo från 2025
B12: Positivt
B13: Negativt
B16: Kopiera årsarbetsschema och lunchtid till flexrapport
B20: 1. Fyll i namn, normal lunchtid (minst 30 min.) och flexsaldo.
B21: 2. Fyll i "Årsarbetsschema".
C22: Kom ihåg att ange arbetstid/dag.
C23: Skriv personnummer och arbetsställe längst upp.
B24: 3. Klicka på knappen "Kopiera" ovan.
B25: 4. Fyll inte i: Övertid
C26: Restid vid tjänsteresa

Sheet Instruktioner
B1: =PROPER(TEXT(B4,"MMMM ÅÅÅÅ")) -> Januari 2026 | F1: =IF(Uppgifter!$C$6="","",Uppgifter!$C$6) -> 
N2: Dagsumma | O2: Dagbalans | P2: Vdag
B3: Datum | C3: Kod | D3: In | E3: Ut | F3: Lunch | G3: Planerat | H3: Ledighet | I3: Arbetstid | K3: Flextid | L3: Anteckningar | O3: =IF(Uppgifter!D18<>"",Uppgifter!D18,Uppgifter!D19*-1) -> 0 | Q3: F
B4: =DATEVALUE(Uppgifter!$C$4 & "-01-01") -> 2026-01-01 | I4: =IF(N4<0,-N4,N4) -> 0 | J4: =IF(O4>=0,"+","-") -> + | K4: =IF(O4<0,-O4,O4) -> 0 | N4: =IF(E4>0,E4-D4-F4-H4,IF(C4="",0,IF(C4="F",0,Årsarbetsschema!$D$39))) -> 0 | O4: =IF(N4>0,I4-G4,IF(C4="F",I4-G4,0)) -> 0 | P4: -1 | Q4: Se
B5: =B4+1 -> 2026-01-02 | D5: 08:00:00 | E5: 16:30:00 | F5: 00:30:00 | G5: 08:00:00 | I5: =IF(N5<0,-N5,N5) -> 0.3333333333 | J5: + | K5: 5.551115123e-17 | N5: =IF(E5>0,E5-D5-F5-H5,IF(C5="",0,IF(C5="F",0,Årsarbetsschema!$D$39))) -> 0.3333333333 | O5: =IF(N5>0,I5-G5,IF(C5="F",I5-G5,0)) -> 5.551115123e-17 | P5: 3 | Q5: Sj
B6: =B5+1 -> 2026-01-03 | D6: 08:00:00 | E6: 16:30:00 | F6: 00:30:00 | G6: 08:00:00 | I6: 0.3333333333 | J6: + | K6: 5.551115123e-17 | N6: =IF(E6>0,E6-D6-F6-H6,IF(C6="",0,IF(C6="F",0,Årsarbetsschema!$D$39))) -> 0.3333333333 | O6: 5.551115123e-17 | P6: =WEEKDAY(B6,2) -> 6 | Q6: Tj
B7: 2026-01-04 | I7: 0 | J7: + | K7: 0 | N7: =IF(E7>0,E7-D7-F7-H7,IF(C7="",0,IF(C7="F",0,Årsarbetsschema!$D$39))) -> 0 | O7: 0 | P7: 7 | Q7: VB
B8: 2026-01-05 | D8: 08:00:00 | I8: 0 | J8: + | K8: 0 | N8: =IF(E8>0,E8-D8-F8-H8,IF(C8="",0,IF(C8="F",0,Årsarbetsschema!$D$39))) -> 0 | O8: 0 | P8: 1
B9: 2026-01-06 | I9: 0 | J9: + | K9: 0 | N9: =IF(E9>0,E9-D9-F9-H9,IF(C9="",0,IF(C9="F",0,Årsarbetsschema!$D$39))) -> 0 | O9: 0 | P9: -1
B10: 2026-01-07 | D10: 08:00:00 | E10: 16:30:00 | F10: 00:30:00 | G10: 08:00:00 | I10: 0.3333333333 | J10: + | K10: 5.551115123e-17 | N10: =IF(E10>0,E10-D10-F10-H10,IF(C10="",0,IF(C10="F",0,Årsarbetsschema!$D$39))) -> 0.3333333333 | O10: 5.551115123e-17 | P10: 3
B11: 2026-01-08 | D11: 08:00:00 | E11: 16:30:00 | F11: 00:30:00 | G11: 08:00:00 | I11: 0.3333333333 | J11: + | K11: 5.551115123e-17 | N11: =IF(E11>0,E11-D11-F11-H11,IF(C11="",0,IF(C11="F",0,Årsarbetsschema!$D$39))) -> 0.3333333333 | O11: 5.551115123e-17 | P11: 4
B12: 2026-01-09 | D12: 08:00:00 | E12: 16:30:00 | F12: 00:30:00 | G12: 08:00:00 | I12: 0.3333333333 | J12: + | K12: 5.551115123e-17 | N12: =IF(E12>0,E12-D12-F12-H12,IF(C12="",0,IF(C12="F",0,Årsarbetsschema!$D$39))) -> 0.3333333333 | O12: 5.551115123e-17 | P12: 5
B13: 2026-01-10 | I13: 0 | J13: + | K13: 0 | N13: =IF(E13>0,E13-D13-F13-H13,IF(C13="",0,IF(C13="F",0,Årsarbetsschema!$D$39))) -> 0 | O13: 0 | P13: 6
B14: 2026-01-11 | I14: 0 | J14: + | K14: 0 | N14: =IF(E14>0,E14-D14-F14-H14,IF(C14="",0,IF(C14="F",0,Årsarbetsschema!$D$39))) -> 0 | O14: 0 | P14: 7
B15: 2026-01-12 | C15: Se | F15: 00:30:00 | G15: 08:00:00 | I15: 0.3333333333 | J15: + | K15: 0 | N15: =IF(E15>0,E15-D15-F15-H15,IF(C15="",0,IF(C15="F",0,Årsarbetsschema!$D$39))) -> 0.3333333333 | O15: 0 | P15: 1
B16: 2026-01-13 | D16: 08:00:00 | E16: 16:30:00 | F16: 00:30:00 | G16: 08:00:00 | H16: 01:00:00 | I16: 0.2916666667 | J16: - | K16: 0.04166666667 | L16: Tandläkarbesök | N16: =IF(E16>0,E16-D16-F16-H16,IF(C16="",0,IF(C16="F",0,Årsarbetsschema!$D$39))) -> 0.2916666667 | O16: -0.04166666667 | P16: 2
B17: 2026-01-14 | D17: 08:00:00 | E17: 16:30:00 | F17: 00:30:00 | G17: 08:00:00 | I17: 0.3333333333 | J17: + | K17: 5.551115123e-17 | N17: =IF(E17>0,E17-D17-F17-H17,IF(C17="",0,IF(C17="F",0,Årsarbetsschema!$D$39))) -> 0.3333333333 | O17: 5.551115123e-17 | P17: 3
B18: 2026-01-15 | D18: 08:00:00 | E18: 16:30:00 | F18: 00:30:00 | G18: 08:00:00 | I18: 0.3333333333 | J18: + | K18: 5.551115123e-17 | N18: =IF(E18>0,E18-D18-F18-H18,IF(C18="",0,IF(C18="F",0,Årsarbetsschema!$D$39))) -> 0.3333333333 | O18: 5.551115123e-17 | P18: 4
B19: 2026-01-16 | D19: 08:00:00 | E19: 16:30:00 | F19: 00:30:00 | G19: 08:00:00 | I19: 0.3333333333 | J19: + | K19: 5.551115123e-17 | N19: =IF(E19>0,E19-D19-F19-H19,IF(C19="",0,IF(C19="F",0,Årsarbetsschema!$D$39))) -> 0.3333333333 | O19: 5.551115123e-17 | P19: 5
B20: 2026-01-17 | I20: 0 | J20: + | K20: 0 | N20: =IF(E20>0,E20-D20-F20-H20,IF(C20="",0,IF(C20="F",0,Årsarbetsschema!$D$39))) -> 0 | O20: 0 | P20: 6
B21: 2026-01-18 | I21: 0 | J21: + | K21: 0 | N21: =IF(E21>0,E21-D21-F21-H21,IF(C21="",0,IF(C21="F",0,Årsarbetsschema!$D$39))) -> 0 | O21: 0 | P21: 7
B22: 2026-01-19 | D22: 08:00:00 | E22: 16:30:00 | F22: 00:30:00 | G22: 08:00:00 | I22: 0.3333333333 | J22: + | K22: 5.551115123e-17 | N22: =IF(E22>0,E22-D22-F22-H22,IF(C22="",0,IF(C22="F",0,Årsarbetsschema!$D$39))) -> 0.3333333333 | O22: 5.551115123e-17 | P22: 1
B23: 2026-01-20 | D23: 08:00:00 | E23: 16:30:00 | F23: 00:30:00 | G23: 08:00:00 | I23: 0.3333333333 | J23: + | K23: 5.551115123e-17 | N23: =IF(E23>0,E23-D23-F23-H23,IF(C23="",0,IF(C23="F",0,Årsarbetsschema!$D$39))) -> 0.3333333333 | O23: 5.551115123e-17 | P23: 2
B24: 2026-01-21 | D24: 08:00:00 | E24: 16:45:00 | F24: 00:30:00 | G24: 08:00:00 | I24: 0.34375 | J24: + | K24: 0.01041666667 | N24: =IF(E24>0,E24-D24-F24-H24,IF(C24="",0,IF(C24="F",0,Årsarbetsschema!$D$39))) -> 0.34375 | O24: 0.01041666667 | P24: 3
B25: 2026-01-22 | D25: 08:00:00 | E25: 16:30:00 | F25: 00:45:00 | G25: 08:00:00 | I25: 0.3229166667 | J25: - | K25: 0.01041666667 | N25: =IF(E25>0,E25-D25-F25-H25,IF(C25="",0,IF(C25="F",0,Årsarbetsschema!$D$39))) -> 0.3229166667 | O25: -0.01041666667 | P25: 4
B26: 2026-01-23 | C26: Sj | F26: 00:30:00 | G26: 08:00:00 | I26: 0.3333333333 | J26: + | K26: 0 | N26: =IF(E26>0,E26-D26-F26-H26,IF(C26="",0,IF(C26="F",0,Årsarbetsschema!$D$39))) -> 0.3333333333 | O26: 0 | P26: 5
B27: 2026-01-24 | I27: 0 | J27: + | K27: 0 | N27: =IF(E27>0,E27-D27-F27-H27,IF(C27="",0,IF(C27="F",0,Årsarbetsschema!$D$39))) -> 0 | O27: 0 | P27: 6
B28: 2026-01-25 | I28: 0 | J28: + | K28: 0 | N28: =IF(E28>0,E28-D28-F28-H28,IF(C28="",0,IF(C28="F",0,Årsarbetsschema!$D$39))) -> 0 | O28: 0 | P28: 7
B29: 2026-01-26 | D29: 08:00:00 | E29: 16:30:00 | F29: 00:30:00 | G29: 08:00:00 | I29: 0.3333333333 | J29: + | K29: 5.551115123e-17 | N29: =IF(E29>0,E29-D29-F29-H29,IF(C29="",0,IF(C29="F",0,Årsarbetsschema!$D$39))) -> 0.3333333333 | O29: 5.551115123e-17 | P29: 1
B30: 2026-01-27 | D30: 08:00:00 | E30: 16:30:00 | F30: 00:30:00 | G30: 08:00:00 | I30: 0.3333333333 | J30: + | K30: 5.551115123e-17 | N30: =IF(E30>0,E30-D30-F30-H30,IF(C30="",0,IF(C30="F",0,Årsarbetsschema!$D$39))) -> 0.3333333333 | O30: 5.551115123e-17 | P30: 2
B31: 2026-01-28 | D31: 08:00:00 | E31: 16:30:00 | F31: 00:30:00 | G31: 08:00:00 | I31: 0.3333333333 | J31: + | K31: 5.551115123e-17 | N31: =IF(E31>0,E31-D31-F31-H31,IF(C31="",0,IF(C31="F",0,Årsarbetsschema!$D$39))) -> 0.3333333333 | O31: 5.551115123e-17 | P31: 3
B32: 2026-01-29 | D32: 08:00:00 | E32: 16:30:00 | F32: 00:30:00 | G32: 08:00:00 | I32: 0.3333333333 | J32: + | K32: 5.551115123e-17 | N32: =IF(E32>0,E32-D32-F32-H32,IF(C32="",0,IF(C32="F",0,Årsarbetsschema!$D$39))) -> 0.3333333333 | O32: 5.551115123e-17 | P32: 4
B33: 2026-01-30 | D33: 08:00:00 | E33: 16:30:00 | F33: 00:30:00 | G33: 08:00:00 | I33: 0.3333333333 | J33: + | K33: 5.551115123e-17 | N33: =IF(E33>0,E33-D33-F33-H33,IF(C33="",0,IF(C33="F",0,Årsarbetsschema!$D$39))) -> 0.3333333333 | O33: 5.551115123e-17 | P33: 5
B34: 2026-01-31 | I34: 0 | J34: + | K34: 0 | N34: =IF(E34>0,E34-D34-F34-H34,IF(C34="",0,IF(C34="F",0,Årsarbetsschema!$D$39))) -> 0 | O34: 0 | P34: 6
H35: Månad | I35: =IF(N35<0,-N35,N35) -> 6.625 | J35: =IF(O35>=0,"+","-") -> - | K35: =IF(O35<0,-O35,O35) -> 0.04166666667 | N35: =SUM(N4:N34) -> 6.625 | O35: =SUM(O4:O34) -> -0.04166666667
H36: Totalt | I36: 6.625 | J36: =IF(O36>=0,"+","-") -> - | K36: =IF(O36<0,-O36,O36) -> 0.04166666667 | N36: =N35 -> 6.625 | O36: =O35+O3 -> -0.04166666667
J37: = | K37: =O36*24 -> -1

Sheet Årsarbetsschema
B1: ="Årsarbetstidsschema " & Uppgifter!C4 & " för " & IF(Uppgifter!C6<>"",Uppgifter!C6,"") -> Årsarbetstidsschema 2026 för
K2: Personnummer | M2: Arbetsställe | Q2: =Uppgifter!C4 -> 2026
B4: Datum | C4: Januari | D4: Februari | E4: Mars | F4: April | G4: Maj | H4: Juni | I4: Juli | J4: Augusti | K4: September | L4: Oktober | M4: November | N4: December | Q4: 1 | R4: 2 | S4: 3 | T4: 4 | U4: 5 | V4: 6 | W4: 7 | X4: 8 | Y4: 9 | Z4: 10 | AA4: 11 | AB4: 12
B5: 1 | F5: 08:00:00 | H5: 08:00:00 | I5: 08:00:00 | K5: 08:00:00 | L5: 08:00:00 | N5: 08:00:00 | Q5: -1 | R5: 7 | S5: 7 | T5: 3 | U5: -1 | V5: 1 | W5: 3 | X5: 6 | Y5: 2 | Z5: 4 | AA5: 7 | AB5: 2
B6: 2 | C6: 08:00:00 | D6: 08:00:00 | E6: 08:00:00 | F6: 08:00:00 | H6: 08:00:00 | I6: 08:00:00 | K6: 08:00:00 | L6: 08:00:00 | M6: 08:00:00 | N6: 08:00:00 | Q6: 5 | R6: 1 | S6: 1 | T6: 4 | U6: 6 | V6: 2 | W6: 4 | X6: 7 | Y6: 3 | Z6: 5 | AA6: 1 | AB6: 3
B7: 3 | D7: 08:00:00 | E7: 08:00:00 | H7: 08:00:00 | I7: 08:00:00 | J7: 08:00:00 | K7: 08:00:00 | M7: 08:00:00 | N7: 08:00:00 | Q7: 6 | R7: 2 | S7: 2 | T7: -1 | U7: 7 | V7: 3 | W7: 5 | X7: 1 | Y7: 4 | Z7: 6 | AA7: 2 | AB7: 4
B8: 4 | D8: 08:00:00 | E8: 08:00:00 | G8: 08:00:00 | H8: 08:00:00 | J8: 08:00:00 | K8: 08:00:00 | M8: 08:00:00 | N8: 08:00:00 | Q8: 7 | R8: 3 | S8: 3 | T8: 6 | U8: 1 | V8: 4 | W8: 6 | X8: 2 | Y8: 5 | Z8: 7 | AA8: 3 | AB8: 5
B9: 5 | C9: 08:00:00 | D9: 08:00:00 | E9: 08:00:00 | G9: 08:00:00 | H9: 08:00:00 | J9: 08:00:00 | L9: 08:00:00 | M9: 08:00:00 | Q9: 1 | R9: 4 | S9: 4 | T9: 7 | U9: 2 | V9: 5 | W9: 7 | X9: 3 | Y9: 6 | Z9: 1 | AA9: 4 | AB9: 6
B10: 6 | D10: 08:00:00 | E10: 08:00:00 | G10: 08:00:00 | I10: 08:00:00 | J10: 08:00:00 | L10: 08:00:00 | M10: 08:00:00 | Q10: -1 | R10: 5 | S10: 5 | T10: -1 | U10: 3 | V10: 6 | W10: 1 | X10: 4 | Y10: 7 | Z10: 2 | AA10: 5 | AB10: 7
B11: 7 | C11: 08:00:00 | F11: 08:00:00 | G11: 08:00:00 | I11: 08:00:00 | J11: 08:00:00 | K11: 08:00:00 | L11: 08:00:00 | N11: 08:00:00 | Q11: 3 | R11: 6 | S11: 6 | T11: 2 | U11: 4 | V11: 7 | W11: 2 | X11: 5 | Y11: 1 | Z11: 3 | AA11: 6 | AB11: 1
B12: 8 | C12: 08:00:00 | F12: 08:00:00 | G12: 08:00:00 | H12: 08:00:00 | I12: 08:00:00 | K12: 08:00:00 | L12: 08:00:00 | N12: 08:00:00 | Q12: 4 | R12: 7 | S12: 7 | T12: 3 | U12: 5 | V12: 1 | W12: 3 | X12: 6 | Y12: 2 | Z12: 4 | AA12: 7 | AB12: 2
B13: 9 | C13: 08:00:00 | D13: 08:00:00 | E13: 08:00:00 | F13: 08:00:00 | H13: 08:00:00 | I13: 08:00:00 | K13: 08:00:00 | L13: 08:00:00 | M13: 08:00:00 | N13: 08:00:00 | Q13: 5 | R13: 1 | S13: 1 | T13: 4 | U13: 6 | V13: 2 | W13: 4 | X13: 7 | Y13: 3 | Z13: 5 | AA13: 1 | AB13: 3
B14: 10 | D14: 08:00:00 | E14: 08:00:00 | F14: 08:00:00 | H14: 08:00:00 | I14: 08:00:00 | J14: 08:00:00 | K14: 08:00:00 | M14: 08:00:00 | N14: 08:00:00 | Q14: 6 | R14: 2 | S14: 2 | T14: 5 | U14: 7 | V14: 3 | W14: 5 | X14: 1 | Y14: 4 | Z14: 6 | AA14: 2 | AB14: 4
B15: 11 | D15: 08:00:00 | E15: 08:00:00 | G15: 08:00:00 | H15: 08:00:00 | J15: 08:00:00 | K15: 08:00:00 | M15: 08:00:00 | N15: 08:00:00 | Q15: 7 | R15: 3 | S15: 3 | T15: 6 | U15: 1 | V15: 4 | W15: 6 | X15: 2 | Y15: 5 | Z15: 7 | AA15: 3 | AB15: 5
B16: 12 | C16: 08:00:00 | D16: 08:00:00 | E16: 08:00:00 | G16: 08:00:00 | H16: 08:00:00 | J16: 08:00:00 | L16: 08:00:00 | M16: 08:00:00 | Q16: 1 | R16: 4 | S16: 4 | T16: 7 | U16: 2 | V16: 5 | W16: 7 | X16: 3 | Y16: 6 | Z16: 1 | AA16: 4 | AB16: 6
B17: 13 | C17: 08:00:00 | D17: 08:00:00 | E17: 08:00:00 | F17: 08:00:00 | G17: 08:00:00 | I17: 08:00:00 | J17: 08:00:00 | L17: 08:00:00 | M17: 08:00:00 | Q17: 2 | R17: 5 | S17: 5 | T17: 1 | U17: 3 | V17: 6 | W17: 1 | X17: 4 | Y17: 7 | Z17: 2 | AA17: 5 | AB17: 7
B18: 14 | C18: 08:00:00 | F18: 08:00:00 | I18: 08:00:00 | J18: 08:00:00 | K18: 08:00:00 | L18: 08:00:00 | N18: 08:00:00 | Q18: 3 | R18: 6 | S18: 6 | T18: 2 | U18: -1 | V18: 7 | W18: 2 | X18: 5 | Y18: 1 | Z18: 3 | AA18: 6 | AB18: 1
B19: 15 | C19: 08:00:00 | F19: 08:00:00 | G19: 08:00:00 | H19: 08:00:00 | I19: 08:00:00 | K19: 08:00:00 | L19: 08:00:00 | N19: 08:00:00 | Q19: 4 | R19: 7 | S19: 7 | T19: 3 | U19: 5 | V19: 1 | W19: 3 | X19: 6 | Y19: 2 | Z19: 4 | AA19: 7 | AB19: 2
B20: 16 | C20: 08:00:00 | D20: 08:00:00 | E20: 08:00:00 | F20: 08:00:00 | H20: 08:00:00 | I20: 08:00:00 | K20: 08:00:00 | L20: 08:00:00 | M20: 08:00:00 | N20: 08:00:00 | Q20: 5 | R20: 1 | S20: 1 | T20: 4 | U20: 6 | V20: 2 | W20: 4 | X20: 7 | Y20: 3 | Z20: 5 | AA20: 1 | AB20: 3
B21: 17 | D21: 08:00:00 | E21: 08:00:00 | F21: 08:00:00 | H21: 08:00:00 | I21: 08:00:00 | J21: 08:00:00 | K21: 08:00:00 | M21: 08:00:00 | N21: 08:00:00 | Q21: 6 | R21: 2 | S21: 2 | T21: 5 | U21: 7 | V21: 3 | W21: 5 | X21: 1 | Y21: 4 | Z21: 6 | AA21: 2 | AB21: 4
B22: 18 | D22: 08:00:00 | E22: 08:00:00 | G22: 08:00:00 | H22: 08:00:00 | J22: 08:00:00 | K22: 08:00:00 | M22: 08:00:00 | N22: 08:00:00 | Q22: 7 | R22: 3 | S22: 3 | T22: 6 | U22: 1 | V22: 4 | W22: 6 | X22: 2 | Y22: 5 | Z22: 7 | AA22: 3 | AB22: 5
B23: 19 | C23: 08:00:00 | D23: 08:00:00 | E23: 08:00:00 | G23: 08:00:00 | J23: 08:00:00 | L23: 08:00:00 | M23: 08:00:00 | Q23: 1 | R23: 4 | S23: 4 | T23: 7 | U23: 2 | V23: -1 | W23: 7 | X23: 3 | Y23: 6 | Z23: 1 | AA23: 4 | AB23: 6
B24: 20 | C24: 08:00:00 | D24: 08:00:00 | E24: 08:00:00 | F24: 08:00:00 | G24: 08:00:00 | I24: 08:00:00 | J24: 08:00:00 | L24: 08:00:00 | M24: 08:00:00 | Q24: 2 | R24: 5 | S24: 5 | T24: 1 | U24: 3 | V24: 6 | W24: 1 | X24: 4 | Y24: 7 | Z24: 2 | AA24: 5 | AB24: 7
B25: 21 | C25: 08:00:00 | F25: 08:00:00 | G25: 08:00:00 | I25: 08:00:00 | J25: 08:00:00 | K25: 08:00:00 | L25: 08:00:00 | N25: 08:00:00 | Q25: 3 | R25: 6 | S25: 6 | T25: 2 | U25: 4 | V25: 7 | W25: 2 | X25: 5 | Y25: 1 | Z25: 3 | AA25: 6 | AB25: 1
B26: 22 | C26: 08:00:00 | F26: 08:00:00 | G26: 08:00:00 | H26: 08:00:00 | I26: 08:00:00 | K26: 08:00:00 | L26: 08:00:00 | N26: 08:00:00 | Q26: 4 | R26: 7 | S26: 7 | T26: 3 | U26: 5 | V26: 1 | W26: 3 | X26: 6 | Y26: 2 | Z26: 4 | AA26: 7 | AB26: 2
B27: 23 | C27: 08:00:00 | D27: 08:00:00 | E27: 08:00:00 | F27: 08:00:00 | H27: 08:00:00 | I27: 08:00:00 | K27: 08:00:00 | L27: 08:00:00 | M27: 08:00:00 | N27: 08:00:00 | Q27: 5 | R27: 1 | S27: 1 | T27: 4 | U27: 6 | V27: 2 | W27: 4 | X27: 7 | Y27: 3 | Z27: 5 | AA27: 1 | AB27: 3
B28: 24 | D28: 08:00:00 | E28: 08:00:00 | F28: 08:00:00 | H28: 08:00:00 | I28: 08:00:00 | J28: 08:00:00 | K28: 08:00:00 | M28: 08:00:00 | Q28: 6 | R28: 2 | S28: 2 | T28: 5 | U28: 7 | V28: 3 | W28: 5 | X28: 1 | Y28: 4 | Z28: 6 | AA28: 2 | AB28: -1
B29: 25 | D29: 08:00:00 | E29: 08:00:00 | G29: 08:00:00 | H29: 08:00:00 | J29: 08:00:00 | K29: 08:00:00 | M29: 08:00:00 | Q29: 7 | R29: 3 | S29: 3 | T29: 6 | U29: 1 | V29: 4 | W29: 6 | X29: 2 | Y29: 5 | Z29: 7 | AA29: 3 | AB29: -1
B30: 26 | C30: 08:00:00 | D30: 08:00:00 | E30: 08:00:00 | G30: 08:00:00 | H30: 08:00:00 | J30: 08:00:00 | L30: 08:00:00 | M30: 08:00:00 | Q30: 1 | R30: 4 | S30: 4 | T30: 7 | U30: 2 | V30: 5 | W30: 7 | X30: 3 | Y30: 6 | Z30: 1 | AA30: 4 | AB30: 6
B31: 27 | C31: 08:00:00 | D31: 08:00:00 | E31: 08:00:00 | F31: 08:00:00 | G31: 08:00:00 | I31: 08:00:00 | J31: 08:00:00 | L31: 08:00:00 | M31: 08:00:00 | Q31: 2 | R31: 5 | S31: 5 | T31: 1 | U31: 3 | V31: 6 | W31: 1 | X31: 4 | Y31: 7 | Z31: 2 | AA31: 5 | AB31: 7
B32: 28 | C32: 08:00:00 | F32: 08:00:00 | G32: 08:00:00 | I32: 08:00:00 | J32: 08:00:00 | K32: 08:00:00 | L32: 08:00:00 | N32: 08:00:00 | Q32: 3 | R32: 6 | S32: 6 | T32: 2 | U32: 4 | V32: 7 | W32: 2 | X32: 5 | Y32: 1 | Z32: 3 | AA32: 6 | AB32: 1
B33: 29 | C33: 08:00:00 | F33: 08:00:00 | G33: 08:00:00 | H33: 08:00:00 | I33: 08:00:00 | K33: 08:00:00 | L33: 08:00:00 | N33: 08:00:00 | Q33: 4 | S33: 7 | T33: 3 | U33: 5 | V33: 1 | W33: 3 | X33: 6 | Y33: 2 | Z33: 4 | AA33: 7 | AB33: 2
B34: 30 | C34: 08:00:00 | E34: 08:00:00 | F34: 08:00:00 | H34: 08:00:00 | I34: 08:00:00 | K34: 08:00:00 | L34: 08:00:00 | M34: 08:00:00 | N34: 08:00:00 | Q34: 5 | S34: 1 | T34: 4 | U34: 6 | V34: 2 | W34: 4 | X34: 7 | Y34: 3 | Z34: 5 | AA34: 1 | AB34: 3
B35: 31 | E35: 08:00:00 | I35: 08:00:00 | J35: 08:00:00 | Q35: 6 | S35: 2 | U35: 7 | W35: 5 | X35: 1 | Z35: 6 | AB35: -1
C37: =SUM(C5:C35)*24 -> 160 | D37: =SUM(D5:D35)*24 -> 160 | E37: =SUM(E5:E35)*24 -> 176 | F37: =SUM(F5:F35)*24 -> 160 | G37: 152 | H37: =SUM(H5:H35)*24 -> 168 | I37: 184 | J37: 168 | K37: 176 | L37: 176 | M37: 168 | N37: 160 | O37: =SUM(C37:N37) -> 2008
C39: Arbetstid/dag | D39: 08:00:00 | F39: ="mindre än " & TEXT(D39,"TT:MM") -> mindre än 08:00 | G39: =IF(D39>0,D39-0.001,0) -> 07:58:33.600 | I39: Lördag/Söndag | L39: ="Årsarbetstid " &Q2 -> Årsarbetstid 2026 | N39: =24*($D$39*5*$C$41-$J$40*D39) -> 2000 | U39: 7
C40: =D39*5 -> 1.666666667 | D40: tim/vecka | F40: ="mer än " & TEXT(D39,"TT:MM") -> mer än 08:00 | G40: =D39+0.001 -> 08:01:26.400 | I40: Avtals.helgdag | J40: =COUNTIF(Q5:AB35,"-1")+1 -> 11 | L40: Utlagda arbetstimmar | N40: =SUM(C37:N37) -> 2008 | R40: Dagar som ska markeras blått är:
C41: 52.2 | D41: Veckor | L41: Skillnad | N41: =N40-N39 -> 8 | R41: Nyårsafton, Nyårsdagen, 13:e dag jul, långfredagen, påskdagen, annandag påsk, 1a maj, Kristi himmelfärdsdagen,
C42: =C49 -> 52.4 | D42: Veckor ifyllda | R42: pingstdagen, Sveriges nationaldag, Midsommardagen, alla helgons dag, juldagen och annandag jul.
R43: Vid röda dagar ändra siffran till -1 för att automatiskt uppdatera flextidsrapporten med den röda dagen.
R44: Och radera sedan tiden från de blåa fälten på denna sida, så de inte räknas med i årsarbetstiden.
R45: Vid ändrande av -1, dra från hörnet på rutan över eller under för att få med formeln.
C46: Datum | E46: Arbetstagare | J46: Datum | L46: Chef
C49: =SUM((COUNTA($C$5:$N$35)+$J$40)/5) -> 52.4 | D49: Veckor ifyllda
C50: 1.666666667 | D50: Heltidsmått
C51: =C40/C50 -> 1 | D51: Arbetsprocent

Sheet Arbetat
Q1: =Uppgifter!C4 -> 2026
B2: Datum | C2: Januari | D2: Februari | E2: Mars | F2: April | G2: Maj | H2: Juni | I2: Juli | J2: Augusti | K2: September | L2: Oktober | M2: November | N2: December | Q2: 1 | R2: 2 | S2: 3 | T2: 4 | U2: 5 | V2: 6 | W2: 7 | X2: 8 | Y2: 9 | Z2: 10 | AA2: 11 | AB2: 12
B3: 1 | C3: =Januari!$I4 -> 00:00:00 | D3: =Februari!$I4 -> 00:00:00 | E3: =Mars!$I4 -> 00:00:00 | F3: =April!$I4 -> 00:00:00 | G3: =Maj!$I4 -> 00:00:00 | H3: =Juni!$I4 -> 00:00:00 | I3: =Juli!$I4 -> 00:00:00 | J3: =Augusti!$I4 -> 00:00:00 | K3: =September!$I4 -> 00:00:00 | L3: =Oktober!$I4 -> 00:00:00 | M3: =November!$I4 -> 00:00:00 | N3: =December!$I4 -> 00:00:00 | Q3: =Årsarbetsschema!Q5 -> -1 | R3: =Årsarbetsschema!R5 -> 7 | S3: =Årsarbetsschema!S5 -> 7 | T3: =Årsarbetsschema!T5 -> 3 | U3: =Årsarbetsschema!U5 -> -1 | V3: =Årsarbetsschema!V5 -> 1 | W3: =Årsarbetsschema!W5 -> 3 | X3: =Årsarbetsschema!X5 -> 6 | Y3: =Årsarbetsschema!Y5 -> 2 | Z3: =Årsarbetsschema!Z5 -> 4 | AA3: =Årsarbetsschema!AA5 -> 7 | AB3: =Årsarbetsschema!AB5 -> 2 | AD3: =Årsarbetsschema!C5 -> 0 | AE3: =Årsarbetsschema!D5 -> 0 | AF3: =Årsarbetsschema!E5 -> 0 | AG3: =Årsarbetsschema!F5 -> 0.3333333333 | AH3: =Årsarbetsschema!G5 -> 0 | AI3: =Årsarbetsschema!H5 -> 0.3333333333 | AJ3: =Årsarbetsschema!I5 -> 0.3333333333 | AK3: =Årsarbetsschema!J5 -> 0 | AL3: =Årsarbetsschema!K5 -> 0.3333333333 | AM3: =Årsarbetsschema!L5 -> 0.3333333333 | AN3: =Årsarbetsschema!M5 -> 0 | AO3: =Årsarbetsschema!N5 -> 0.3333333333
B4: 2 | C4: =Januari!$I5 -> 00:00:00 | D4: =Februari!$I5 -> 00:00:00 | E4: =Mars!$I5 -> 00:00:00 | F4: =April!$I5 -> 00:00:00 | G4: =Maj!$I5 -> 00:00:00 | H4: =Juni!$I5 -> 00:00:00 | I4: =Juli!$I5 -> 00:00:00 | J4: =Augusti!$I5 -> 00:00:00 | K4: =September!$I5 -> 00:00:00 | L4: =Oktober!$I5 -> 00:00:00 | M4: =November!$I5 -> 00:00:00 | N4: =December!$I5 -> 00:00:00 | Q4: =Årsarbetsschema!Q6 -> 5 | R4: =Årsarbetsschema!R6 -> 1 | S4: =Årsarbetsschema!S6 -> 1 | T4: =Årsarbetsschema!T6 -> 4 | U4: =Årsarbetsschema!U6 -> 6 | V4: =Årsarbetsschema!V6 -> 2 | W4: =Årsarbetsschema!W6 -> 4 | X4: =Årsarbetsschema!X6 -> 7 | Y4: =Årsarbetsschema!Y6 -> 3 | Z4: =Årsarbetsschema!Z6 -> 5 | AA4: =Årsarbetsschema!AA6 -> 1 | AB4: =Årsarbetsschema!AB6 -> 3 | AD4: =Årsarbetsschema!C6 -> 0.3333333333 | AE4: =Årsarbetsschema!D6 -> 0.3333333333 | AF4: =Årsarbetsschema!E6 -> 0.3333333333 | AG4: =Årsarbetsschema!F6 -> 0.3333333333 | AH4: =Årsarbetsschema!G6 -> 0 | AI4: =Årsarbetsschema!H6 -> 0.3333333333 | AJ4: =Årsarbetsschema!I6 -> 0.3333333333 | AK4: =Årsarbetsschema!J6 -> 0 | AL4: =Årsarbetsschema!K6 -> 0.3333333333 | AM4: =Årsarbetsschema!L6 -> 0.3333333333 | AN4: =Årsarbetsschema!M6 -> 0.3333333333 | AO4: =Årsarbetsschema!N6 -> 0.3333333333
B5: 3 | C5: =Januari!$I6 -> 00:00:00 | D5: =Februari!$I6 -> 00:00:00 | E5: =Mars!$I6 -> 00:00:00 | F5: =April!$I6 -> 00:00:00 | G5: =Maj!$I6 -> 00:00:00 | H5: =Juni!$I6 -> 00:00:00 | I5: =Juli!$I6 -> 00:00:00 | J5: =Augusti!$I6 -> 00:00:00 | K5: =September!$I6 -> 00:00:00 | L5: =Oktober!$I6 -> 00:00:00 | M5: =November!$I6 -> 00:00:00 | N5: =December!$I6 -> 00:00:00 | Q5: =Årsarbetsschema!Q7 -> 6 | R5: =Årsarbetsschema!R7 -> 2 | S5: =Årsarbetsschema!S7 -> 2 | T5: =Årsarbetsschema!T7 -> -1 | U5: =Årsarbetsschema!U7 -> 7 | V5: =Årsarbetsschema!V7 -> 3 | W5: =Årsarbetsschema!W7 -> 5 | X5: =Årsarbetsschema!X7 -> 1 | Y5: =Årsarbetsschema!Y7 -> 4 | Z5: =Årsarbetsschema!Z7 -> 6 | AA5: =Årsarbetsschema!AA7 -> 2 | AB5: =Årsarbetsschema!AB7 -> 4 | AD5: =Årsarbetsschema!C7 -> 0 | AE5: =Årsarbetsschema!D7 -> 0.3333333333 | AF5: =Årsarbetsschema!E7 -> 0.3333333333 | AG5: =Årsarbetsschema!F7 -> 0 | AH5: =Årsarbetsschema!G7 -> 0 | AI5: =Årsarbetsschema!H7 -> 0.3333333333 | AJ5: =Årsarbetsschema!I7 -> 0.3333333333 | AK5: =Årsarbetsschema!J7 -> 0.3333333333 | AL5: =Årsarbetsschema!K7 -> 0.3333333333 | AM5: =Årsarbetsschema!L7 -> 0 | AN5: =Årsarbetsschema!M7 -> 0.3333333333 | AO5: =Årsarbetsschema!N7 -> 0.3333333333
B6: 4 | C6: =Januari!$I7 -> 00:00:00 | D6: =Februari!$I7 -> 00:00:00 | E6: =Mars!$I7 -> 00:00:00 | F6: =April!$I7 -> 00:00:00 | G6: =Maj!$I7 -> 00:00:00 | H6: =Juni!$I7 -> 00:00:00 | I6: =Juli!$I7 -> 00:00:00 | J6: =Augusti!$I7 -> 00:00:00 | K6: =September!$I7 -> 00:00:00 | L6: =Oktober!$I7 -> 00:00:00 | M6: =November!$I7 -> 00:00:00 | N6: =December!$I7 -> 00:00:00 | Q6: =Årsarbetsschema!Q8 -> 7 | R6: =Årsarbetsschema!R8 -> 3 | S6: =Årsarbetsschema!S8 -> 3 | T6: =Årsarbetsschema!T8 -> 6 | U6: =Årsarbetsschema!U8 -> 1 | V6: =Årsarbetsschema!V8 -> 4 | W6: =Årsarbetsschema!W8 -> 6 | X6: =Årsarbetsschema!X8 -> 2 | Y6: =Årsarbetsschema!Y8 -> 5 | Z6: =Årsarbetsschema!Z8 -> 7 | AA6: =Årsarbetsschema!AA8 -> 3 | AB6: =Årsarbetsschema!AB8 -> 5 | AD6: =Årsarbetsschema!C8 -> 0 | AE6: =Årsarbetsschema!D8 -> 0.3333333333 | AF6: =Årsarbetsschema!E8 -> 0.3333333333 | AG6: =Årsarbetsschema!F8 -> 0 | AH6: =Årsarbetsschema!G8 -> 0.3333333333 | AI6: =Årsarbetsschema!H8 -> 0.3333333333 | AJ6: =Årsarbetsschema!I8 -> 0 | AK6: =Årsarbetsschema!J8 -> 0.3333333333 | AL6: =Årsarbetsschema!K8 -> 0.3333333333 | AM6: =Årsarbetsschema!L8 -> 0 | AN6: =Årsarbetsschema!M8 -> 0.3333333333 | AO6: =Årsarbetsschema!N8 -> 0.3333333333
B7: 5 | C7: =Januari!$I8 -> 00:00:00 | D7: =Februari!$I8 -> 00:00:00 | E7: =Mars!$I8 -> 00:00:00 | F7: =April!$I8 -> 00:00:00 | G7: =Maj!$I8 -> 00:00:00 | H7: =Juni!$I8 -> 00:00:00 | I7: =Juli!$I8 -> 00:00:00 | J7: =Augusti!$I8 -> 00:00:00 | K7: =September!$I8 -> 00:00:00 | L7: =Oktober!$I8 -> 00:00:00 | M7: =November!$I8 -> 00:00:00 | N7: =December!$I8 -> 00:00:00 | Q7: =Årsarbetsschema!Q9 -> 1 | R7: =Årsarbetsschema!R9 -> 4 | S7: =Årsarbetsschema!S9 -> 4 | T7: =Årsarbetsschema!T9 -> 7 | U7: =Årsarbetsschema!U9 -> 2 | V7: =Årsarbetsschema!V9 -> 5 | W7: =Årsarbetsschema!W9 -> 7 | X7: =Årsarbetsschema!X9 -> 3 | Y7: =Årsarbetsschema!Y9 -> 6 | Z7: =Årsarbetsschema!Z9 -> 1 | AA7: =Årsarbetsschema!AA9 -> 4 | AB7: =Årsarbetsschema!AB9 -> 6 | AD7: =Årsarbetsschema!C9 -> 0.3333333333 | AE7: =Årsarbetsschema!D9 -> 0.3333333333 | AF7: =Årsarbetsschema!E9 -> 0.3333333333 | AG7: =Årsarbetsschema!F9 -> 0 | AH7: =Årsarbetsschema!G9 -> 0.3333333333 | AI7: =Årsarbetsschema!H9 -> 0.3333333333 | AJ7: =Årsarbetsschema!I9 -> 0 | AK7: =Årsarbetsschema!J9 -> 0.3333333333 | AL7: =Årsarbetsschema!K9 -> 0 | AM7: =Årsarbetsschema!L9 -> 0.3333333333 | AN7: =Årsarbetsschema!M9 -> 0.3333333333 | AO7: =Årsarbetsschema!N9 -> 0
B8: 6 | C8: =Januari!$I9 -> 00:00:00 | D8: =Februari!$I9 -> 00:00:00 | E8: =Mars!$I9 -> 00:00:00 | F8: =April!$I9 -> 00:00:00 | G8: =Maj!$I9 -> 00:00:00 | H8: =Juni!$I9 -> 00:00:00 | I8: =Juli!$I9 -> 00:00:00 | J8: =Augusti!$I9 -> 00:00:00 | K8: =September!$I9 -> 00:00:00 | L8: =Oktober!$I9 -> 00:00:00 | M8: =November!$I9 -> 00:00:00 | N8: =December!$I9 -> 00:00:00 | Q8: =Årsarbetsschema!Q10 -> -1 | R8: =Årsarbetsschema!R10 -> 5 | S8: =Årsarbetsschema!S10 -> 5 | T8: =Årsarbetsschema!T10 -> -1 | U8: =Årsarbetsschema!U10 -> 3 | V8: =Årsarbetsschema!V10 -> 6 | W8: =Årsarbetsschema!W10 -> 1 | X8: =Årsarbetsschema!X10 -> 4 | Y8: =Årsarbetsschema!Y10 -> 7 | Z8: =Årsarbetsschema!Z10 -> 2 | AA8: =Årsarbetsschema!AA10 -> 5 | AB8: =Årsarbetsschema!AB10 -> 7 | AD8: =Årsarbetsschema!C10 -> 0 | AE8: =Årsarbetsschema!D10 -> 0.3333333333 | AF8: =Årsarbetsschema!E10 -> 0.3333333333 | AG8: =Årsarbetsschema!F10 -> 0 | AH8: =Årsarbetsschema!G10 -> 0.3333333333 | AI8: =Årsarbetsschema!H10 -> 0 | AJ8: =Årsarbetsschema!I10 -> 0.3333333333 | AK8: =Årsarbetsschema!J10 -> 0.3333333333 | AL8: =Årsarbetsschema!K10 -> 0 | AM8: =Årsarbetsschema!L10 -> 0.3333333333 | AN8: =Årsarbetsschema!M10 -> 0.3333333333 | AO8: =Årsarbetsschema!N10 -> 0
B9: 7 | C9: =Januari!$I10 -> 00:00:00 | D9: =Februari!$I10 -> 00:00:00 | E9: =Mars!$I10 -> 00:00:00 | F9: =April!$I10 -> 00:00:00 | G9: =Maj!$I10 -> 00:00:00 | H9: =Juni!$I10 -> 00:00:00 | I9: =Juli!$I10 -> 00:00:00 | J9: =Augusti!$I10 -> 00:00:00 | K9: =September!$I10 -> 00:00:00 | L9: =Oktober!$I10 -> 00:00:00 | M9: =November!$I10 -> 00:00:00 | N9: =December!$I10 -> 00:00:00 | Q9: =Årsarbetsschema!Q11 -> 3 | R9: =Årsarbetsschema!R11 -> 6 | S9: =Årsarbetsschema!S11 -> 6 | T9: =Årsarbetsschema!T11 -> 2 | U9: =Årsarbetsschema!U11 -> 4 | V9: =Årsarbetsschema!V11 -> 7 | W9: =Årsarbetsschema!W11 -> 2 | X9: =Årsarbetsschema!X11 -> 5 | Y9: =Årsarbetsschema!Y11 -> 1 | Z9: =Årsarbetsschema!Z11 -> 3 | AA9: =Årsarbetsschema!AA11 -> 6 | AB9: =Årsarbetsschema!AB11 -> 1 | AD9: =Årsarbetsschema!C11 -> 0.3333333333 | AE9: =Årsarbetsschema!D11 -> 0 | AF9: =Årsarbetsschema!E11 -> 0 | AG9: =Årsarbetsschema!F11 -> 0.3333333333 | AH9: =Årsarbetsschema!G11 -> 0.3333333333 | AI9: =Årsarbetsschema!H11 -> 0 | AJ9: =Årsarbetsschema!I11 -> 0.3333333333 | AK9: =Årsarbetsschema!J11 -> 0.3333333333 | AL9: =Årsarbetsschema!K11 -> 0.3333333333 | AM9: =Årsarbetsschema!L11 -> 0.3333333333 | AN9: =Årsarbetsschema!M11 -> 0 | AO9: =Årsarbetsschema!N11 -> 0.3333333333
B10: 8 | C10: =Januari!$I11 -> 00:00:00 | D10: =Februari!$I11 -> 00:00:00 | E10: =Mars!$I11 -> 00:00:00 | F10: =April!$I11 -> 00:00:00 | G10: =Maj!$I11 -> 00:00:00 | H10: =Juni!$I11 -> 00:00:00 | I10: =Juli!$I11 -> 00:00:00 | J10: =Augusti!$I11 -> 00:00:00 | K10: =September!$I11 -> 00:00:00 | L10: =Oktober!$I11 -> 00:00:00 | M10: =November!$I11 -> 00:00:00 | N10: =December!$I11 -> 00:00:00 | Q10: =Årsarbetsschema!Q12 -> 4 | R10: =Årsarbetsschema!R12 -> 7 | S10: =Årsarbetsschema!S12 -> 7 | T10: =Årsarbetsschema!T12 -> 3 | U10: =Årsarbetsschema!U12 -> 5 | V10: =Årsarbetsschema!V12 -> 1 | W10: =Årsarbetsschema!W12 -> 3 | X10: =Årsarbetsschema!X12 -> 6 | Y10: =Årsarbetsschema!Y12 -> 2 | Z10: =Årsarbetsschema!Z12 -> 4 | AA10: =Årsarbetsschema!AA12 -> 7 | AB10: =Årsarbetsschema!AB12 -> 2 | AD10: =Årsarbetsschema!C12 -> 0.3333333333 | AE10: =Årsarbetsschema!D12 -> 0 | AF10: =Årsarbetsschema!E12 -> 0 | AG10: =Årsarbetsschema!F12 -> 0.3333333333 | AH10: =Årsarbetsschema!G12 -> 0.3333333333 | AI10: =Årsarbetsschema!H12 -> 0.3333333333 | AJ10: =Årsarbetsschema!I12 -> 0.3333333333 | AK10: =Årsarbetsschema!J12 -> 0 | AL10: =Årsarbetsschema!K12 -> 0.3333333333 | AM10: =Årsarbetsschema!L12 -> 0.3333333333 | AN10: =Årsarbetsschema!M12 -> 0 | AO10: =Årsarbetsschema!N12 -> 0.3333333333
B11: 9 | C11: =Januari!$I12 -> 00:00:00 | D11: =Februari!$I12 -> 00:00:00 | E11: =Mars!$I12 -> 00:00:00 | F11: =April!$I12 -> 00:00:00 | G11: =Maj!$I12 -> 00:00:00 | H11: =Juni!$I12 -> 00:00:00 | I11: =Juli!$I12 -> 00:00:00 | J11: =Augusti!$I12 -> 00:00:00 | K11: =September!$I12 -> 00:00:00 | L11: =Oktober!$I12 -> 00:00:00 | M11: =November!$I12 -> 00:00:00 | N11: =December!$I12 -> 00:00:00 | Q11: =Årsarbetsschema!Q13 -> 5 | R11: =Årsarbetsschema!R13 -> 1 | S11: =Årsarbetsschema!S13 -> 1 | T11: =Årsarbetsschema!T13 -> 4 | U11: =Årsarbetsschema!U13 -> 6 | V11: =Årsarbetsschema!V13 -> 2 | W11: =Årsarbetsschema!W13 -> 4 | X11: =Årsarbetsschema!X13 -> 7 | Y11: =Årsarbetsschema!Y13 -> 3 | Z11: =Årsarbetsschema!Z13 -> 5 | AA11: =Årsarbetsschema!AA13 -> 1 | AB11: =Årsarbetsschema!AB13 -> 3 | AD11: =Årsarbetsschema!C13 -> 0.3333333333 | AE11: =Årsarbetsschema!D13 -> 0.3333333333 | AF11: =Årsarbetsschema!E13 -> 0.3333333333 | AG11: =Årsarbetsschema!F13 -> 0.3333333333 | AH11: =Årsarbetsschema!G13 -> 0 | AI11: =Årsarbetsschema!H13 -> 0.3333333333 | AJ11: =Årsarbetsschema!I13 -> 0.3333333333 | AK11: =Årsarbetsschema!J13 -> 0 | AL11: =Årsarbetsschema!K13 -> 0.3333333333 | AM11: =Årsarbetsschema!L13 -> 0.3333333333 | AN11: =Årsarbetsschema!M13 -> 0.3333333333 | AO11: =Årsarbetsschema!N13 -> 0.3333333333
B12: 10 | C12: =Januari!$I13 -> 00:00:00 | D12: =Februari!$I13 -> 00:00:00 | E12: =Mars!$I13 -> 00:00:00 | F12: =April!$I13 -> 00:00:00 | G12: =Maj!$I13 -> 00:00:00 | H12: =Juni!$I13 -> 00:00:00 | I12: =Juli!$I13 -> 00:00:00 | J12: =Augusti!$I13 -> 00:00:00 | K12: =September!$I13 -> 00:00:00 | L12: =Oktober!$I13 -> 00:00:00 | M12: =November!$I13 -> 00:00:00 | N12: =December!$I13 -> 00:00:00 | Q12: =Årsarbetsschema!Q14 -> 6 | R12: =Årsarbetsschema!R14 -> 2 | S12: =Årsarbetsschema!S14 -> 2 | T12: =Årsarbetsschema!T14 -> 5 | U12: =Årsarbetsschema!U14 -> 7 | V12: =Årsarbetsschema!V14 -> 3 | W12: =Årsarbetsschema!W14 -> 5 | X12: =Årsarbetsschema!X14 -> 1 | Y12: =Årsarbetsschema!Y14 -> 4 | Z12: =Årsarbetsschema!Z14 -> 6 | AA12: =Årsarbetsschema!AA14 -> 2 | AB12: =Årsarbetsschema!AB14 -> 4 | AD12: =Årsarbetsschema!C14 -> 0 | AE12: =Årsarbetsschema!D14 -> 0.3333333333 | AF12: =Årsarbetsschema!E14 -> 0.3333333333 | AG12: =Årsarbetsschema!F14 -> 0.3333333333 | AH12: =Årsarbetsschema!G14 -> 0 | AI12: =Årsarbetsschema!H14 -> 0.3333333333 | AJ12: =Årsarbetsschema!I14 -> 0.3333333333 | AK12: =Årsarbetsschema!J14 -> 0.3333333333 | AL12: =Årsarbetsschema!K14 -> 0.3333333333 | AM12: =Årsarbetsschema!L14 -> 0 | AN12: =Årsarbetsschema!M14 -> 0.3333333333 | AO12: =Årsarbetsschema!N14 -> 0.3333333333
B13: 11 | C13: =Januari!$I14 -> 00:00:00 | D13: =Februari!$I14 -> 00:00:00 | E13: =Mars!$I14 -> 00:00:00 | F13: =April!$I14 -> 00:00:00 | G13: =Maj!$I14 -> 00:00:00 | H13: =Juni!$I14 -> 00:00:00 | I13: =Juli!$I14 -> 00:00:00 | J13: =Augusti!$I14 -> 00:00:00 | K13: =September!$I14 -> 00:00:00 | L13: =Oktober!$I14 -> 00:00:00 | M13: =November!$I14 -> 00:00:00 | N13: =December!$I14 -> 00:00:00 | Q13: =Årsarbetsschema!Q15 -> 7 | R13: =Årsarbetsschema!R15 -> 3 | S13: =Årsarbetsschema!S15 -> 3 | T13: =Årsarbetsschema!T15 -> 6 | U13: =Årsarbetsschema!U15 -> 1 | V13: =Årsarbetsschema!V15 -> 4 | W13: =Årsarbetsschema!W15 -> 6 | X13: =Årsarbetsschema!X15 -> 2 | Y13: =Årsarbetsschema!Y15 -> 5 | Z13: =Årsarbetsschema!Z15 -> 7 | AA13: =Årsarbetsschema!AA15 -> 3 | AB13: =Årsarbetsschema!AB15 -> 5 | AD13: =Årsarbetsschema!C15 -> 0 | AE13: =Årsarbetsschema!D15 -> 0.3333333333 | AF13: =Årsarbetsschema!E15 -> 0.3333333333 | AG13: =Årsarbetsschema!F15 -> 0 | AH13: =Årsarbetsschema!G15 -> 0.3333333333 | AI13: =Årsarbetsschema!H15 -> 0.3333333333 | AJ13: =Årsarbetsschema!I15 -> 0 | AK13: =Årsarbetsschema!J15 -> 0.3333333333 | AL13: =Årsarbetsschema!K15 -> 0.3333333333 | AM13: =Årsarbetsschema!L15 -> 0 | AN13: =Årsarbetsschema!M15 -> 0.3333333333 | AO13: =Årsarbetsschema!N15 -> 0.3333333333
B14: 12 | C14: =Januari!$I15 -> 00:00:00 | D14: =Februari!$I15 -> 00:00:00 | E14: =Mars!$I15 -> 00:00:00 | F14: =April!$I15 -> 00:00:00 | G14: =Maj!$I15 -> 00:00:00 | H14: =Juni!$I15 -> 00:00:00 | I14: =Juli!$I15 -> 00:00:00 | J14: =Augusti!$I15 -> 00:00:00 | K14: =September!$I15 -> 00:00:00 | L14: =Oktober!$I15 -> 00:00:00 | M14: =November!$I15 -> 00:00:00 | N14: =December!$I15 -> 00:00:00 | Q14: =Årsarbetsschema!Q16 -> 1 | R14: =Årsarbetsschema!R16 -> 4 | S14: =Årsarbetsschema!S16 -> 4 | T14: =Årsarbetsschema!T16 -> 7 | U14: =Årsarbetsschema!U16 -> 2 | V14: =Årsarbetsschema!V16 -> 5 | W14: =Årsarbetsschema!W16 -> 7 | X14: =Årsarbetsschema!X16 -> 3 | Y14: =Årsarbetsschema!Y16 -> 6 | Z14: =Årsarbetsschema!Z16 -> 1 | AA14: =Årsarbetsschema!AA16 -> 4 | AB14: =Årsarbetsschema!AB16 -> 6 | AD14: =Årsarbetsschema!C16 -> 0.3333333333 | AE14: =Årsarbetsschema!D16 -> 0.3333333333 | AF14: =Årsarbetsschema!E16 -> 0.3333333333 | AG14: =Årsarbetsschema!F16 -> 0 | AH14: =Årsarbetsschema!G16 -> 0.3333333333 | AI14: =Årsarbetsschema!H16 -> 0.3333333333 | AJ14: =Årsarbetsschema!I16 -> 0 | AK14: =Årsarbetsschema!J16 -> 0.3333333333 | AL14: =Årsarbetsschema!K16 -> 0 | AM14: =Årsarbetsschema!L16 -> 0.3333333333 | AN14: =Årsarbetsschema!M16 -> 0.3333333333 | AO14: =Årsarbetsschema!N16 -> 0
B15: 13 | C15: =Januari!$I16 -> 00:00:00 | D15: =Februari!$I16 -> 00:00:00 | E15: =Mars!$I16 -> 00:00:00 | F15: =April!$I16 -> 00:00:00 | G15: =Maj!$I16 -> 00:00:00 | H15: =Juni!$I16 -> 00:00:00 | I15: =Juli!$I16 -> 00:00:00 | J15: =Augusti!$I16 -> 00:00:00 | K15: =September!$I16 -> 00:00:00 | L15: =Oktober!$I16 -> 00:00:00 | M15: =November!$I16 -> 00:00:00 | N15: =December!$I16 -> 00:00:00 | Q15: =Årsarbetsschema!Q17 -> 2 | R15: =Årsarbetsschema!R17 -> 5 | S15: =Årsarbetsschema!S17 -> 5 | T15: =Årsarbetsschema!T17 -> 1 | U15: =Årsarbetsschema!U17 -> 3 | V15: =Årsarbetsschema!V17 -> 6 | W15: =Årsarbetsschema!W17 -> 1 | X15: =Årsarbetsschema!X17 -> 4 | Y15: =Årsarbetsschema!Y17 -> 7 | Z15: =Årsarbetsschema!Z17 -> 2 | AA15: =Årsarbetsschema!AA17 -> 5 | AB15: =Årsarbetsschema!AB17 -> 7 | AD15: =Årsarbetsschema!C17 -> 0.3333333333 | AE15: =Årsarbetsschema!D17 -> 0.3333333333 | AF15: =Årsarbetsschema!E17 -> 0.3333333333 | AG15: =Årsarbetsschema!F17 -> 0.3333333333 | AH15: =Årsarbetsschema!G17 -> 0.3333333333 | AI15: =Årsarbetsschema!H17 -> 0 | AJ15: =Årsarbetsschema!I17 -> 0.3333333333 | AK15: =Årsarbetsschema!J17 -> 0.3333333333 | AL15: =Årsarbetsschema!K17 -> 0 | AM15: =Årsarbetsschema!L17 -> 0.3333333333 | AN15: =Årsarbetsschema!M17 -> 0.3333333333 | AO15: =Årsarbetsschema!N17 -> 0
B16: 14 | C16: =Januari!$I17 -> 00:00:00 | D16: =Februari!$I17 -> 00:00:00 | E16: =Mars!$I17 -> 00:00:00 | F16: =April!$I17 -> 00:00:00 | G16: =Maj!$I17 -> 00:00:00 | H16: =Juni!$I17 -> 00:00:00 | I16: =Juli!$I17 -> 00:00:00 | J16: =Augusti!$I17 -> 00:00:00 | K16: =September!$I17 -> 00:00:00 | L16: =Oktober!$I17 -> 00:00:00 | M16: =November!$I17 -> 00:00:00 | N16: =December!$I17 -> 00:00:00 | Q16: =Årsarbetsschema!Q18 -> 3 | R16: =Årsarbetsschema!R18 -> 6 | S16: =Årsarbetsschema!S18 -> 6 | T16: =Årsarbetsschema!T18 -> 2 | U16: =Årsarbetsschema!U18 -> -1 | V16: =Årsarbetsschema!V18 -> 7 | W16: =Årsarbetsschema!W18 -> 2 | X16: =Årsarbetsschema!X18 -> 5 | Y16: =Årsarbetsschema!Y18 -> 1 | Z16: =Årsarbetsschema!Z18 -> 3 | AA16: =Årsarbetsschema!AA18 -> 6 | AB16: =Årsarbetsschema!AB18 -> 1 | AD16: =Årsarbetsschema!C18 -> 0.3333333333 | AE16: =Årsarbetsschema!D18 -> 0 | AF16: =Årsarbetsschema!E18 -> 0 | AG16: =Årsarbetsschema!F18 -> 0.3333333333 | AH16: =Årsarbetsschema!G18 -> 0 | AI16: =Årsarbetsschema!H18 -> 0 | AJ16: =Årsarbetsschema!I18 -> 0.3333333333 | AK16: =Årsarbetsschema!J18 -> 0.3333333333 | AL16: =Årsarbetsschema!K18 -> 0.3333333333 | AM16: =Årsarbetsschema!L18 -> 0.3333333333 | AN16: =Årsarbetsschema!M18 -> 0 | AO16: =Årsarbetsschema!N18 -> 0.3333333333
B17: 15 | C17: =Januari!$I18 -> 00:00:00 | D17: =Februari!$I18 -> 00:00:00 | E17: =Mars!$I18 -> 00:00:00 | F17: =April!$I18 -> 00:00:00 | G17: =Maj!$I18 -> 00:00:00 | H17: =Juni!$I18 -> 00:00:00 | I17: =Juli!$I18 -> 00:00:00 | J17: =Augusti!$I18 -> 00:00:00 | K17: =September!$I18 -> 00:00:00 | L17: =Oktober!$I18 -> 00:00:00 | M17: =November!$I18 -> 00:00:00 | N17: =December!$I18 -> 00:00:00 | Q17: =Årsarbetsschema!Q19 -> 4 | R17: =Årsarbetsschema!R19 -> 7 | S17: =Årsarbetsschema!S19 -> 7 | T17: =Årsarbetsschema!T19 -> 3 | U17: =Årsarbetsschema!U19 -> 5 | V17: =Årsarbetsschema!V19 -> 1 | W17: =Årsarbetsschema!W19 -> 3 | X17: =Årsarbetsschema!X19 -> 6 | Y17: =Årsarbetsschema!Y19 -> 2 | Z17: =Årsarbetsschema!Z19 -> 4 | AA17: =Årsarbetsschema!AA19 -> 7 | AB17: =Årsarbetsschema!AB19 -> 2 | AD17: =Årsarbetsschema!C19 -> 0.3333333333 | AE17: =Årsarbetsschema!D19 -> 0 | AF17: =Årsarbetsschema!E19 -> 0 | AG17: =Årsarbetsschema!F19 -> 0.3333333333 | AH17: =Årsarbetsschema!G19 -> 0.3333333333 | AI17: =Årsarbetsschema!H19 -> 0.3333333333 | AJ17: =Årsarbetsschema!I19 -> 0.3333333333 | AK17: =Årsarbetsschema!J19 -> 0 | AL17: =Årsarbetsschema!K19 -> 0.3333333333 | AM17: =Årsarbetsschema!L19 -> 0.3333333333 | AN17: =Årsarbetsschema!M19 -> 0 | AO17: =Årsarbetsschema!N19 -> 0.3333333333
B18: 16 | C18: =Januari!$I19 -> 00:00:00 | D18: =Februari!$I19 -> 00:00:00 | E18: =Mars!$I19 -> 00:00:00 | F18: =April!$I19 -> 00:00:00 | G18: =Maj!$I19 -> 00:00:00 | H18: =Juni!$I19 -> 00:00:00 | I18: =Juli!$I19 -> 00:00:00 | J18: =Augusti!$I19 -> 00:00:00 | K18: =September!$I19 -> 00:00:00 | L18: =Oktober!$I19 -> 00:00:00 | M18: =November!$I19 -> 00:00:00 | N18: =December!$I19 -> 00:00:00 | Q18: =Årsarbetsschema!Q20 -> 5 | R18: =Årsarbetsschema!R20 -> 1 | S18: =Årsarbetsschema!S20 -> 1 | T18: =Årsarbetsschema!T20 -> 4 | U18: =Årsarbetsschema!U20 -> 6 | V18: =Årsarbetsschema!V20 -> 2 | W18: =Årsarbetsschema!W20 -> 4 | X18: =Årsarbetsschema!X20 -> 7 | Y18: =Årsarbetsschema!Y20 -> 3 | Z18: =Årsarbetsschema!Z20 -> 5 | AA18: =Årsarbetsschema!AA20 -> 1 | AB18: =Årsarbetsschema!AB20 -> 3 | AD18: =Årsarbetsschema!C20 -> 0.3333333333 | AE18: =Årsarbetsschema!D20 -> 0.3333333333 | AF18: =Årsarbetsschema!E20 -> 0.3333333333 | AG18: =Årsarbetsschema!F20 -> 0.3333333333 | AH18: =Årsarbetsschema!G20 -> 0 | AI18: =Årsarbetsschema!H20 -> 0.3333333333 | AJ18: =Årsarbetsschema!I20 -> 0.3333333333 | AK18: =Årsarbetsschema!J20 -> 0 | AL18: =Årsarbetsschema!K20 -> 0.3333333333 | AM18: =Årsarbetsschema!L20 -> 0.3333333333 | AN18: =Årsarbetsschema!M20 -> 0.3333333333 | AO18: =Årsarbetsschema!N20 -> 0.3333333333
B19: 17 | C19: =Januari!$I20 -> 00:00:00 | D19: =Februari!$I20 -> 00:00:00 | E19: =Mars!$I20 -> 00:00:00 | F19: =April!$I20 -> 00:00:00 | G19: =Maj!$I20 -> 00:00:00 | H19: =Juni!$I20 -> 00:00:00 | I19: =Juli!$I20 -> 00:00:00 | J19: =Augusti!$I20 -> 00:00:00 | K19: =September!$I20 -> 00:00:00 | L19: =Oktober!$I20 -> 00:00:00 | M19: =November!$I20 -> 00:00:00 | N19: =December!$I20 -> 00:00:00 | Q19: =Årsarbetsschema!Q21 -> 6 | R19: =Årsarbetsschema!R21 -> 2 | S19: =Årsarbetsschema!S21 -> 2 | T19: =Årsarbetsschema!T21 -> 5 | U19: =Årsarbetsschema!U21 -> 7 | V19: =Årsarbetsschema!V21 -> 3 | W19: =Årsarbetsschema!W21 -> 5 | X19: =Årsarbetsschema!X21 -> 1 | Y19: =Årsarbetsschema!Y21 -> 4 | Z19: =Årsarbetsschema!Z21 -> 6 | AA19: =Årsarbetsschema!AA21 -> 2 | AB19: =Årsarbetsschema!AB21 -> 4 | AD19: =Årsarbetsschema!C21 -> 0 | AE19: =Årsarbetsschema!D21 -> 0.3333333333 | AF19: =Årsarbetsschema!E21 -> 0.3333333333 | AG19: =Årsarbetsschema!F21 -> 0.3333333333 | AH19: =Årsarbetsschema!G21 -> 0 | AI19: =Årsarbetsschema!H21 -> 0.3333333333 | AJ19: =Årsarbetsschema!I21 -> 0.3333333333 | AK19: =Årsarbetsschema!J21 -> 0.3333333333 | AL19: =Årsarbetsschema!K21 -> 0.3333333333 | AM19: =Årsarbetsschema!L21 -> 0 | AN19: =Årsarbetsschema!M21 -> 0.3333333333 | AO19: =Årsarbetsschema!N21 -> 0.3333333333
B20: 18 | C20: =Januari!$I21 -> 00:00:00 | D20: =Februari!$I21 -> 00:00:00 | E20: =Mars!$I21 -> 00:00:00 | F20: =April!$I21 -> 00:00:00 | G20: =Maj!$I21 -> 00:00:00 | H20: =Juni!$I21 -> 00:00:00 | I20: =Juli!$I21 -> 00:00:00 | J20: =Augusti!$I21 -> 00:00:00 | K20: =September!$I21 -> 00:00:00 | L20: =Oktober!$I21 -> 00:00:00 | M20: =November!$I21 -> 00:00:00 | N20: =December!$I21 -> 00:00:00 | Q20: =Årsarbetsschema!Q22 -> 7 | R20: =Årsarbetsschema!R22 -> 3 | S20: =Årsarbetsschema!S22 -> 3 | T20: =Årsarbetsschema!T22 -> 6 | U20: =Årsarbetsschema!U22 -> 1 | V20: =Årsarbetsschema!V22 -> 4 | W20: =Årsarbetsschema!W22 -> 6 | X20: =Årsarbetsschema!X22 -> 2 | Y20: =Årsarbetsschema!Y22 -> 5 | Z20: =Årsarbetsschema!Z22 -> 7 | AA20: =Årsarbetsschema!AA22 -> 3 | AB20: =Årsarbetsschema!AB22 -> 5 | AD20: =Årsarbetsschema!C22 -> 0 | AE20: =Årsarbetsschema!D22 -> 0.3333333333 | AF20: =Årsarbetsschema!E22 -> 0.3333333333 | AG20: =Årsarbetsschema!F22 -> 0 | AH20: =Årsarbetsschema!G22 -> 0.3333333333 | AI20: =Årsarbetsschema!H22 -> 0.3333333333 | AJ20: =Årsarbetsschema!I22 -> 0 | AK20: =Årsarbetsschema!J22 -> 0.3333333333 | AL20: =Årsarbetsschema!K22 -> 0.3333333333 | AM20: =Årsarbetsschema!L22 -> 0 | AN20: =Årsarbetsschema!M22 -> 0.3333333333 | AO20: =Årsarbetsschema!N22 -> 0.3333333333
B21: 19 | C21: =Januari!$I22 -> 00:00:00 | D21: =Februari!$I22 -> 00:00:00 | E21: =Mars!$I22 -> 00:00:00 | F21: =April!$I22 -> 00:00:00 | G21: =Maj!$I22 -> 00:00:00 | H21: =Juni!$I22 -> 00:00:00 | I21: =Juli!$I22 -> 00:00:00 | J21: =Augusti!$I22 -> 00:00:00 | K21: =September!$I22 -> 00:00:00 | L21: =Oktober!$I22 -> 00:00:00 | M21: =November!$I22 -> 00:00:00 | N21: =December!$I22 -> 00:00:00 | Q21: =Årsarbetsschema!Q23 -> 1 | R21: =Årsarbetsschema!R23 -> 4 | S21: =Årsarbetsschema!S23 -> 4 | T21: =Årsarbetsschema!T23 -> 7 | U21: =Årsarbetsschema!U23 -> 2 | V21: =Årsarbetsschema!V23 -> -1 | W21: =Årsarbetsschema!W23 -> 7 | X21: =Årsarbetsschema!X23 -> 3 | Y21: =Årsarbetsschema!Y23 -> 6 | Z21: =Årsarbetsschema!Z23 -> 1 | AA21: =Årsarbetsschema!AA23 -> 4 | AB21: =Årsarbetsschema!AB23 -> 6 | AD21: =Årsarbetsschema!C23 -> 0.3333333333 | AE21: =Årsarbetsschema!D23 -> 0.3333333333 | AF21: =Årsarbetsschema!E23 -> 0.3333333333 | AG21: =Årsarbetsschema!F23 -> 0 | AH21: =Årsarbetsschema!G23 -> 0.3333333333 | AI21: =Årsarbetsschema!H23 -> 0 | AJ21: =Årsarbetsschema!I23 -> 0 | AK21: =Årsarbetsschema!J23 -> 0.3333333333 | AL21: =Årsarbetsschema!K23 -> 0 | AM21: =Årsarbetsschema!L23 -> 0.3333333333 | AN21: =Årsarbetsschema!M23 -> 0.3333333333 | AO21: =Årsarbetsschema!N23 -> 0
B22: 20 | C22: =Januari!$I23 -> 00:00:00 | D22: =Februari!$I23 -> 00:00:00 | E22: =Mars!$I23 -> 00:00:00 | F22: =April!$I23 -> 00:00:00 | G22: =Maj!$I23 -> 00:00:00 | H22: =Juni!$I23 -> 00:00:00 | I22: =Juli!$I23 -> 00:00:00 | J22: =Augusti!$I23 -> 00:00:00 | K22: =September!$I23 -> 00:00:00 | L22: =Oktober!$I23 -> 00:00:00 | M22: =November!$I23 -> 00:00:00 | N22: =December!$I23 -> 00:00:00 | Q22: =Årsarbetsschema!Q24 -> 2 | R22: =Årsarbetsschema!R24 -> 5 | S22: =Årsarbetsschema!S24 -> 5 | T22: =Årsarbetsschema!T24 -> 1 | U22: =Årsarbetsschema!U24 -> 3 | V22: =Årsarbetsschema!V24 -> 6 | W22: =Årsarbetsschema!W24 -> 1 | X22: =Årsarbetsschema!X24 -> 4 | Y22: =Årsarbetsschema!Y24 -> 7 | Z22: =Årsarbetsschema!Z24 -> 2 | AA22: =Årsarbetsschema!AA24 -> 5 | AB22: =Årsarbetsschema!AB24 -> 7 | AD22: =Årsarbetsschema!C24 -> 0.3333333333 | AE22: =Årsarbetsschema!D24 -> 0.3333333333 | AF22: =Årsarbetsschema!E24 -> 0.3333333333 | AG22: =Årsarbetsschema!F24 -> 0.3333333333 | AH22: =Årsarbetsschema!G24 -> 0.3333333333 | AI22: =Årsarbetsschema!H24 -> 0 | AJ22: =Årsarbetsschema!I24 -> 0.3333333333 | AK22: =Årsarbetsschema!J24 -> 0.3333333333 | AL22: =Årsarbetsschema!K24 -> 0 | AM22: =Årsarbetsschema!L24 -> 0.3333333333 | AN22: =Årsarbetsschema!M24 -> 0.3333333333 | AO22: =Årsarbetsschema!N24 -> 0
B23: 21 | C23: =Januari!$I24 -> 00:00:00 | D23: =Februari!$I24 -> 00:00:00 | E23: =Mars!$I24 -> 00:00:00 | F23: =April!$I24 -> 00:00:00 | G23: =Maj!$I24 -> 00:00:00 | H23: =Juni!$I24 -> 00:00:00 | I23: =Juli!$I24 -> 00:00:00 | J23: =Augusti!$I24 -> 00:00:00 | K23: =September!$I24 -> 00:00:00 | L23: =Oktober!$I24 -> 00:00:00 | M23: =November!$I24 -> 00:00:00 | N23: =December!$I24 -> 00:00:00 | Q23: =Årsarbetsschema!Q25 -> 3 | R23: =Årsarbetsschema!R25 -> 6 | S23: =Årsarbetsschema!S25 -> 6 | T23: =Årsarbetsschema!T25 -> 2 | U23: =Årsarbetsschema!U25 -> 4 | V23: =Årsarbetsschema!V25 -> 7 | W23: =Årsarbetsschema!W25 -> 2 | X23: =Årsarbetsschema!X25 -> 5 | Y23: =Årsarbetsschema!Y25 -> 1 | Z23: =Årsarbetsschema!Z25 -> 3 | AA23: =Årsarbetsschema!AA25 -> 6 | AB23: =Årsarbetsschema!AB25 -> 1 | AD23: =Årsarbetsschema!C25 -> 0.3333333333 | AE23: =Årsarbetsschema!D25 -> 0 | AF23: =Årsarbetsschema!E25 -> 0 | AG23: =Årsarbetsschema!F25 -> 0.3333333333 | AH23: =Årsarbetsschema!G25 -> 0.3333333333 | AI23: =Årsarbetsschema!H25 -> 0 | AJ23: =Årsarbetsschema!I25 -> 0.3333333333 | AK23: =Årsarbetsschema!J25 -> 0.3333333333 | AL23: =Årsarbetsschema!K25 -> 0.3333333333 | AM23: =Årsarbetsschema!L25 -> 0.3333333333 | AN23: =Årsarbetsschema!M25 -> 0 | AO23: =Årsarbetsschema!N25 -> 0.3333333333
B24: 22 | C24: =Januari!$I25 -> 00:00:00 | D24: =Februari!$I25 -> 00:00:00 | E24: =Mars!$I25 -> 00:00:00 | F24: =April!$I25 -> 00:00:00 | G24: =Maj!$I25 -> 00:00:00 | H24: =Juni!$I25 -> 00:00:00 | I24: =Juli!$I25 -> 00:00:00 | J24: =Augusti!$I25 -> 00:00:00 | K24: =September!$I25 -> 00:00:00 | L24: =Oktober!$I25 -> 00:00:00 | M24: =November!$I25 -> 00:00:00 | N24: =December!$I25 -> 00:00:00 | Q24: =Årsarbetsschema!Q26 -> 4 | R24: =Årsarbetsschema!R26 -> 7 | S24: =Årsarbetsschema!S26 -> 7 | T24: =Årsarbetsschema!T26 -> 3 | U24: =Årsarbetsschema!U26 -> 5 | V24: =Årsarbetsschema!V26 -> 1 | W24: =Årsarbetsschema!W26 -> 3 | X24: =Årsarbetsschema!X26 -> 6 | Y24: =Årsarbetsschema!Y26 -> 2 | Z24: =Årsarbetsschema!Z26 -> 4 | AA24: =Årsarbetsschema!AA26 -> 7 | AB24: =Årsarbetsschema!AB26 -> 2 | AD24: =Årsarbetsschema!C26 -> 0.3333333333 | AE24: =Årsarbetsschema!D26 -> 0 | AF24: =Årsarbetsschema!E26 -> 0 | AG24: =Årsarbetsschema!F26 -> 0.3333333333 | AH24: =Årsarbetsschema!G26 -> 0.3333333333 | AI24: =Årsarbetsschema!H26 -> 0.3333333333 | AJ24: =Årsarbetsschema!I26 -> 0.3333333333 | AK24: =Årsarbetsschema!J26 -> 0 | AL24: =Årsarbetsschema!K26 -> 0.3333333333 | AM24: =Årsarbetsschema!L26 -> 0.3333333333 | AN24: =Årsarbetsschema!M26 -> 0 | AO24: =Årsarbetsschema!N26 -> 0.3333333333
B25: 23 | C25: =Januari!$I26 -> 00:00:00 | D25: =Februari!$I26 -> 00:00:00 | E25: =Mars!$I26 -> 00:00:00 | F25: =April!$I26 -> 00:00:00 | G25: =Maj!$I26 -> 00:00:00 | H25: =Juni!$I26 -> 00:00:00 | I25: =Juli!$I26 -> 00:00:00 | J25: =Augusti!$I26 -> 00:00:00 | K25: =September!$I26 -> 00:00:00 | L25: =Oktober!$I26 -> 00:00:00 | M25: =November!$I26 -> 00:00:00 | N25: =December!$I26 -> 00:00:00 | Q25: =Årsarbetsschema!Q27 -> 5 | R25: =Årsarbetsschema!R27 -> 1 | S25: =Årsarbetsschema!S27 -> 1 | T25: =Årsarbetsschema!T27 -> 4 | U25: =Årsarbetsschema!U27 -> 6 | V25: =Årsarbetsschema!V27 -> 2 | W25: =Årsarbetsschema!W27 -> 4 | X25: =Årsarbetsschema!X27 -> 7 | Y25: =Årsarbetsschema!Y27 -> 3 | Z25: =Årsarbetsschema!Z27 -> 5 | AA25: =Årsarbetsschema!AA27 -> 1 | AB25: =Årsarbetsschema!AB27 -> 3 | AD25: =Årsarbetsschema!C27 -> 0.3333333333 | AE25: =Årsarbetsschema!D27 -> 0.3333333333 | AF25: =Årsarbetsschema!E27 -> 0.3333333333 | AG25: =Årsarbetsschema!F27 -> 0.3333333333 | AH25: =Årsarbetsschema!G27 -> 0 | AI25: =Årsarbetsschema!H27 -> 0.3333333333 | AJ25: =Årsarbetsschema!I27 -> 0.3333333333 | AK25: =Årsarbetsschema!J27 -> 0 | AL25: =Årsarbetsschema!K27 -> 0.3333333333 | AM25: =Årsarbetsschema!L27 -> 0.3333333333 | AN25: =Årsarbetsschema!M27 -> 0.3333333333 | AO25: =Årsarbetsschema!N27 -> 0.3333333333
B26: 24 | C26: =Januari!$I27 -> 00:00:00 | D26: =Februari!$I27 -> 00:00:00 | E26: =Mars!$I27 -> 00:00:00 | F26: =April!$I27 -> 00:00:00 | G26: =Maj!$I27 -> 00:00:00 | H26: =Juni!$I27 -> 00:00:00 | I26: =Juli!$I27 -> 00:00:00 | J26: =Augusti!$I27 -> 00:00:00 | K26: =September!$I27 -> 00:00:00 | L26: =Oktober!$I27 -> 00:00:00 | M26: =November!$I27 -> 00:00:00 | N26: =December!$I27 -> 00:00:00 | Q26: =Årsarbetsschema!Q28 -> 6 | R26: =Årsarbetsschema!R28 -> 2 | S26: =Årsarbetsschema!S28 -> 2 | T26: =Årsarbetsschema!T28 -> 5 | U26: =Årsarbetsschema!U28 -> 7 | V26: =Årsarbetsschema!V28 -> 3 | W26: =Årsarbetsschema!W28 -> 5 | X26: =Årsarbetsschema!X28 -> 1 | Y26: =Årsarbetsschema!Y28 -> 4 | Z26: =Årsarbetsschema!Z28 -> 6 | AA26: =Årsarbetsschema!AA28 -> 2 | AB26: =Årsarbetsschema!AB28 -> -1 | AD26: =Årsarbetsschema!C28 -> 0 | AE26: =Årsarbetsschema!D28 -> 0.3333333333 | AF26: =Årsarbetsschema!E28 -> 0.3333333333 | AG26: =Årsarbetsschema!F28 -> 0.3333333333 | AH26: =Årsarbetsschema!G28 -> 0 | AI26: =Årsarbetsschema!H28 -> 0.3333333333 | AJ26: =Årsarbetsschema!I28 -> 0.3333333333 | AK26: =Årsarbetsschema!J28 -> 0.3333333333 | AL26: =Årsarbetsschema!K28 -> 0.3333333333 | AM26: =Årsarbetsschema!L28 -> 0 | AN26: =Årsarbetsschema!M28 -> 0.3333333333 | AO26: =Årsarbetsschema!N28 -> 0
B27: 25 | C27: =Januari!$I28 -> 00:00:00 | D27: =Februari!$I28 -> 00:00:00 | E27: =Mars!$I28 -> 00:00:00 | F27: =April!$I28 -> 00:00:00 | G27: =Maj!$I28 -> 00:00:00 | H27: =Juni!$I28 -> 00:00:00 | I27: =Juli!$I28 -> 00:00:00 | J27: =Augusti!$I28 -> 00:00:00 | K27: =September!$I28 -> 00:00:00 | L27: =Oktober!$I28 -> 00:00:00 | M27: =November!$I28 -> 00:00:00 | N27: =December!$I28 -> 00:00:00 | Q27: =Årsarbetsschema!Q29 -> 7 | R27: =Årsarbetsschema!R29 -> 3 | S27: =Årsarbetsschema!S29 -> 3 | T27: =Årsarbetsschema!T29 -> 6 | U27: =Årsarbetsschema!U29 -> 1 | V27: =Årsarbetsschema!V29 -> 4 | W27: =Årsarbetsschema!W29 -> 6 | X27: =Årsarbetsschema!X29 -> 2 | Y27: =Årsarbetsschema!Y29 -> 5 | Z27: =Årsarbetsschema!Z29 -> 7 | AA27: =Årsarbetsschema!AA29 -> 3 | AB27: =Årsarbetsschema!AB29 -> -1 | AD27: =Årsarbetsschema!C29 -> 0 | AE27: =Årsarbetsschema!D29 -> 0.3333333333 | AF27: =Årsarbetsschema!E29 -> 0.3333333333 | AG27: =Årsarbetsschema!F29 -> 0 | AH27: =Årsarbetsschema!G29 -> 0.3333333333 | AI27: =Årsarbetsschema!H29 -> 0.3333333333 | AJ27: =Årsarbetsschema!I29 -> 0 | AK27: =Årsarbetsschema!J29 -> 0.3333333333 | AL27: =Årsarbetsschema!K29 -> 0.3333333333 | AM27: =Årsarbetsschema!L29 -> 0 | AN27: =Årsarbetsschema!M29 -> 0.3333333333 | AO27: =Årsarbetsschema!N29 -> 0
B28: 26 | C28: =Januari!$I29 -> 00:00:00 | D28: =Februari!$I29 -> 00:00:00 | E28: =Mars!$I29 -> 00:00:00 | F28: =April!$I29 -> 00:00:00 | G28: =Maj!$I29 -> 00:00:00 | H28: =Juni!$I29 -> 00:00:00 | I28: =Juli!$I29 -> 00:00:00 | J28: =Augusti!$I29 -> 00:00:00 | K28: =September!$I29 -> 00:00:00 | L28: =Oktober!$I29 -> 00:00:00 | M28: =November!$I29 -> 00:00:00 | N28: =December!$I29 -> 00:00:00 | Q28: =Årsarbetsschema!Q30 -> 1 | R28: =Årsarbetsschema!R30 -> 4 | S28: =Årsarbetsschema!S30 -> 4 | T28: =Årsarbetsschema!T30 -> 7 | U28: =Årsarbetsschema!U30 -> 2 | V28: =Årsarbetsschema!V30 -> 5 | W28: =Årsarbetsschema!W30 -> 7 | X28: =Årsarbetsschema!X30 -> 3 | Y28: =Årsarbetsschema!Y30 -> 6 | Z28: =Årsarbetsschema!Z30 -> 1 | AA28: =Årsarbetsschema!AA30 -> 4 | AB28: =Årsarbetsschema!AB30 -> 6 | AD28: =Årsarbetsschema!C30 -> 0.3333333333 | AE28: =Årsarbetsschema!D30 -> 0.3333333333 | AF28: =Årsarbetsschema!E30 -> 0.3333333333 | AG28: =Årsarbetsschema!F30 -> 0 | AH28: =Årsarbetsschema!G30 -> 0.3333333333 | AI28: =Årsarbetsschema!H30 -> 0.3333333333 | AJ28: =Årsarbetsschema!I30 -> 0 | AK28: =Årsarbetsschema!J30 -> 0.3333333333 | AL28: =Årsarbetsschema!K30 -> 0 | AM28: =Årsarbetsschema!L30 -> 0.3333333333 | AN28: =Årsarbetsschema!M30 -> 0.3333333333 | AO28: =Årsarbetsschema!N30 -> 0
B29: 27 | C29: =Januari!$I30 -> 00:00:00 | D29: =Februari!$I30 -> 00:00:00 | E29: =Mars!$I30 -> 00:00:00 | F29: =April!$I30 -> 00:00:00 | G29: =Maj!$I30 -> 00:00:00 | H29: =Juni!$I30 -> 00:00:00 | I29: =Juli!$I30 -> 00:00:00 | J29: =Augusti!$I30 -> 00:00:00 | K29: =September!$I30 -> 00:00:00 | L29: =Oktober!$I30 -> 00:00:00 | M29: =November!$I30 -> 00:00:00 | N29: =December!$I30 -> 00:00:00 | Q29: =Årsarbetsschema!Q31 -> 2 | R29: =Årsarbetsschema!R31 -> 5 | S29: =Årsarbetsschema!S31 -> 5 | T29: =Årsarbetsschema!T31 -> 1 | U29: =Årsarbetsschema!U31 -> 3 | V29: =Årsarbetsschema!V31 -> 6 | W29: =Årsarbetsschema!W31 -> 1 | X29: =Årsarbetsschema!X31 -> 4 | Y29: =Årsarbetsschema!Y31 -> 7 | Z29: =Årsarbetsschema!Z31 -> 2 | AA29: =Årsarbetsschema!AA31 -> 5 | AB29: =Årsarbetsschema!AB31 -> 7 | AD29: =Årsarbetsschema!C31 -> 0.3333333333 | AE29: =Årsarbetsschema!D31 -> 0.3333333333 | AF29: =Årsarbetsschema!E31 -> 0.3333333333 | AG29: =Årsarbetsschema!F31 -> 0.3333333333 | AH29: =Årsarbetsschema!G31 -> 0.3333333333 | AI29: =Årsarbetsschema!H31 -> 0 | AJ29: =Årsarbetsschema!I31 -> 0.3333333333 | AK29: =Årsarbetsschema!J31 -> 0.3333333333 | AL29: =Årsarbetsschema!K31 -> 0 | AM29: =Årsarbetsschema!L31 -> 0.3333333333 | AN29: =Årsarbetsschema!M31 -> 0.3333333333 | AO29: =Årsarbetsschema!N31 -> 0
B30: 28 | C30: =Januari!$I31 -> 00:00:00 | D30: =Februari!$I31 -> 00:00:00 | E30: =Mars!$I31 -> 00:00:00 | F30: =April!$I31 -> 00:00:00 | G30: =Maj!$I31 -> 00:00:00 | H30: =Juni!$I31 -> 00:00:00 | I30: =Juli!$I31 -> 00:00:00 | J30: =Augusti!$I31 -> 00:00:00 | K30: =September!$I31 -> 00:00:00 | L30: =Oktober!$I31 -> 00:00:00 | M30: =November!$I31 -> 00:00:00 | N30: =December!$I31 -> 00:00:00 | Q30: =Årsarbetsschema!Q32 -> 3 | R30: =Årsarbetsschema!R32 -> 6 | S30: =Årsarbetsschema!S32 -> 6 | T30: =Årsarbetsschema!T32 -> 2 | U30: =Årsarbetsschema!U32 -> 4 | V30: =Årsarbetsschema!V32 -> 7 | W30: =Årsarbetsschema!W32 -> 2 | X30: =Årsarbetsschema!X32 -> 5 | Y30: =Årsarbetsschema!Y32 -> 1 | Z30: =Årsarbetsschema!Z32 -> 3 | AA30: =Årsarbetsschema!AA32 -> 6 | AB30: =Årsarbetsschema!AB32 -> 1 | AD30: =Årsarbetsschema!C32 -> 0.3333333333 | AE30: =Årsarbetsschema!D32 -> 0 | AF30: =Årsarbetsschema!E32 -> 0 | AG30: =Årsarbetsschema!F32 -> 0.3333333333 | AH30: =Årsarbetsschema!G32 -> 0.3333333333 | AI30: =Årsarbetsschema!H32 -> 0 | AJ30: =Årsarbetsschema!I32 -> 0.3333333333 | AK30: =Årsarbetsschema!J32 -> 0.3333333333 | AL30: =Årsarbetsschema!K32 -> 0.3333333333 | AM30: =Årsarbetsschema!L32 -> 0.3333333333 | AN30: =Årsarbetsschema!M32 -> 0 | AO30: =Årsarbetsschema!N32 -> 0.3333333333
B31: 29 | C31: =Januari!$I32 -> 00:00:00 | E31: =Mars!$I32 -> 00:00:00 | F31: =April!$I32 -> 00:00:00 | G31: =Maj!$I32 -> 00:00:00 | H31: =Juni!$I32 -> 00:00:00 | I31: =Juli!$I32 -> 00:00:00 | J31: =Augusti!$I32 -> 00:00:00 | K31: =September!$I32 -> 00:00:00 | L31: =Oktober!$I32 -> 00:00:00 | M31: =November!$I32 -> 00:00:00 | N31: =December!$I32 -> 00:00:00 | Q31: =Årsarbetsschema!Q33 -> 4 | R31: =Årsarbetsschema!R33 -> 0 | S31: =Årsarbetsschema!S33 -> 7 | T31: =Årsarbetsschema!T33 -> 3 | U31: =Årsarbetsschema!U33 -> 5 | V31: =Årsarbetsschema!V33 -> 1 | W31: =Årsarbetsschema!W33 -> 3 | X31: =Årsarbetsschema!X33 -> 6 | Y31: =Årsarbetsschema!Y33 -> 2 | Z31: =Årsarbetsschema!Z33 -> 4 | AA31: =Årsarbetsschema!AA33 -> 7 | AB31: =Årsarbetsschema!AB33 -> 2 | AD31: =Årsarbetsschema!C33 -> 0.3333333333 | AE31: =Årsarbetsschema!D33 -> 0 | AF31: =Årsarbetsschema!E33 -> 0 | AG31: =Årsarbetsschema!F33 -> 0.3333333333 | AH31: =Årsarbetsschema!G33 -> 0.3333333333 | AI31: =Årsarbetsschema!H33 -> 0.3333333333 | AJ31: =Årsarbetsschema!I33 -> 0.3333333333 | AK31: =Årsarbetsschema!J33 -> 0 | AL31: =Årsarbetsschema!K33 -> 0.3333333333 | AM31: =Årsarbetsschema!L33 -> 0.3333333333 | AN31: =Årsarbetsschema!M33 -> 0 | AO31: =Årsarbetsschema!N33 -> 0.3333333333
B32: 30 | C32: =Januari!$I33 -> 00:00:00 | E32: =Mars!$I33 -> 00:00:00 | F32: =April!$I33 -> 00:00:00 | G32: =Maj!$I33 -> 00:00:00 | H32: =Juni!$I33 -> 00:00:00 | I32: =Juli!$I33 -> 00:00:00 | J32: =Augusti!$I33 -> 00:00:00 | K32: =September!$I33 -> 00:00:00 | L32: =Oktober!$I33 -> 00:00:00 | M32: =November!$I33 -> 00:00:00 | N32: =December!$I33 -> 00:00:00 | Q32: =Årsarbetsschema!Q34 -> 5 | S32: =Årsarbetsschema!S34 -> 1 | T32: =Årsarbetsschema!T34 -> 4 | U32: =Årsarbetsschema!U34 -> 6 | V32: =Årsarbetsschema!V34 -> 2 | W32: =Årsarbetsschema!W34 -> 4 | X32: =Årsarbetsschema!X34 -> 7 | Y32: =Årsarbetsschema!Y34 -> 3 | Z32: =Årsarbetsschema!Z34 -> 5 | AA32: =Årsarbetsschema!AA34 -> 1 | AB32: =Årsarbetsschema!AB34 -> 3 | AD32: =Årsarbetsschema!C34 -> 0.3333333333 | AE32: =Årsarbetsschema!D34 -> 0 | AF32: =Årsarbetsschema!E34 -> 0.3333333333 | AG32: =Årsarbetsschema!F34 -> 0.3333333333 | AH32: =Årsarbetsschema!G34 -> 0 | AI32: =Årsarbetsschema!H34 -> 0.3333333333 | AJ32: =Årsarbetsschema!I34 -> 0.3333333333 | AK32: =Årsarbetsschema!J34 -> 0 | AL32: =Årsarbetsschema!K34 -> 0.3333333333 | AM32: =Årsarbetsschema!L34 -> 0.3333333333 | AN32: =Årsarbetsschema!M34 -> 0.3333333333 | AO32: =Årsarbetsschema!N34 -> 0.3333333333
B33: 31 | C33: =Januari!$I34 -> 00:00:00 | E33: =Mars!$I34 -> 00:00:00 | G33: =Maj!$I34 -> 00:00:00 | I33: =Juli!$I34 -> 00:00:00 | J33: =Augusti!$I34 -> 00:00:00 | L33: =Oktober!$I34 -> 00:00:00 | N33: =December!$I34 -> 00:00:00 | Q33: =Årsarbetsschema!Q35 -> 6 | S33: =Årsarbetsschema!S35 -> 2 | U33: =Årsarbetsschema!U35 -> 7 | W33: =Årsarbetsschema!W35 -> 5 | X33: =Årsarbetsschema!X35 -> 1 | Z33: =Årsarbetsschema!Z35 -> 6 | AB33: =Årsarbetsschema!AB35 -> -1 | AD33: =Årsarbetsschema!C35 -> 0 | AE33: =Årsarbetsschema!D35 -> 0 | AF33: =Årsarbetsschema!E35 -> 0.3333333333 | AG33: =Årsarbetsschema!F35 -> 0 | AH33: =Årsarbetsschema!G35 -> 0 | AI33: =Årsarbetsschema!H35 -> 0 | AJ33: =Årsarbetsschema!I35 -> 0.3333333333 | AK33: =Årsarbetsschema!J35 -> 0.3333333333 | AL33: =Årsarbetsschema!K35 -> 0 | AM33: =Årsarbetsschema!L35 -> 0 | AN33: =Årsarbetsschema!M35 -> 0 | AO33: =Årsarbetsschema!N35 -> 0
B35: Arbetat | C35: =SUM(C3:C33)*24 -> 0 | D35: =SUM(D3:D30)*24 -> 0 | E35: =SUM(E3:E33)*24 -> 0 | F35: 0 | G35: 0 | H35: 0 | I35: 0 | J35: 0 | K35: 0 | L35: 0 | M35: 0 | N35: 0 | O35: =SUM(C35:N35) -> 0
B36: Planerat | C36: =Årsarbetsschema!C37 -> 160 | D36: =Årsarbetsschema!D37 -> 160 | E36: =Årsarbetsschema!E37 -> 176 | F36: =Årsarbetsschema!F37 -> 160 | G36: =Årsarbetsschema!G37 -> 152 | H36: =Årsarbetsschema!H37 -> 168 | I36: =Årsarbetsschema!I37 -> 184 | J36: =Årsarbetsschema!J37 -> 168 | K36: =Årsarbetsschema!K37 -> 176 | L36: =Årsarbetsschema!L37 -> 176 | M36: =Årsarbetsschema!M37 -> 168 | N36: =Årsarbetsschema!N37 -> 160 | O36: =SUM(C36:N36) -> 2008
B37: Flex | C37: =Januari!$O$35*24 -> 0 | D37: =Februari!$O$35*24 -> 0 | E37: =Mars!$O$35*24 -> 0 | F37: =April!$O$35*24 -> 0 | G37: =Maj!$O$35*24 -> 0 | H37: =Juni!$O$35*24 -> 0 | I37: =Juli!$O$35*24 -> 0 | J37: =Augusti!$O$35*24 -> 0 | K37: =September!$O$35*24 -> 0 | L37: =Oktober!$O$35*24 -> 0 | M37: =November!$O$35*24 -> 0 | N37: =December!$O$35*24 -> 0 | O37: =O35-O36 -> -2008
B38: Total flex | C38: =Januari!$O$36*24 -> 0 | D38: =IF(D35>0,C38+D37,0) -> 0 | E38: =IF(E35>0,D38+E37,0) -> 0 | F38: 0 | G38: 0 | H38: 0 | I38: 0 | J38: 0 | K38: 0 | L38: 0 | M38: 0 | N38: 0 | AD38: =Januari!C4 -> 0 | AE38: =Februari!C4 -> 0 | AF38: =Mars!C4 -> 0 | AG38: =April!C4 -> 0 | AH38: =Maj!C4 -> 0 | AI38: =Juni!C4 -> 0 | AJ38: =Juli!C4 -> 0 | AK38: =Augusti!C4 -> 0 | AL38: =September!C4 -> 0 | AM38: =Oktober!C4 -> 0 | AN38: =November!C4 -> 0 | AO38: =December!C4 -> 0
AD39: =Januari!C5 -> 0 | AE39: =Februari!C5 -> 0 | AF39: =Mars!C5 -> 0 | AG39: =April!C5 -> 0 | AH39: =Maj!C5 -> 0 | AI39: =Juni!C5 -> 0 | AJ39: =Juli!C5 -> 0 | AK39: =Augusti!C5 -> 0 | AL39: =September!C5 -> 0 | AM39: =Oktober!C5 -> 0 | AN39: =November!C5 -> 0 | AO39: =December!C5 -> 0
J40: Semesterdagar | K40: =SUM(AD69:AO69) -> 0 | M40: Avtals.helgdagar | N40: =Årsarbetsschema!$J$40 -> 11 | AD40: =Januari!C6 -> 0 | AE40: =Februari!C6 -> 0 | AF40: =Mars!C6 -> 0 | AG40: =April!C6 -> 0 | AH40: =Maj!C6 -> 0 | AI40: =Juni!C6 -> 0 | AJ40: =Juli!C6 -> 0 | AK40: =Augusti!C6 -> 0 | AL40: =September!C6 -> 0 | AM40: =Oktober!C6 -> 0 | AN40: =November!C6 -> 0 | AO40: =December!C6 -> 0
M41: Mindre än planerat | N41: =Årsarbetsschema!D39-0.01 -> 07:45:36 | AD41: =Januari!C7 -> 0 | AE41: =Februari!C7 -> 0 | AF41: =Mars!C7 -> 0 | AG41: =April!C7 -> 0 | AH41: =Maj!C7 -> 0 | AI41: =Juni!C7 -> 0 | AJ41: =Juli!C7 -> 0 | AK41: =Augusti!C7 -> 0 | AL41: =September!C7 -> 0 | AM41: =Oktober!C7 -> 0 | AN41: =November!C7 -> 0 | AO41: =December!C7 -> 0
M42: Mer än planerat | N42: =Årsarbetsschema!D39+0.01 -> 08:14:24 | AD42: =Januari!C8 -> 0 | AE42: =Februari!C8 -> 0 | AF42: =Mars!C8 -> 0 | AG42: =April!C8 -> 0 | AH42: =Maj!C8 -> 0 | AI42: =Juni!C8 -> 0 | AJ42: =Juli!C8 -> 0 | AK42: =Augusti!C8 -> 0 | AL42: =September!C8 -> 0 | AM42: =Oktober!C8 -> 0 | AN42: =November!C8 -> 0 | AO42: =December!C8 -> 0
C43: =IF(Uppgifter!$C$6="","",Uppgifter!$C$6) ->  | AD43: =Januari!C9 -> 0 | AE43: =Februari!C9 -> 0 | AF43: =Mars!C9 -> 0 | AG43: =April!C9 -> 0 | AH43: =Maj!C9 -> 0 | AI43: =Juni!C9 -> 0 | AJ43: =Juli!C9 -> 0 | AK43: =Augusti!C9 -> 0 | AL43: =September!C9 -> 0 | AM43: =Oktober!C9 -> 0 | AN43: =November!C9 -> 0 | AO43: =December!C9 -> 0
AD44: =Januari!C10 -> 0 | AE44: =Februari!C10 -> 0 | AF44: =Mars!C10 -> 0 | AG44: =April!C10 -> 0 | AH44: =Maj!C10 -> 0 | AI44: =Juni!C10 -> 0 | AJ44: =Juli!C10 -> 0 | AK44: =Augusti!C10 -> 0 | AL44: =September!C10 -> 0 | AM44: =Oktober!C10 -> 0 | AN44: =November!C10 -> 0 | AO44: =December!C10 -> 0
AD45: =Januari!C11 -> 0 | AE45: =Februari!C11 -> 0 | AF45: =Mars!C11 -> 0 | AG45: =April!C11 -> 0 | AH45: =Maj!C11 -> 0 | AI45: =Juni!C11 -> 0 | AJ45: =Juli!C11 -> 0 | AK45: =Augusti!C11 -> 0 | AL45: =September!C11 -> 0 | AM45: =Oktober!C11 -> 0 | AN45: =November!C11 -> 0 | AO45: =December!C11 -> 0
AD46: =Januari!C12 -> 0 | AE46: =Februari!C12 -> 0 | AF46: =Mars!C12 -> 0 | AG46: =April!C12 -> 0 | AH46: =Maj!C12 -> 0 | AI46: =Juni!C12 -> 0 | AJ46: =Juli!C12 -> 0 | AK46: =Augusti!C12 -> 0 | AL46: =September!C12 -> 0 | AM46: =Oktober!C12 -> 0 | AN46: =November!C12 -> 0 | AO46: =December!C12 -> 0
AD47: =Januari!C13 -> 0 | AE47: =Februari!C13 -> 0 | AF47: =Mars!C13 -> 0 | AG47: =April!C13 -> 0 | AH47: =Maj!C13 -> 0 | AI47: =Juni!C13 -> 0 | AJ47: =Juli!C13 -> 0 | AK47: =Augusti!C13 -> 0 | AL47: =September!C13 -> 0 | AM47: =Oktober!C13 -> 0 | AN47: =November!C13 -> 0 | AO47: =December!C13 -> 0
AD48: =Januari!C14 -> 0 | AE48: =Februari!C14 -> 0 | AF48: =Mars!C14 -> 0 | AG48: =April!C14 -> 0 | AH48: =Maj!C14 -> 0 | AI48: =Juni!C14 -> 0 | AJ48: =Juli!C14 -> 0 | AK48: =Augusti!C14 -> 0 | AL48: =September!C14 -> 0 | AM48: =Oktober!C14 -> 0 | AN48: =November!C14 -> 0 | AO48: =December!C14 -> 0
AD49: =Januari!C15 -> 0 | AE49: =Februari!C15 -> 0 | AF49: =Mars!C15 -> 0 | AG49: =April!C15 -> 0 | AH49: =Maj!C15 -> 0 | AI49: =Juni!C15 -> 0 | AJ49: =Juli!C15 -> 0 | AK49: =Augusti!C15 -> 0 | AL49: =September!C15 -> 0 | AM49: =Oktober!C15 -> 0 | AN49: =November!C15 -> 0 | AO49: =December!C15 -> 0
AD50: =Januari!C16 -> 0 | AE50: =Februari!C16 -> 0 | AF50: =Mars!C16 -> 0 | AG50: =April!C16 -> 0 | AH50: =Maj!C16 -> 0 | AI50: =Juni!C16 -> 0 | AJ50: =Juli!C16 -> 0 | AK50: =Augusti!C16 -> 0 | AL50: =September!C16 -> 0 | AM50: =Oktober!C16 -> 0 | AN50: =November!C16 -> 0 | AO50: =December!C16 -> 0
AD51: =Januari!C17 -> 0 | AE51: =Februari!C17 -> 0 | AF51: =Mars!C17 -> 0 | AG51: =April!C17 -> 0 | AH51: =Maj!C17 -> 0 | AI51: =Juni!C17 -> 0 | AJ51: =Juli!C17 -> 0 | AK51: =Augusti!C17 -> 0 | AL51: =September!C17 -> 0 | AM51: =Oktober!C17 -> 0 | AN51: =November!C17 -> 0 | AO51: =December!C17 -> 0
AD52: =Januari!C18 -> 0 | AE52: =Februari!C18 -> 0 | AF52: =Mars!C18 -> 0 | AG52: =April!C18 -> 0 | AH52: =Maj!C18 -> 0 | AI52: =Juni!C18 -> 0 | AJ52: =Juli!C18 -> 0 | AK52: =Augusti!C18 -> 0 | AL52: =September!C18 -> 0 | AM52: =Oktober!C18 -> 0 | AN52: =November!C18 -> 0 | AO52: =December!C18 -> 0
AD53: =Januari!C19 -> 0 | AE53: =Februari!C19 -> 0 | AF53: =Mars!C19 -> 0 | AG53: =April!C19 -> 0 | AH53: =Maj!C19 -> 0 | AI53: =Juni!C19 -> 0 | AJ53: =Juli!C19 -> 0 | AK53: =Augusti!C19 -> 0 | AL53: =September!C19 -> 0 | AM53: =Oktober!C19 -> 0 | AN53: =November!C19 -> 0 | AO53: =December!C19 -> 0
AD54: =Januari!C20 -> 0 | AE54: =Februari!C20 -> 0 | AF54: =Mars!C20 -> 0 | AG54: =April!C20 -> 0 | AH54: =Maj!C20 -> 0 | AI54: =Juni!C20 -> 0 | AJ54: =Juli!C20 -> 0 | AK54: =Augusti!C20 -> 0 | AL54: =September!C20 -> 0 | AM54: =Oktober!C20 -> 0 | AN54: =November!C20 -> 0 | AO54: =December!C20 -> 0
AD55: =Januari!C21 -> 0 | AE55: =Februari!C21 -> 0 | AF55: =Mars!C21 -> 0 | AG55: =April!C21 -> 0 | AH55: =Maj!C21 -> 0 | AI55: =Juni!C21 -> 0 | AJ55: =Juli!C21 -> 0 | AK55: =Augusti!C21 -> 0 | AL55: =September!C21 -> 0 | AM55: =Oktober!C21 -> 0 | AN55: =November!C21 -> 0 | AO55: =December!C21 -> 0
AD56: =Januari!C22 -> 0 | AE56: =Februari!C22 -> 0 | AF56: =Mars!C22 -> 0 | AG56: =April!C22 -> 0 | AH56: =Maj!C22 -> 0 | AI56: =Juni!C22 -> 0 | AJ56: =Juli!C22 -> 0 | AK56: =Augusti!C22 -> 0 | AL56: =September!C22 -> 0 | AM56: =Oktober!C22 -> 0 | AN56: =November!C22 -> 0 | AO56: =December!C22 -> 0
AD57: =Januari!C23 -> 0 | AE57: =Februari!C23 -> 0 | AF57: =Mars!C23 -> 0 | AG57: =April!C23 -> 0 | AH57: =Maj!C23 -> 0 | AI57: =Juni!C23 -> 0 | AJ57: =Juli!C23 -> 0 | AK57: =Augusti!C23 -> 0 | AL57: =September!C23 -> 0 | AM57: =Oktober!C23 -> 0 | AN57: =November!C23 -> 0 | AO57: =December!C23 -> 0
AD58: =Januari!C24 -> 0 | AE58: =Februari!C24 -> 0 | AF58: =Mars!C24 -> 0 | AG58: =April!C24 -> 0 | AH58: =Maj!C24 -> 0 | AI58: =Juni!C24 -> 0 | AJ58: =Juli!C24 -> 0 | AK58: =Augusti!C24 -> 0 | AL58: =September!C24 -> 0 | AM58: =Oktober!C24 -> 0 | AN58: =November!C24 -> 0 | AO58: =December!C24 -> 0
AD59: =Januari!C25 -> 0 | AE59: =Februari!C25 -> 0 | AF59: =Mars!C25 -> 0 | AG59: =April!C25 -> 0 | AH59: =Maj!C25 -> 0 | AI59: =Juni!C25 -> 0 | AJ59: =Juli!C25 -> 0 | AK59: =Augusti!C25 -> 0 | AL59: =September!C25 -> 0 | AM59: =Oktober!C25 -> 0 | AN59: =November!C25 -> 0 | AO59: =December!C25 -> 0
AD60: =Januari!C26 -> 0 | AE60: =Februari!C26 -> 0 | AF60: =Mars!C26 -> 0 | AG60: =April!C26 -> 0 | AH60: =Maj!C26 -> 0 | AI60: =Juni!C26 -> 0 | AJ60: =Juli!C26 -> 0 | AK60: =Augusti!C26 -> 0 | AL60: =September!C26 -> 0 | AM60: =Oktober!C26 -> 0 | AN60: =November!C26 -> 0 | AO60: =December!C26 -> 0
AD61: =Januari!C27 -> 0 | AE61: =Februari!C27 -> 0 | AF61: =Mars!C27 -> 0 | AG61: =April!C27 -> 0 | AH61: =Maj!C27 -> 0 | AI61: =Juni!C27 -> 0 | AJ61: =Juli!C27 -> 0 | AK61: =Augusti!C27 -> 0 | AL61: =September!C27 -> 0 | AM61: =Oktober!C27 -> 0 | AN61: =November!C27 -> 0 | AO61: =December!C27 -> 0
AD62: =Januari!C28 -> 0 | AE62: =Februari!C28 -> 0 | AF62: =Mars!C28 -> 0 | AG62: =April!C28 -> 0 | AH62: =Maj!C28 -> 0 | AI62: =Juni!C28 -> 0 | AJ62: =Juli!C28 -> 0 | AK62: =Augusti!C28 -> 0 | AL62: =September!C28 -> 0 | AM62: =Oktober!C28 -> 0 | AN62: =November!C28 -> 0 | AO62: =December!C28 -> 0
AD63: =Januari!C29 -> 0 | AE63: =Februari!C29 -> 0 | AF63: =Mars!C29 -> 0 | AG63: =April!C29 -> 0 | AH63: =Maj!C29 -> 0 | AI63: =Juni!C29 -> 0 | AJ63: =Juli!C29 -> 0 | AK63: =Augusti!C29 -> 0 | AL63: =September!C29 -> 0 | AM63: =Oktober!C29 -> 0 | AN63: =November!C29 -> 0 | AO63: =December!C29 -> 0
AD64: =Januari!C30 -> 0 | AE64: =Februari!C30 -> 0 | AF64: =Mars!C30 -> 0 | AG64: =April!C30 -> 0 | AH64: =Maj!C30 -> 0 | AI64: =Juni!C30 -> 0 | AJ64: =Juli!C30 -> 0 | AK64: =Augusti!C30 -> 0 | AL64: =September!C30 -> 0 | AM64: =Oktober!C30 -> 0 | AN64: =November!C30 -> 0 | AO64: =December!C30 -> 0
AD65: =Januari!C31 -> 0 | AE65: =Februari!C31 -> 0 | AF65: =Mars!C31 -> 0 | AG65: =April!C31 -> 0 | AH65: =Maj!C31 -> 0 | AI65: =Juni!C31 -> 0 | AJ65: =Juli!C31 -> 0 | AK65: =Augusti!C31 -> 0 | AL65: =September!C31 -> 0 | AM65: =Oktober!C31 -> 0 | AN65: =November!C31 -> 0 | AO65: =December!C31 -> 0
AD66: =Januari!C32 -> 0 | AE66: =Februari!#REF! ->  | AF66: =Mars!C32 -> 0 | AG66: =April!C32 -> 0 | AH66: =Maj!C32 -> 0 | AI66: =Juni!C32 -> 0 | AJ66: =Juli!C32 -> 0 | AK66: =Augusti!C32 -> 0 | AL66: =September!C32 -> 0 | AM66: =Oktober!C32 -> 0 | AN66: =November!C32 -> 0 | AO66: =December!C32 -> 0
AD67: =Januari!C33 -> 0 | AE67: =Februari!C32 -> 0 | AF67: =Mars!C33 -> 0 | AG67: =April!C33 -> 0 | AH67: =Maj!C33 -> 0 | AI67: =Juni!C33 -> 0 | AJ67: =Juli!C33 -> 0 | AK67: =Augusti!C33 -> 0 | AL67: =September!C33 -> 0 | AM67: =Oktober!C33 -> 0 | AN67: =November!C33 -> 0 | AO67: =December!C33 -> 0
AD68: =Januari!C34 -> 0 | AE68: =Februari!C34 -> 0 | AF68: =Mars!C34 -> 0 | AG68: =April!C34 -> 0 | AH68: =Maj!C34 -> 0 | AI68: =Juni!C34 -> 0 | AJ68: =Juli!C34 -> 0 | AK68: =Augusti!C34 -> 0 | AL68: =September!C34 -> 0 | AM68: =Oktober!C34 -> 0 | AN68: =November!C34 -> 0 | AO68: =December!C34 -> 0
AD69: =COUNTIF(AD38:AD68,"=Se") -> 0 | AE69: =COUNTIF(AE38:AE68,"=Se") -> 0 | AF69: 0 | AG69: 0 | AH69: 0 | AI69: 0 | AJ69: 0 | AK69: 0 | AL69: 0 | AM69: 0 | AN69: 0 | AO69: 0

Sheet Januari
B1: =PROPER(TEXT(B4,"MMMM ÅÅÅÅ")) -> Januari 2026 | F1: =IF(Uppgifter!$C$6="","",Uppgifter!$C$6) ->  | N1: Dagsumma | O1: Dagbalans | P1: Vdag
B3: Datum | C3: Kod | D3: In | E3: Ut | F3: Lunch | G3: Planerat | H3: Ledighet | I3: Arbetstid | K3: Flextid | L3: Anteckningar | O3: =IF(Uppgifter!D12<>"",Uppgifter!D12,Uppgifter!D13*-1) -> 0
B4: =DATEVALUE(Uppgifter!C4 & "-01-01") -> 2026-01-01 | I4: =IF(N4<0,-N4,N4) -> 0 | J4: =IF(O4>=0,"+","-") -> + | K4: =IF(O4<0,-O4,O4) -> 0 | N4: =IF(E4>0,E4-D4-F4-H4,IF(C4="",0,IF(C4="F",0,Årsarbetsschema!$C5))) -> 0 | O4: =ROUND(IF(N4>0,I4-G4,IF(C4="F",I4-G4,0)),15) -> 0 | P4: =Årsarbetsschema!Q5 -> -1 | Q4: F
B5: =B4+1 -> 2026-01-02 | I5: =IF(N5<0,-N5,N5) -> 0 | J5: + | K5: 0 | N5: =IF(E5>0,E5-D5-F5-H5,IF(C5="",0,IF(C5="F",0,Årsarbetsschema!$C6))) -> 0 | O5: 0 | P5: =Årsarbetsschema!Q6 -> 5 | Q5: Se
B6: =B5+1 -> 2026-01-03 | I6: 0 | J6: + | K6: 0 | N6: =IF(E6>0,E6-D6-F6-H6,IF(C6="",0,IF(C6="F",0,Årsarbetsschema!$C7))) -> 0 | O6: 0 | P6: =Årsarbetsschema!Q7 -> 6 | Q6: Sj
B7: 2026-01-04 | I7: 0 | J7: + | K7: 0 | N7: =IF(E7>0,E7-D7-F7-H7,IF(C7="",0,IF(C7="F",0,Årsarbetsschema!$C8))) -> 0 | O7: 0 | P7: =Årsarbetsschema!Q8 -> 7 | Q7: Tj
B8: 2026-01-05 | I8: 0 | J8: + | K8: 0 | N8: =IF(E8>0,E8-D8-F8-H8,IF(C8="",0,IF(C8="F",0,Årsarbetsschema!$C9))) -> 0 | O8: 0 | P8: =Årsarbetsschema!Q9 -> 1 | Q8: VB
B9: 2026-01-06 | I9: 0 | J9: + | K9: 0 | N9: =IF(E9>0,E9-D9-F9-H9,IF(C9="",0,IF(C9="F",0,Årsarbetsschema!$C10))) -> 0 | O9: 0 | P9: =Årsarbetsschema!Q10 -> -1 | Q9: FL
B10: 2026-01-07 | I10: 0 | J10: + | K10: 0 | N10: =IF(E10>0,E10-D10-F10-H10,IF(C10="",0,IF(C10="F",0,Årsarbetsschema!$C11))) -> 0 | O10: 0 | P10: =Årsarbetsschema!Q11 -> 3
B11: 2026-01-08 | I11: 0 | J11: + | K11: 0 | N11: =IF(E11>0,E11-D11-F11-H11,IF(C11="",0,IF(C11="F",0,Årsarbetsschema!$C12))) -> 0 | O11: 0 | P11: =Årsarbetsschema!Q12 -> 4
B12: 2026-01-09 | I12: 0 | J12: + | K12: 0 | N12: =IF(E12>0,E12-D12-F12-H12,IF(C12="",0,IF(C12="F",0,Årsarbetsschema!$C13))) -> 0 | O12: 0 | P12: =Årsarbetsschema!Q13 -> 5
B13: 2026-01-10 | I13: 0 | J13: + | K13: 0 | N13: =IF(E13>0,E13-D13-F13-H13,IF(C13="",0,IF(C13="F",0,Årsarbetsschema!$C14))) -> 0 | O13: 0 | P13: =Årsarbetsschema!Q14 -> 6
B14: 2026-01-11 | I14: 0 | J14: + | K14: 0 | N14: =IF(E14>0,E14-D14-F14-H14,IF(C14="",0,IF(C14="F",0,Årsarbetsschema!$C15))) -> 0 | O14: 0 | P14: =Årsarbetsschema!Q15 -> 7
B15: 2026-01-12 | I15: 0 | J15: + | K15: 0 | N15: =IF(E15>0,E15-D15-F15-H15,IF(C15="",0,IF(C15="F",0,Årsarbetsschema!$C16))) -> 0 | O15: 0 | P15: =Årsarbetsschema!Q16 -> 1
B16: 2026-01-13 | I16: 0 | J16: + | K16: 0 | N16: =IF(E16>0,E16-D16-F16-H16,IF(C16="",0,IF(C16="F",0,Årsarbetsschema!$C17))) -> 0 | O16: 0 | P16: =Årsarbetsschema!Q17 -> 2
B17: 2026-01-14 | I17: 0 | J17: + | K17: 0 | N17: =IF(E17>0,E17-D17-F17-H17,IF(C17="",0,IF(C17="F",0,Årsarbetsschema!$C18))) -> 0 | O17: 0 | P17: =Årsarbetsschema!Q18 -> 3
B18: 2026-01-15 | I18: 0 | J18: + | K18: 0 | N18: =IF(E18>0,E18-D18-F18-H18,IF(C18="",0,IF(C18="F",0,Årsarbetsschema!$C19))) -> 0 | O18: 0 | P18: =Årsarbetsschema!Q19 -> 4
B19: 2026-01-16 | I19: 0 | J19: + | K19: 0 | N19: =IF(E19>0,E19-D19-F19-H19,IF(C19="",0,IF(C19="F",0,Årsarbetsschema!$C20))) -> 0 | O19: 0 | P19: =Årsarbetsschema!Q20 -> 5
B20: 2026-01-17 | I20: 0 | J20: + | K20: 0 | N20: =IF(E20>0,E20-D20-F20-H20,IF(C20="",0,IF(C20="F",0,Årsarbetsschema!$C21))) -> 0 | O20: 0 | P20: =Årsarbetsschema!Q21 -> 6
B21: 2026-01-18 | I21: 0 | J21: + | K21: 0 | N21: =IF(E21>0,E21-D21-F21-H21,IF(C21="",0,IF(C21="F",0,Årsarbetsschema!$C22))) -> 0 | O21: 0 | P21: =Årsarbetsschema!Q22 -> 7
B22: 2026-01-19 | I22: 0 | J22: + | K22: 0 | N22: =IF(E22>0,E22-D22-F22-H22,IF(C22="",0,IF(C22="F",0,Årsarbetsschema!$C23))) -> 0 | O22: 0 | P22: =Årsarbetsschema!Q23 -> 1
B23: 2026-01-20 | I23: 0 | J23: + | K23: 0 | N23: =IF(E23>0,E23-D23-F23-H23,IF(C23="",0,IF(C23="F",0,Årsarbetsschema!$C24))) -> 0 | O23: 0 | P23: =Årsarbetsschema!Q24 -> 2
B24: 2026-01-21 | I24: 0 | J24: + | K24: 0 | N24: =IF(E24>0,E24-D24-F24-H24,IF(C24="",0,IF(C24="F",0,Årsarbetsschema!$C25))) -> 0 | O24: 0 | P24: =Årsarbetsschema!Q25 -> 3
B25: 2026-01-22 | I25: 0 | J25: + | K25: 0 | N25: =IF(E25>0,E25-D25-F25-H25,IF(C25="",0,IF(C25="F",0,Årsarbetsschema!$C26))) -> 0 | O25: 0 | P25: =Årsarbetsschema!Q26 -> 4
B26: 2026-01-23 | I26: 0 | J26: + | K26: 0 | N26: =IF(E26>0,E26-D26-F26-H26,IF(C26="",0,IF(C26="F",0,Årsarbetsschema!$C27))) -> 0 | O26: 0 | P26: =Årsarbetsschema!Q27 -> 5
B27: 2026-01-24 | I27: 0 | J27: + | K27: 0 | N27: =IF(E27>0,E27-D27-F27-H27,IF(C27="",0,IF(C27="F",0,Årsarbetsschema!$C28))) -> 0 | O27: 0 | P27: =Årsarbetsschema!Q28 -> 6
B28: 2026-01-25 | I28: 0 | J28: + | K28: 0 | N28: =IF(E28>0,E28-D28-F28-H28,IF(C28="",0,IF(C28="F",0,Årsarbetsschema!$C29))) -> 0 | O28: 0 | P28: =Årsarbetsschema!Q29 -> 7
B29: 2026-01-26 | I29: 0 | J29: + | K29: 0 | N29: =IF(E29>0,E29-D29-F29-H29,IF(C29="",0,IF(C29="F",0,Årsarbetsschema!$C30))) -> 0 | O29: 0 | P29: =Årsarbetsschema!Q30 -> 1
B30: 2026-01-27 | I30: 0 | J30: + | K30: 0 | N30: =IF(E30>0,E30-D30-F30-H30,IF(C30="",0,IF(C30="F",0,Årsarbetsschema!$C31))) -> 0 | O30: 0 | P30: =Årsarbetsschema!Q31 -> 2
B31: 2026-01-28 | I31: 0 | J31: + | K31: 0 | N31: =IF(E31>0,E31-D31-F31-H31,IF(C31="",0,IF(C31="F",0,Årsarbetsschema!$C32))) -> 0 | O31: 0 | P31: =Årsarbetsschema!Q32 -> 3
B32: 2026-01-29 | I32: 0 | J32: + | K32: 0 | N32: =IF(E32>0,E32-D32-F32-H32,IF(C32="",0,IF(C32="F",0,Årsarbetsschema!$C33))) -> 0 | O32: 0 | P32: =Årsarbetsschema!Q33 -> 4
B33: 2026-01-30 | I33: 0 | J33: + | K33: 0 | N33: =IF(E33>0,E33-D33-F33-H33,IF(C33="",0,IF(C33="F",0,Årsarbetsschema!$C34))) -> 0 | O33: 0 | P33: =Årsarbetsschema!Q34 -> 5
B34: 2026-01-31 | I34: 0 | J34: + | K34: 0 | N34: =IF(E34>0,E34-D34-F34-H34,IF(C34="",0,IF(C34="F",0,Årsarbetsschema!$C35))) -> 0 | O34: 0 | P34: =Årsarbetsschema!Q35 -> 6
H35: Månad | I35: =IF(N35<0,-N35,N35) -> 0 | J35: =IF(O35>=0,"+","-") -> + | K35: =IF(O35<0,-O35,O35) -> 0 | N35: =SUM(N4:N34) -> 0 | O35: =SUM(O4:O34) -> 0
H36: Totalt | I36: 0 | J36: + | K36: =IF(O36<0,-O36,O36) -> 0 | N36: =N35 -> 0 | O36: =O35+O3 -> 0
J37: = | K37: =O36*24 -> 0
B38: =IF(Uppgifter!$C$6="","",Uppgifter!$C$6) -> 

Sheet Februari
B1: =PROPER(TEXT(B4,"MMMM ÅÅÅÅ")) -> Februari 2026 | G1: =IF(Uppgifter!$C$6="","",Uppgifter!$C$6) -> 
N2: Dagsumma | O2: Dagbalans | P2: Vdag
B3: Datum | C3: Kod | D3: In | E3: Ut | F3: Lunch | G3: Planerat | H3: Ledighet | I3: Arbetstid | K3: Flextid | L3: Anteckningar | N3: =Januari!N36 -> 0 | O3: =Januari!O36 -> 0
B4: =DATEVALUE(Uppgifter!C4 & "-02-01") -> 2026-02-01 | I4: =IF(N4<0,-N4,N4) -> 0 | J4: =IF(O4>=0,"+","-") -> + | K4: =IF(O4<0,-O4,O4) -> 0 | N4: =IF(E4>0,E4-D4-F4-H4,IF(C4="",0,IF(C4="F",0,Årsarbetsschema!$D5))) -> 0 | O4: =ROUND(IF(N4>0,I4-G4,IF(C4="F",I4-G4,0)),15) -> 0 | P4: =Årsarbetsschema!R5 -> 7 | Q4: F
B5: =B4+1 -> 2026-02-02 | I5: =IF(N5<0,-N5,N5) -> 0 | J5: + | K5: 0 | N5: =IF(E5>0,E5-D5-F5-H5,IF(C5="",0,IF(C5="F",0,Årsarbetsschema!$D6))) -> 0 | O5: 0 | P5: =Årsarbetsschema!R6 -> 1 | Q5: Se
B6: =B5+1 -> 2026-02-03 | I6: 0 | J6: + | K6: 0 | N6: =IF(E6>0,E6-D6-F6-H6,IF(C6="",0,IF(C6="F",0,Årsarbetsschema!$D7))) -> 0 | O6: 0 | P6: =Årsarbetsschema!R7 -> 2 | Q6: Sj
B7: 2026-02-04 | I7: 0 | J7: + | K7: 0 | N7: =IF(E7>0,E7-D7-F7-H7,IF(C7="",0,IF(C7="F",0,Årsarbetsschema!$D8))) -> 0 | O7: 0 | P7: =Årsarbetsschema!R8 -> 3 | Q7: Tj
B8: 2026-02-05 | I8: 0 | J8: + | K8: 0 | N8: =IF(E8>0,E8-D8-F8-H8,IF(C8="",0,IF(C8="F",0,Årsarbetsschema!$D9))) -> 0 | O8: 0 | P8: =Årsarbetsschema!R9 -> 4 | Q8: VB
B9: 2026-02-06 | I9: 0 | J9: + | K9: 0 | N9: =IF(E9>0,E9-D9-F9-H9,IF(C9="",0,IF(C9="F",0,Årsarbetsschema!$D10))) -> 0 | O9: 0 | P9: =Årsarbetsschema!R10 -> 5 | Q9: FL
B10: 2026-02-07 | I10: 0 | J10: + | K10: 0 | N10: =IF(E10>0,E10-D10-F10-H10,IF(C10="",0,IF(C10="F",0,Årsarbetsschema!$D11))) -> 0 | O10: 0 | P10: =Årsarbetsschema!R11 -> 6
B11: 2026-02-08 | I11: 0 | J11: + | K11: 0 | N11: =IF(E11>0,E11-D11-F11-H11,IF(C11="",0,IF(C11="F",0,Årsarbetsschema!$D12))) -> 0 | O11: 0 | P11: =Årsarbetsschema!R12 -> 7
B12: 2026-02-09 | I12: 0 | J12: + | K12: 0 | N12: =IF(E12>0,E12-D12-F12-H12,IF(C12="",0,IF(C12="F",0,Årsarbetsschema!$D13))) -> 0 | O12: 0 | P12: =Årsarbetsschema!R13 -> 1
B13: 2026-02-10 | I13: 0 | J13: + | K13: 0 | N13: =IF(E13>0,E13-D13-F13-H13,IF(C13="",0,IF(C13="F",0,Årsarbetsschema!$D14))) -> 0 | O13: 0 | P13: =Årsarbetsschema!R14 -> 2
B14: 2026-02-11 | I14: 0 | J14: + | K14: 0 | N14: =IF(E14>0,E14-D14-F14-H14,IF(C14="",0,IF(C14="F",0,Årsarbetsschema!$D15))) -> 0 | O14: 0 | P14: =Årsarbetsschema!R15 -> 3
B15: 2026-02-12 | I15: 0 | J15: + | K15: 0 | N15: =IF(E15>0,E15-D15-F15-H15,IF(C15="",0,IF(C15="F",0,Årsarbetsschema!$D16))) -> 0 | O15: 0 | P15: =Årsarbetsschema!R16 -> 4
B16: 2026-02-13 | I16: 0 | J16: + | K16: 0 | N16: =IF(E16>0,E16-D16-F16-H16,IF(C16="",0,IF(C16="F",0,Årsarbetsschema!$D17))) -> 0 | O16: 0 | P16: =Årsarbetsschema!R17 -> 5
B17: 2026-02-14 | I17: 0 | J17: + | K17: 0 | N17: =IF(E17>0,E17-D17-F17-H17,IF(C17="",0,IF(C17="F",0,Årsarbetsschema!$D18))) -> 0 | O17: 0 | P17: =Årsarbetsschema!R18 -> 6
B18: 2026-02-15 | I18: 0 | J18: + | K18: 0 | N18: =IF(E18>0,E18-D18-F18-H18,IF(C18="",0,IF(C18="F",0,Årsarbetsschema!$D19))) -> 0 | O18: 0 | P18: =Årsarbetsschema!R19 -> 7
B19: 2026-02-16 | I19: 0 | J19: + | K19: 0 | N19: =IF(E19>0,E19-D19-F19-H19,IF(C19="",0,IF(C19="F",0,Årsarbetsschema!$D20))) -> 0 | O19: 0 | P19: =Årsarbetsschema!R20 -> 1
B20: 2026-02-17 | I20: 0 | J20: + | K20: 0 | N20: =IF(E20>0,E20-D20-F20-H20,IF(C20="",0,IF(C20="F",0,Årsarbetsschema!$D21))) -> 0 | O20: 0 | P20: =Årsarbetsschema!R21 -> 2
B21: 2026-02-18 | I21: 0 | J21: + | K21: 0 | N21: =IF(E21>0,E21-D21-F21-H21,IF(C21="",0,IF(C21="F",0,Årsarbetsschema!$D22))) -> 0 | O21: 0 | P21: =Årsarbetsschema!R22 -> 3
B22: 2026-02-19 | I22: 0 | J22: + | K22: 0 | N22: =IF(E22>0,E22-D22-F22-H22,IF(C22="",0,IF(C22="F",0,Årsarbetsschema!$D23))) -> 0 | O22: 0 | P22: =Årsarbetsschema!R23 -> 4
B23: 2026-02-20 | I23: 0 | J23: + | K23: 0 | N23: =IF(E23>0,E23-D23-F23-H23,IF(C23="",0,IF(C23="F",0,Årsarbetsschema!$D24))) -> 0 | O23: 0 | P23: =Årsarbetsschema!R24 -> 5
B24: 2026-02-21 | I24: 0 | J24: + | K24: 0 | N24: =IF(E24>0,E24-D24-F24-H24,IF(C24="",0,IF(C24="F",0,Årsarbetsschema!$D25))) -> 0 | O24: 0 | P24: =Årsarbetsschema!R25 -> 6
B25: 2026-02-22 | I25: 0 | J25: + | K25: 0 | N25: =IF(E25>0,E25-D25-F25-H25,IF(C25="",0,IF(C25="F",0,Årsarbetsschema!$D26))) -> 0 | O25: 0 | P25: =Årsarbetsschema!R26 -> 7
B26: 2026-02-23 | I26: 0 | J26: + | K26: 0 | N26: =IF(E26>0,E26-D26-F26-H26,IF(C26="",0,IF(C26="F",0,Årsarbetsschema!$D27))) -> 0 | O26: 0 | P26: =Årsarbetsschema!R27 -> 1
B27: 2026-02-24 | I27: 0 | J27: + | K27: 0 | N27: =IF(E27>0,E27-D27-F27-H27,IF(C27="",0,IF(C27="F",0,Årsarbetsschema!$D28))) -> 0 | O27: 0 | P27: =Årsarbetsschema!R28 -> 2
B28: 2026-02-25 | I28: 0 | J28: + | K28: 0 | N28: =IF(E28>0,E28-D28-F28-H28,IF(C28="",0,IF(C28="F",0,Årsarbetsschema!$D29))) -> 0 | O28: 0 | P28: =Årsarbetsschema!R29 -> 3
B29: 2026-02-26 | I29: 0 | J29: + | K29: 0 | N29: =IF(E29>0,E29-D29-F29-H29,IF(C29="",0,IF(C29="F",0,Årsarbetsschema!$D30))) -> 0 | O29: 0 | P29: =Årsarbetsschema!R30 -> 4
B30: 2026-02-27 | I30: =IF(N30<0,-N30,N30) -> 0 | J30: =IF(O30>=0,"+","-") -> + | K30: =IF(O30<0,-O30,O30) -> 0 | N30: =IF(E30>0,E30-D30-F30-H30,IF(C30="",0,IF(C30="F",0,Årsarbetsschema!$D31))) -> 0 | O30: 0 | P30: =Årsarbetsschema!R31 -> 5
B31: 2026-02-28 | I31: 0 | J31: + | K31: 0 | N31: =IF(E31>0,E31-D31-F31-H31,IF(C31="",0,IF(C31="F",0,Årsarbetsschema!$D32))) -> 0 | O31: 0 | P31: =Årsarbetsschema!R32 -> 6
B32: =B31+1 -> 2026-03-01 | I32: 0 | J32: + | K32: 0 | N32: =IF(E32>0,E32-D32-F32-H32,IF(C32="",0,IF(C32="F",0,Årsarbetsschema!$D33))) -> 0 | O32: 0 | P32: =Årsarbetsschema!R33 -> 0
B33: =B32+1 -> 2026-03-02 | I33: =IF(N33<0,-N33,N33) -> 0 | J33: =IF(O33>=0,"+","-") -> + | K33: =IF(O33<0,-O33,O33) -> 0 | N33: 0 | O33: 0 | P33: =WEEKDAY(B33,2) -> 1
B34: =B33+1 -> 2026-03-03 | I34: =IF(N34<0,-N34,N34) -> 0 | J34: =IF(O34>=0,"+","-") -> + | K34: =IF(O34<0,-O34,O34) -> 0 | N34: 0 | O34: 0 | P34: =WEEKDAY(B34,2) -> 2
H35: Månad | I35: =IF(N35<0,-N35,N35) -> 0 | J35: =IF(O35>=0,"+","-") -> + | K35: =IF(O35<0,-O35,O35) -> 0 | N35: =SUM(N4:N31) -> 0 | O35: =SUM(O4:O31) -> 0
H36: Totalt | I36: =IF(N36<0,-N36,N36) -> 0 | J36: =IF(O36>=0,"+","-") -> + | K36: =IF(O36<0,-O36,O36) -> 0 | N36: =N35+N3 -> 0 | O36: =O35+O3 -> 0
J37: = | K37: =O36*24 -> 0
B38: =IF(Uppgifter!$C$6="","",Uppgifter!$C$6) -> 

Sheet Mars
B1: =PROPER(TEXT(B4,"MMMM ÅÅÅÅ")) -> Mars 2026 | G1: =IF(Uppgifter!$C$6="","",Uppgifter!$C$6) -> 
N2: Dagsumma | O2: Dagbalans | P2: Vdag
B3: Datum | C3: Kod | D3: In | E3: Ut | F3: Lunch | G3: Planerat | H3: Ledighet | I3: Arbetstid | K3: Flextid | L3: Anteckningar | N3: =Februari!N36 -> 0 | O3: =Februari!O36 -> 0
B4: =DATEVALUE(Uppgifter!C4 & "-03-01") -> 2026-03-01 | I4: =IF(N4<0,-N4,N4) -> 0 | J4: =IF(O4>=0,"+","-") -> + | K4: =IF(O4<0,-O4,O4) -> 0 | N4: =IF(E4>0,E4-D4-F4-H4,IF(C4="",0,IF(C4="F",0,Årsarbetsschema!$E5))) -> 0 | O4: =ROUND(IF(N4>0,I4-G4,IF(C4="F",I4-G4,0)),15) -> 0 | P4: =Årsarbetsschema!S5 -> 7 | Q4: F
B5: =B4+1 -> 2026-03-02 | I5: =IF(N5<0,-N5,N5) -> 0 | J5: + | K5: 0 | N5: =IF(E5>0,E5-D5-F5-H5,IF(C5="",0,IF(C5="F",0,Årsarbetsschema!$E6))) -> 0 | O5: =ROUND(IF(N5>0,I5-G5,IF(C5="F",I5-G5,0)),15) -> 0 | P5: =Årsarbetsschema!S6 -> 1 | Q5: Se
B6: =B5+1 -> 2026-03-03 | I6: 0 | J6: + | K6: 0 | N6: =IF(E6>0,E6-D6-F6-H6,IF(C6="",0,IF(C6="F",0,Årsarbetsschema!$E7))) -> 0 | O6: 0 | P6: =Årsarbetsschema!S7 -> 2 | Q6: Sj
B7: 2026-03-04 | I7: 0 | J7: + | K7: 0 | N7: =IF(E7>0,E7-D7-F7-H7,IF(C7="",0,IF(C7="F",0,Årsarbetsschema!$E8))) -> 0 | O7: 0 | P7: =Årsarbetsschema!S8 -> 3 | Q7: Tj
B8: 2026-03-05 | I8: 0 | J8: + | K8: 0 | N8: =IF(E8>0,E8-D8-F8-H8,IF(C8="",0,IF(C8="F",0,Årsarbetsschema!$E9))) -> 0 | O8: 0 | P8: =Årsarbetsschema!S9 -> 4 | Q8: VB
B9: 2026-03-06 | I9: 0 | J9: + | K9: 0 | N9: =IF(E9>0,E9-D9-F9-H9,IF(C9="",0,IF(C9="F",0,Årsarbetsschema!$E10))) -> 0 | O9: 0 | P9: =Årsarbetsschema!S10 -> 5 | Q9: FL
B10: 2026-03-07 | I10: 0 | J10: + | K10: 0 | N10: =IF(E10>0,E10-D10-F10-H10,IF(C10="",0,IF(C10="F",0,Årsarbetsschema!$E11))) -> 0 | O10: 0 | P10: =Årsarbetsschema!S11 -> 6
B11: 2026-03-08 | I11: 0 | J11: + | K11: 0 | N11: =IF(E11>0,E11-D11-F11-H11,IF(C11="",0,IF(C11="F",0,Årsarbetsschema!$E12))) -> 0 | O11: 0 | P11: =Årsarbetsschema!S12 -> 7
B12: 2026-03-09 | I12: 0 | J12: + | K12: 0 | N12: =IF(E12>0,E12-D12-F12-H12,IF(C12="",0,IF(C12="F",0,Årsarbetsschema!$E13))) -> 0 | O12: 0 | P12: =Årsarbetsschema!S13 -> 1
B13: 2026-03-10 | I13: 0 | J13: + | K13: 0 | N13: =IF(E13>0,E13-D13-F13-H13,IF(C13="",0,IF(C13="F",0,Årsarbetsschema!$E14))) -> 0 | O13: 0 | P13: =Årsarbetsschema!S14 -> 2
B14: 2026-03-11 | I14: 0 | J14: + | K14: 0 | N14: =IF(E14>0,E14-D14-F14-H14,IF(C14="",0,IF(C14="F",0,Årsarbetsschema!$E15))) -> 0 | O14: 0 | P14: =Årsarbetsschema!S15 -> 3
B15: 2026-03-12 | I15: 0 | J15: + | K15: 0 | N15: =IF(E15>0,E15-D15-F15-H15,IF(C15="",0,IF(C15="F",0,Årsarbetsschema!$E16))) -> 0 | O15: 0 | P15: =Årsarbetsschema!S16 -> 4
B16: 2026-03-13 | I16: 0 | J16: + | K16: 0 | N16: =IF(E16>0,E16-D16-F16-H16,IF(C16="",0,IF(C16="F",0,Årsarbetsschema!$E17))) -> 0 | O16: 0 | P16: =Årsarbetsschema!S17 -> 5
B17: 2026-03-14 | I17: 0 | J17: + | K17: 0 | N17: =IF(E17>0,E17-D17-F17-H17,IF(C17="",0,IF(C17="F",0,Årsarbetsschema!$E18))) -> 0 | O17: 0 | P17: =Årsarbetsschema!S18 -> 6
B18: 2026-03-15 | I18: 0 | J18: + | K18: 0 | N18: =IF(E18>0,E18-D18-F18-H18,IF(C18="",0,IF(C18="F",0,Årsarbetsschema!$E19))) -> 0 | O18: 0 | P18: =Årsarbetsschema!S19 -> 7
B19: 2026-03-16 | I19: 0 | J19: + | K19: 0 | N19: =IF(E19>0,E19-D19-F19-H19,IF(C19="",0,IF(C19="F",0,Årsarbetsschema!$E20))) -> 0 | O19: 0 | P19: =Årsarbetsschema!S20 -> 1
B20: 2026-03-17 | I20: 0 | J20: + | K20: 0 | N20: =IF(E20>0,E20-D20-F20-H20,IF(C20="",0,IF(C20="F",0,Årsarbetsschema!$E21))) -> 0 | O20: 0 | P20: =Årsarbetsschema!S21 -> 2
B21: 2026-03-18 | I21: 0 | J21: + | K21: 0 | N21: =IF(E21>0,E21-D21-F21-H21,IF(C21="",0,IF(C21="F",0,Årsarbetsschema!$E22))) -> 0 | O21: 0 | P21: =Årsarbetsschema!S22 -> 3
B22: 2026-03-19 | I22: 0 | J22: + | K22: 0 | N22: =IF(E22>0,E22-D22-F22-H22,IF(C22="",0,IF(C22="F",0,Årsarbetsschema!$E23))) -> 0 | O22: 0 | P22: =Årsarbetsschema!S23 -> 4
B23: 2026-03-20 | I23: 0 | J23: + | K23: 0 | N23: =IF(E23>0,E23-D23-F23-H23,IF(C23="",0,IF(C23="F",0,Årsarbetsschema!$E24))) -> 0 | O23: 0 | P23: =Årsarbetsschema!S24 -> 5
B24: 2026-03-21 | I24: 0 | J24: + | K24: 0 | N24: =IF(E24>0,E24-D24-F24-H24,IF(C24="",0,IF(C24="F",0,Årsarbetsschema!$E25))) -> 0 | O24: 0 | P24: =Årsarbetsschema!S25 -> 6
B25: 2026-03-22 | I25: 0 | J25: + | K25: 0 | N25: =IF(E25>0,E25-D25-F25-H25,IF(C25="",0,IF(C25="F",0,Årsarbetsschema!$E26))) -> 0 | O25: 0 | P25: =Årsarbetsschema!S26 -> 7
B26: 2026-03-23 | I26: 0 | J26: + | K26: 0 | N26: =IF(E26>0,E26-D26-F26-H26,IF(C26="",0,IF(C26="F",0,Årsarbetsschema!$E27))) -> 0 | O26: 0 | P26: =Årsarbetsschema!S27 -> 1
B27: =B26+1 -> 2026-03-24 | I27: =IF(N27<0,-N27,N27) -> 0 | J27: =IF(O27>=0,"+","-") -> + | K27: =IF(O27<0,-O27,O27) -> 0 | N27: =IF(E27>0,E27-D27-F27-H27,IF(C27="",0,IF(C27="F",0,Årsarbetsschema!$E28))) -> 0 | O27: 0 | P27: =Årsarbetsschema!S28 -> 2
B28: 2026-03-25 | I28: 0 | J28: + | K28: 0 | N28: =IF(E28>0,E28-D28-F28-H28,IF(C28="",0,IF(C28="F",0,Årsarbetsschema!$E29))) -> 0 | O28: 0 | P28: =Årsarbetsschema!S29 -> 3
B29: 2026-03-26 | I29: 0 | J29: + | K29: 0 | N29: =IF(E29>0,E29-D29-F29-H29,IF(C29="",0,IF(C29="F",0,Årsarbetsschema!$E30))) -> 0 | O29: 0 | P29: =Årsarbetsschema!S30 -> 4
B30: 2026-03-27 | I30: 0 | J30: + | K30: 0 | N30: =IF(E30>0,E30-D30-F30-H30,IF(C30="",0,IF(C30="F",0,Årsarbetsschema!$E31))) -> 0 | O30: 0 | P30: =Årsarbetsschema!S31 -> 5
B31: 2026-03-28 | I31: 0 | J31: + | K31: 0 | N31: =IF(E31>0,E31-D31-F31-H31,IF(C31="",0,IF(C31="F",0,Årsarbetsschema!$E32))) -> 0 | O31: 0 | P31: =Årsarbetsschema!S32 -> 6
B32: 2026-03-29 | I32: 0 | J32: + | K32: 0 | N32: =IF(E32>0,E32-D32-F32-H32,IF(C32="",0,IF(C32="F",0,Årsarbetsschema!$E33))) -> 0 | O32: 0 | P32: =Årsarbetsschema!S33 -> 7
B33: 2026-03-30 | I33: 0 | J33: + | K33: 0 | N33: =IF(E33>0,E33-D33-F33-H33,IF(C33="",0,IF(C33="F",0,Årsarbetsschema!$E34))) -> 0 | O33: 0 | P33: =Årsarbetsschema!S34 -> 1
B34: 2026-03-31 | I34: 0 | J34: + | K34: 0 | N34: =IF(E34>0,E34-D34-F34-H34,IF(C34="",0,IF(C34="F",0,Årsarbetsschema!$E35))) -> 0 | O34: 0 | P34: =Årsarbetsschema!S35 -> 2
H35: Månad | I35: =IF(N35<0,-N35,N35) -> 0 | J35: + | K35: =IF(O35<0,-O35,O35) -> 0 | N35: =SUM(N4:N34) -> 0 | O35: =SUM(O4:O34) -> 0
H36: Totalt | I36: 0 | J36: + | K36: =IF(O36<0,-O36,O36) -> 0 | N36: =N35+N3 -> 0 | O36: =O35+O3 -> 0
J37: = | K37: =O36*24 -> 0
B38: =IF(Uppgifter!$C$6="","",Uppgifter!$C$6) -> 

Sheet April
B1: =PROPER(TEXT(B4,"MMMM ÅÅÅÅ")) -> April 2026 | G1: =IF(Uppgifter!$C$6="","",Uppgifter!$C$6) -> 
N2: Dagsumma | O2: Dagbalans | P2: Vdag
B3: Datum | C3: Kod | D3: In | E3: Ut | F3: Lunch | G3: Planerat | H3: Ledighet | I3: Arbetstid | K3: Flextid | L3: Anteckningar | N3: =Mars!N36 -> 0 | O3: =Mars!O36 -> 0
B4: =DATEVALUE(Uppgifter!C4 & "-04-01") -> 2026-04-01 | I4: =IF(N4<0,-N4,N4) -> 0 | J4: =IF(O4>=0,"+","-") -> + | K4: =IF(O4<0,-O4,O4) -> 0 | N4: =IF(E4>0,E4-D4-F4-H4,IF(C4="",0,IF(C4="F",0,Årsarbetsschema!$F5))) -> 0 | O4: =ROUND(IF(N4>0,I4-G4,IF(C4="F",I4-G4,0)),15) -> 0 | P4: =Årsarbetsschema!T5 -> 3 | Q4: F
B5: =B4+1 -> 2026-04-02 | I5: =IF(N5<0,-N5,N5) -> 0 | J5: + | K5: 0 | N5: =IF(E5>0,E5-D5-F5-H5,IF(C5="",0,IF(C5="F",0,Årsarbetsschema!$F6))) -> 0 | O5: =ROUND(IF(N5>0,I5-G5,IF(C5="F",I5-G5,0)),15) -> 0 | P5: =Årsarbetsschema!T6 -> 4 | Q5: Se
B6: =B5+1 -> 2026-04-03 | I6: 0 | J6: + | K6: 0 | N6: =IF(E6>0,E6-D6-F6-H6,IF(C6="",0,IF(C6="F",0,Årsarbetsschema!$F7))) -> 0 | O6: 0 | P6: =Årsarbetsschema!T7 -> -1 | Q6: Sj
B7: 2026-04-04 | I7: 0 | J7: + | K7: 0 | N7: =IF(E7>0,E7-D7-F7-H7,IF(C7="",0,IF(C7="F",0,Årsarbetsschema!$F8))) -> 0 | O7: 0 | P7: =Årsarbetsschema!T8 -> 6 | Q7: Tj
B8: 2026-04-05 | I8: 0 | J8: + | K8: 0 | N8: =IF(E8>0,E8-D8-F8-H8,IF(C8="",0,IF(C8="F",0,Årsarbetsschema!$F9))) -> 0 | O8: 0 | P8: =Årsarbetsschema!T9 -> 7 | Q8: VB
B9: 2026-04-06 | I9: 0 | J9: + | K9: 0 | N9: =IF(E9>0,E9-D9-F9-H9,IF(C9="",0,IF(C9="F",0,Årsarbetsschema!$F10))) -> 0 | O9: 0 | P9: =Årsarbetsschema!T10 -> -1 | Q9: FL
B10: 2026-04-07 | I10: 0 | J10: + | K10: 0 | N10: =IF(E10>0,E10-D10-F10-H10,IF(C10="",0,IF(C10="F",0,Årsarbetsschema!$F11))) -> 0 | O10: 0 | P10: =Årsarbetsschema!T11 -> 2
B11: 2026-04-08 | I11: 0 | J11: + | K11: 0 | N11: =IF(E11>0,E11-D11-F11-H11,IF(C11="",0,IF(C11="F",0,Årsarbetsschema!$F12))) -> 0 | O11: 0 | P11: =Årsarbetsschema!T12 -> 3
B12: 2026-04-09 | I12: 0 | J12: + | K12: 0 | N12: =IF(E12>0,E12-D12-F12-H12,IF(C12="",0,IF(C12="F",0,Årsarbetsschema!$F13))) -> 0 | O12: 0 | P12: =Årsarbetsschema!T13 -> 4
B13: 2026-04-10 | I13: 0 | J13: + | K13: 0 | N13: =IF(E13>0,E13-D13-F13-H13,IF(C13="",0,IF(C13="F",0,Årsarbetsschema!$F14))) -> 0 | O13: 0 | P13: =Årsarbetsschema!T14 -> 5
B14: 2026-04-11 | I14: 0 | J14: + | K14: 0 | N14: =IF(E14>0,E14-D14-F14-H14,IF(C14="",0,IF(C14="F",0,Årsarbetsschema!$F15))) -> 0 | O14: 0 | P14: =Årsarbetsschema!T15 -> 6
B15: 2026-04-12 | I15: 0 | J15: + | K15: 0 | N15: =IF(E15>0,E15-D15-F15-H15,IF(C15="",0,IF(C15="F",0,Årsarbetsschema!$F16))) -> 0 | O15: 0 | P15: =Årsarbetsschema!T16 -> 7
B16: 2026-04-13 | I16: 0 | J16: + | K16: 0 | N16: =IF(E16>0,E16-D16-F16-H16,IF(C16="",0,IF(C16="F",0,Årsarbetsschema!$F17))) -> 0 | O16: 0 | P16: =Årsarbetsschema!T17 -> 1
B17: 2026-04-14 | I17: 0 | J17: + | K17: 0 | N17: =IF(E17>0,E17-D17-F17-H17,IF(C17="",0,IF(C17="F",0,Årsarbetsschema!$F18))) -> 0 | O17: 0 | P17: =Årsarbetsschema!T18 -> 2
B18: 2026-04-15 | I18: 0 | J18: + | K18: 0 | N18: =IF(E18>0,E18-D18-F18-H18,IF(C18="",0,IF(C18="F",0,Årsarbetsschema!$F19))) -> 0 | O18: 0 | P18: =Årsarbetsschema!T19 -> 3
B19: 2026-04-16 | I19: 0 | J19: + | K19: 0 | N19: =IF(E19>0,E19-D19-F19-H19,IF(C19="",0,IF(C19="F",0,Årsarbetsschema!$F20))) -> 0 | O19: 0 | P19: =Årsarbetsschema!T20 -> 4
B20: 2026-04-17 | I20: 0 | J20: + | K20: 0 | N20: =IF(E20>0,E20-D20-F20-H20,IF(C20="",0,IF(C20="F",0,Årsarbetsschema!$F21))) -> 0 | O20: 0 | P20: =Årsarbetsschema!T21 -> 5
B21: 2026-04-18 | I21: 0 | J21: + | K21: 0 | N21: =IF(E21>0,E21-D21-F21-H21,IF(C21="",0,IF(C21="F",0,Årsarbetsschema!$F22))) -> 0 | O21: 0 | P21: =Årsarbetsschema!T22 -> 6
B22: 2026-04-19 | I22: 0 | J22: + | K22: 0 | N22: =IF(E22>0,E22-D22-F22-H22,IF(C22="",0,IF(C22="F",0,Årsarbetsschema!$F23))) -> 0 | O22: 0 | P22: =Årsarbetsschema!T23 -> 7
B23: 2026-04-20 | I23: 0 | J23: + | K23: 0 | N23: =IF(E23>0,E23-D23-F23-H23,IF(C23="",0,IF(C23="F",0,Årsarbetsschema!$F24))) -> 0 | O23: 0 | P23: =Årsarbetsschema!T24 -> 1
B24: 2026-04-21 | I24: 0 | J24: + | K24: 0 | N24: =IF(E24>0,E24-D24-F24-H24,IF(C24="",0,IF(C24="F",0,Årsarbetsschema!$F25))) -> 0 | O24: 0 | P24: =Årsarbetsschema!T25 -> 2
B25: 2026-04-22 | I25: 0 | J25: + | K25: 0 | N25: =IF(E25>0,E25-D25-F25-H25,IF(C25="",0,IF(C25="F",0,Årsarbetsschema!$F26))) -> 0 | O25: 0 | P25: =Årsarbetsschema!T26 -> 3
B26: 2026-04-23 | I26: 0 | J26: + | K26: 0 | N26: =IF(E26>0,E26-D26-F26-H26,IF(C26="",0,IF(C26="F",0,Årsarbetsschema!$F27))) -> 0 | O26: 0 | P26: =Årsarbetsschema!T27 -> 4
B27: 2026-04-24 | I27: 0 | J27: + | K27: 0 | N27: =IF(E27>0,E27-D27-F27-H27,IF(C27="",0,IF(C27="F",0,Årsarbetsschema!$F28))) -> 0 | O27: 0 | P27: =Årsarbetsschema!T28 -> 5
B28: 2026-04-25 | I28: 0 | J28: + | K28: 0 | N28: =IF(E28>0,E28-D28-F28-H28,IF(C28="",0,IF(C28="F",0,Årsarbetsschema!$F29))) -> 0 | O28: 0 | P28: =Årsarbetsschema!T29 -> 6
B29: 2026-04-26 | I29: 0 | J29: + | K29: 0 | N29: =IF(E29>0,E29-D29-F29-H29,IF(C29="",0,IF(C29="F",0,Årsarbetsschema!$F30))) -> 0 | O29: 0 | P29: =Årsarbetsschema!T30 -> 7
B30: 2026-04-27 | I30: 0 | J30: + | K30: 0 | N30: =IF(E30>0,E30-D30-F30-H30,IF(C30="",0,IF(C30="F",0,Årsarbetsschema!$F31))) -> 0 | O30: 0 | P30: =Årsarbetsschema!T31 -> 1
B31: 2026-04-28 | I31: 0 | J31: + | K31: 0 | N31: =IF(E31>0,E31-D31-F31-H31,IF(C31="",0,IF(C31="F",0,Årsarbetsschema!$F32))) -> 0 | O31: 0 | P31: =Årsarbetsschema!T32 -> 2
B32: 2026-04-29 | I32: 0 | J32: + | K32: 0 | N32: =IF(E32>0,E32-D32-F32-H32,IF(C32="",0,IF(C32="F",0,Årsarbetsschema!$F33))) -> 0 | O32: 0 | P32: =Årsarbetsschema!T33 -> 3
B33: 2026-04-30 | I33: =IF(N33<0,-N33,N33) -> 0 | J33: =IF(O33>=0,"+","-") -> + | K33: =IF(O33<0,-O33,O33) -> 0 | N33: =IF(E33>0,E33-D33-F33-H33,IF(C33="",0,IF(C33="F",0,Årsarbetsschema!$F34))) -> 0 | O33: =ROUND(IF(N33>0,I33-G33,IF(C33="F",I33-G33,0)),15) -> 0 | P33: =Årsarbetsschema!T34 -> 4
B34: 2026-05-01 | I34: 0 | J34: + | K34: 0 | N34: =IF(E34>0,E34-D34-F34-H34,IF(C34="",0,IF(C34="F",0,Årsarbetsschema!$D$39))) -> 0 | O34: 0 | P34: =WEEKDAY(B34,2) -> 5
H35: Månad | I35: =IF(N35<0,-N35,N35) -> 0 | J35: =IF(O35>=0,"+","-") -> + | K35: =IF(O35<0,-O35,O35) -> 0 | N35: =SUM(N4:N34) -> 0 | O35: =SUM(O4:O34) -> 0
H36: Totalt | I36: 0 | J36: =IF(O36>=0,"+","-") -> + | K36: =IF(O36<0,-O36,O36) -> 0 | N36: =N35+N3 -> 0 | O36: =O35+O3 -> 0
J37: = | K37: =O36*24 -> 0
B38: =IF(Uppgifter!$C$6="","",Uppgifter!$C$6) -> 

Sheet Maj
B1: =PROPER(TEXT(B4,"MMMM ÅÅÅÅ")) -> Maj 2026 | G1: =IF(Uppgifter!$C$6="","",Uppgifter!$C$6) -> 
N2: Dagsumma | O2: Dagbalans | P2: Vdag
B3: Datum | C3: Kod | D3: In | E3: Ut | F3: Lunch | G3: Planerat | H3: Ledighet | I3: Arbetstid | K3: Flextid | L3: Anteckningar | N3: =April!N36 -> 0 | O3: =April!O36 -> 0
B4: =DATEVALUE(Uppgifter!C4 & "-05-01") -> 2026-05-01 | I4: =IF(N4<0,-N4,N4) -> 0 | J4: =IF(O4>=0,"+","-") -> + | K4: =IF(O4<0,-O4,O4) -> 0 | N4: =IF(E4>0,E4-D4-F4-H4,IF(C4="",0,IF(C4="F",0,Årsarbetsschema!$G5))) -> 0 | O4: =ROUND(IF(N4>0,I4-G4,IF(C4="F",I4-G4,0)),15) -> 0 | P4: =Årsarbetsschema!U5 -> -1 | Q4: F
B5: =B4+1 -> 2026-05-02 | I5: =IF(N5<0,-N5,N5) -> 0 | J5: + | K5: 0 | N5: =IF(E5>0,E5-D5-F5-H5,IF(C5="",0,IF(C5="F",0,Årsarbetsschema!$G6))) -> 0 | O5: 0 | P5: =Årsarbetsschema!U6 -> 6 | Q5: Se
B6: =B5+1 -> 2026-05-03 | I6: 0 | J6: + | K6: 0 | N6: =IF(E6>0,E6-D6-F6-H6,IF(C6="",0,IF(C6="F",0,Årsarbetsschema!$G7))) -> 0 | O6: 0 | P6: =Årsarbetsschema!U7 -> 7 | Q6: Sj
B7: 2026-05-04 | I7: 0 | J7: + | K7: 0 | N7: =IF(E7>0,E7-D7-F7-H7,IF(C7="",0,IF(C7="F",0,Årsarbetsschema!$G8))) -> 0 | O7: 0 | P7: =Årsarbetsschema!U8 -> 1 | Q7: Tj
B8: 2026-05-05 | I8: 0 | J8: + | K8: 0 | N8: =IF(E8>0,E8-D8-F8-H8,IF(C8="",0,IF(C8="F",0,Årsarbetsschema!$G9))) -> 0 | O8: 0 | P8: =Årsarbetsschema!U9 -> 2 | Q8: VB
B9: 2026-05-06 | I9: 0 | J9: + | K9: 0 | N9: =IF(E9>0,E9-D9-F9-H9,IF(C9="",0,IF(C9="F",0,Årsarbetsschema!$G10))) -> 0 | O9: 0 | P9: =Årsarbetsschema!U10 -> 3 | Q9: FL
B10: 2026-05-07 | I10: 0 | J10: + | K10: 0 | N10: =IF(E10>0,E10-D10-F10-H10,IF(C10="",0,IF(C10="F",0,Årsarbetsschema!$G11))) -> 0 | O10: 0 | P10: =Årsarbetsschema!U11 -> 4
B11: 2026-05-08 | I11: 0 | J11: + | K11: 0 | N11: =IF(E11>0,E11-D11-F11-H11,IF(C11="",0,IF(C11="F",0,Årsarbetsschema!$G12))) -> 0 | O11: 0 | P11: =Årsarbetsschema!U12 -> 5
B12: 2026-05-09 | I12: 0 | J12: + | K12: 0 | N12: =IF(E12>0,E12-D12-F12-H12,IF(C12="",0,IF(C12="F",0,Årsarbetsschema!$G13))) -> 0 | O12: 0 | P12: =Årsarbetsschema!U13 -> 6
B13: 2026-05-10 | I13: 0 | J13: + | K13: 0 | N13: =IF(E13>0,E13-D13-F13-H13,IF(C13="",0,IF(C13="F",0,Årsarbetsschema!$G14))) -> 0 | O13: 0 | P13: =Årsarbetsschema!U14 -> 7
B14: 2026-05-11 | I14: 0 | J14: + | K14: 0 | N14: =IF(E14>0,E14-D14-F14-H14,IF(C14="",0,IF(C14="F",0,Årsarbetsschema!$G15))) -> 0 | O14: 0 | P14: =Årsarbetsschema!U15 -> 1
B15: 2026-05-12 | I15: 0 | J15: + | K15: 0 | N15: =IF(E15>0,E15-D15-F15-H15,IF(C15="",0,IF(C15="F",0,Årsarbetsschema!$G16))) -> 0 | O15: 0 | P15: =Årsarbetsschema!U16 -> 2
B16: 2026-05-13 | I16: 0 | J16: + | K16: 0 | N16: =IF(E16>0,E16-D16-F16-H16,IF(C16="",0,IF(C16="F",0,Årsarbetsschema!$G17))) -> 0 | O16: 0 | P16: =Årsarbetsschema!U17 -> 3
B17: 2026-05-14 | I17: 0 | J17: + | K17: 0 | N17: =IF(E17>0,E17-D17-F17-H17,IF(C17="",0,IF(C17="F",0,Årsarbetsschema!$G18))) -> 0 | O17: 0 | P17: =Årsarbetsschema!U18 -> -1
B18: 2026-05-15 | I18: 0 | J18: + | K18: 0 | N18: =IF(E18>0,E18-D18-F18-H18,IF(C18="",0,IF(C18="F",0,Årsarbetsschema!$G19))) -> 0 | O18: 0 | P18: =Årsarbetsschema!U19 -> 5
B19: 2026-05-16 | I19: 0 | J19: + | K19: 0 | N19: =IF(E19>0,E19-D19-F19-H19,IF(C19="",0,IF(C19="F",0,Årsarbetsschema!$G20))) -> 0 | O19: 0 | P19: =Årsarbetsschema!U20 -> 6
B20: 2026-05-17 | I20: 0 | J20: + | K20: 0 | N20: =IF(E20>0,E20-D20-F20-H20,IF(C20="",0,IF(C20="F",0,Årsarbetsschema!$G21))) -> 0 | O20: 0 | P20: =Årsarbetsschema!U21 -> 7
B21: 2026-05-18 | I21: 0 | J21: + | K21: 0 | N21: =IF(E21>0,E21-D21-F21-H21,IF(C21="",0,IF(C21="F",0,Årsarbetsschema!$G22))) -> 0 | O21: 0 | P21: =Årsarbetsschema!U22 -> 1
B22: 2026-05-19 | I22: 0 | J22: + | K22: 0 | N22: =IF(E22>0,E22-D22-F22-H22,IF(C22="",0,IF(C22="F",0,Årsarbetsschema!$G23))) -> 0 | O22: 0 | P22: =Årsarbetsschema!U23 -> 2
B23: 2026-05-20 | I23: 0 | J23: + | K23: 0 | N23: =IF(E23>0,E23-D23-F23-H23,IF(C23="",0,IF(C23="F",0,Årsarbetsschema!$G24))) -> 0 | O23: 0 | P23: =Årsarbetsschema!U24 -> 3
B24: 2026-05-21 | I24: 0 | J24: + | K24: 0 | N24: =IF(E24>0,E24-D24-F24-H24,IF(C24="",0,IF(C24="F",0,Årsarbetsschema!$G25))) -> 0 | O24: 0 | P24: =Årsarbetsschema!U25 -> 4
B25: 2026-05-22 | I25: 0 | J25: + | K25: 0 | N25: =IF(E25>0,E25-D25-F25-H25,IF(C25="",0,IF(C25="F",0,Årsarbetsschema!$G26))) -> 0 | O25: 0 | P25: =Årsarbetsschema!U26 -> 5
B26: 2026-05-23 | I26: 0 | J26: + | K26: 0 | N26: =IF(E26>0,E26-D26-F26-H26,IF(C26="",0,IF(C26="F",0,Årsarbetsschema!$G27))) -> 0 | O26: 0 | P26: =Årsarbetsschema!U27 -> 6
B27: 2026-05-24 | I27: 0 | J27: + | K27: 0 | N27: =IF(E27>0,E27-D27-F27-H27,IF(C27="",0,IF(C27="F",0,Årsarbetsschema!$G28))) -> 0 | O27: 0 | P27: =Årsarbetsschema!U28 -> 7
B28: 2026-05-25 | I28: 0 | J28: + | K28: 0 | N28: =IF(E28>0,E28-D28-F28-H28,IF(C28="",0,IF(C28="F",0,Årsarbetsschema!$G29))) -> 0 | O28: 0 | P28: =Årsarbetsschema!U29 -> 1
B29: 2026-05-26 | I29: 0 | J29: + | K29: 0 | N29: =IF(E29>0,E29-D29-F29-H29,IF(C29="",0,IF(C29="F",0,Årsarbetsschema!$G30))) -> 0 | O29: 0 | P29: =Årsarbetsschema!U30 -> 2
B30: 2026-05-27 | I30: 0 | J30: + | K30: 0 | N30: =IF(E30>0,E30-D30-F30-H30,IF(C30="",0,IF(C30="F",0,Årsarbetsschema!$G31))) -> 0 | O30: 0 | P30: =Årsarbetsschema!U31 -> 3
B31: 2026-05-28 | I31: 0 | J31: + | K31: 0 | N31: =IF(E31>0,E31-D31-F31-H31,IF(C31="",0,IF(C31="F",0,Årsarbetsschema!$G32))) -> 0 | O31: 0 | P31: =Årsarbetsschema!U32 -> 4
B32: 2026-05-29 | I32: 0 | J32: + | K32: 0 | N32: =IF(E32>0,E32-D32-F32-H32,IF(C32="",0,IF(C32="F",0,Årsarbetsschema!$G33))) -> 0 | O32: 0 | P32: =Årsarbetsschema!U33 -> 5
B33: 2026-05-30 | I33: 0 | J33: + | K33: 0 | N33: =IF(E33>0,E33-D33-F33-H33,IF(C33="",0,IF(C33="F",0,Årsarbetsschema!$G34))) -> 0 | O33: 0 | P33: =Årsarbetsschema!U34 -> 6
B34: 2026-05-31 | I34: 0 | J34: + | K34: 0 | N34: =IF(E34>0,E34-D34-F34-H34,IF(C34="",0,IF(C34="F",0,Årsarbetsschema!$G35))) -> 0 | O34: 0 | P34: =Årsarbetsschema!U35 -> 7
H35: Månad | I35: 0 | J35: + | K35: =IF(O35<0,-O35,O35) -> 0 | N35: =SUM(N4:N34) -> 0 | O35: =SUM(O4:O34) -> 0
H36: Totalt | I36: 0 | J36: + | K36: =IF(O36<0,-O36,O36) -> 0 | N36: =N35+N3 -> 0 | O36: =O35+O3 -> 0
J37: = | K37: =O36*24 -> 0
B38: =IF(Uppgifter!$C$6="","",Uppgifter!$C$6) -> 

Sheet Juni
B1: =PROPER(TEXT(B4,"MMMM ÅÅÅÅ")) -> Juni 2026 | G1: =IF(Uppgifter!$C$6="","",Uppgifter!$C$6) -> 
N2: Dagsumma | O2: Dagbalans | P2: Vdag
B3: Datum | C3: Kod | D3: In | E3: Ut | F3: Lunch | G3: Planerat | H3: Ledighet | I3: Arbetstid | K3: Flextid | L3: Anteckningar | N3: =Maj!N36 -> 0 | O3: =Maj!O36 -> 0
B4: =DATEVALUE(Uppgifter!C4 & "-06-01") -> 2026-06-01 | I4: =IF(N4<0,-N4,N4) -> 0 | J4: =IF(O4>=0,"+","-") -> + | K4: =IF(O4<0,-O4,O4) -> 0 | N4: =IF(E4>0,E4-D4-F4-H4,IF(C4="",0,IF(C4="F",0,Årsarbetsschema!$H5))) -> 0 | O4: =ROUND(IF(N4>0,I4-G4,IF(C4="F",I4-G4,0)),15) -> 0 | P4: =Årsarbetsschema!V5 -> 1 | Q4: F
B5: =B4+1 -> 2026-06-02 | I5: =IF(N5<0,-N5,N5) -> 0 | J5: + | K5: 0 | N5: =IF(E5>0,E5-D5-F5-H5,IF(C5="",0,IF(C5="F",0,Årsarbetsschema!$H6))) -> 0 | O5: =ROUND(IF(N5>0,I5-G5,IF(C5="F",I5-G5,0)),15) -> 0 | P5: =Årsarbetsschema!V6 -> 2 | Q5: Se
B6: =B5+1 -> 2026-06-03 | I6: 0 | J6: + | K6: 0 | N6: =IF(E6>0,E6-D6-F6-H6,IF(C6="",0,IF(C6="F",0,Årsarbetsschema!$H7))) -> 0 | O6: 0 | P6: =Årsarbetsschema!V7 -> 3 | Q6: Sj
B7: 2026-06-04 | I7: 0 | J7: + | K7: 0 | N7: =IF(E7>0,E7-D7-F7-H7,IF(C7="",0,IF(C7="F",0,Årsarbetsschema!$H8))) -> 0 | O7: 0 | P7: =Årsarbetsschema!V8 -> 4 | Q7: Tj
B8: 2026-06-05 | I8: 0 | J8: + | K8: 0 | N8: =IF(E8>0,E8-D8-F8-H8,IF(C8="",0,IF(C8="F",0,Årsarbetsschema!$H9))) -> 0 | O8: 0 | P8: =Årsarbetsschema!V9 -> 5 | Q8: VB
B9: 2026-06-06 | I9: 0 | J9: + | K9: 0 | N9: =IF(E9>0,E9-D9-F9-H9,IF(C9="",0,IF(C9="F",0,Årsarbetsschema!$H10))) -> 0 | O9: 0 | P9: =Årsarbetsschema!V10 -> 6 | Q9: FL
B10: 2026-06-07 | I10: 0 | J10: + | K10: 0 | N10: =IF(E10>0,E10-D10-F10-H10,IF(C10="",0,IF(C10="F",0,Årsarbetsschema!$H11))) -> 0 | O10: 0 | P10: =Årsarbetsschema!V11 -> 7
B11: 2026-06-08 | I11: 0 | J11: + | K11: 0 | N11: =IF(E11>0,E11-D11-F11-H11,IF(C11="",0,IF(C11="F",0,Årsarbetsschema!$H12))) -> 0 | O11: 0 | P11: =Årsarbetsschema!V12 -> 1
B12: 2026-06-09 | I12: 0 | J12: + | K12: 0 | N12: =IF(E12>0,E12-D12-F12-H12,IF(C12="",0,IF(C12="F",0,Årsarbetsschema!$H13))) -> 0 | O12: 0 | P12: =Årsarbetsschema!V13 -> 2
B13: 2026-06-10 | I13: 0 | J13: + | K13: 0 | N13: =IF(E13>0,E13-D13-F13-H13,IF(C13="",0,IF(C13="F",0,Årsarbetsschema!$H14))) -> 0 | O13: 0 | P13: =Årsarbetsschema!V14 -> 3
B14: 2026-06-11 | I14: 0 | J14: + | K14: 0 | N14: =IF(E14>0,E14-D14-F14-H14,IF(C14="",0,IF(C14="F",0,Årsarbetsschema!$H15))) -> 0 | O14: 0 | P14: =Årsarbetsschema!V15 -> 4
B15: 2026-06-12 | I15: 0 | J15: + | K15: 0 | N15: =IF(E15>0,E15-D15-F15-H15,IF(C15="",0,IF(C15="F",0,Årsarbetsschema!$H16))) -> 0 | O15: 0 | P15: =Årsarbetsschema!V16 -> 5
B16: 2026-06-13 | I16: 0 | J16: + | K16: 0 | N16: =IF(E16>0,E16-D16-F16-H16,IF(C16="",0,IF(C16="F",0,Årsarbetsschema!$H17))) -> 0 | O16: 0 | P16: =Årsarbetsschema!V17 -> 6
B17: 2026-06-14 | I17: 0 | J17: + | K17: 0 | N17: =IF(E17>0,E17-D17-F17-H17,IF(C17="",0,IF(C17="F",0,Årsarbetsschema!$H18))) -> 0 | O17: 0 | P17: =Årsarbetsschema!V18 -> 7
B18: 2026-06-15 | I18: 0 | J18: + | K18: 0 | N18: =IF(E18>0,E18-D18-F18-H18,IF(C18="",0,IF(C18="F",0,Årsarbetsschema!$H19))) -> 0 | O18: 0 | P18: =Årsarbetsschema!V19 -> 1
B19: 2026-06-16 | I19: 0 | J19: + | K19: 0 | N19: =IF(E19>0,E19-D19-F19-H19,IF(C19="",0,IF(C19="F",0,Årsarbetsschema!$H20))) -> 0 | O19: 0 | P19: =Årsarbetsschema!V20 -> 2
B20: 2026-06-17 | I20: 0 | J20: + | K20: 0 | N20: =IF(E20>0,E20-D20-F20-H20,IF(C20="",0,IF(C20="F",0,Årsarbetsschema!$H21))) -> 0 | O20: 0 | P20: =Årsarbetsschema!V21 -> 3
B21: 2026-06-18 | I21: 0 | J21: + | K21: 0 | N21: =IF(E21>0,E21-D21-F21-H21,IF(C21="",0,IF(C21="F",0,Årsarbetsschema!$H22))) -> 0 | O21: 0 | P21: =Årsarbetsschema!V22 -> 4
B22: 2026-06-19 | I22: 0 | J22: + | K22: 0 | N22: =IF(E22>0,E22-D22-F22-H22,IF(C22="",0,IF(C22="F",0,Årsarbetsschema!$H23))) -> 0 | O22: 0 | P22: =Årsarbetsschema!V23 -> -1
B23: 2026-06-20 | I23: 0 | J23: + | K23: 0 | N23: =IF(E23>0,E23-D23-F23-H23,IF(C23="",0,IF(C23="F",0,Årsarbetsschema!$H24))) -> 0 | O23: 0 | P23: =Årsarbetsschema!V24 -> 6
B24: 2026-06-21 | I24: 0 | J24: + | K24: 0 | N24: =IF(E24>0,E24-D24-F24-H24,IF(C24="",0,IF(C24="F",0,Årsarbetsschema!$H25))) -> 0 | O24: 0 | P24: =Årsarbetsschema!V25 -> 7
B25: 2026-06-22 | I25: 0 | J25: + | K25: 0 | N25: =IF(E25>0,E25-D25-F25-H25,IF(C25="",0,IF(C25="F",0,Årsarbetsschema!$H26))) -> 0 | O25: 0 | P25: =Årsarbetsschema!V26 -> 1
B26: 2026-06-23 | I26: 0 | J26: + | K26: 0 | N26: =IF(E26>0,E26-D26-F26-H26,IF(C26="",0,IF(C26="F",0,Årsarbetsschema!$H27))) -> 0 | O26: 0 | P26: =Årsarbetsschema!V27 -> 2
B27: 2026-06-24 | I27: 0 | J27: + | K27: 0 | N27: =IF(E27>0,E27-D27-F27-H27,IF(C27="",0,IF(C27="F",0,Årsarbetsschema!$H28))) -> 0 | O27: 0 | P27: =Årsarbetsschema!V28 -> 3
B28: 2026-06-25 | I28: 0 | J28: + | K28: 0 | N28: =IF(E28>0,E28-D28-F28-H28,IF(C28="",0,IF(C28="F",0,Årsarbetsschema!$H29))) -> 0 | O28: 0 | P28: =Årsarbetsschema!V29 -> 4
B29: 2026-06-26 | I29: 0 | J29: + | K29: 0 | N29: =IF(E29>0,E29-D29-F29-H29,IF(C29="",0,IF(C29="F",0,Årsarbetsschema!$H30))) -> 0 | O29: 0 | P29: =Årsarbetsschema!V30 -> 5
B30: 2026-06-27 | I30: 0 | J30: + | K30: 0 | N30: =IF(E30>0,E30-D30-F30-H30,IF(C30="",0,IF(C30="F",0,Årsarbetsschema!$H31))) -> 0 | O30: 0 | P30: =Årsarbetsschema!V31 -> 6
B31: 2026-06-28 | I31: 0 | J31: + | K31: 0 | N31: =IF(E31>0,E31-D31-F31-H31,IF(C31="",0,IF(C31="F",0,Årsarbetsschema!$H32))) -> 0 | O31: 0 | P31: =Årsarbetsschema!V32 -> 7
B32: 2026-06-29 | I32: 0 | J32: + | K32: 0 | N32: =IF(E32>0,E32-D32-F32-H32,IF(C32="",0,IF(C32="F",0,Årsarbetsschema!$H33))) -> 0 | O32: 0 | P32: =Årsarbetsschema!V33 -> 1
B33: 2026-06-30 | I33: =IF(N33<0,-N33,N33) -> 0 | J33: =IF(O33>=0,"+","-") -> + | K33: =IF(O33<0,-O33,O33) -> 0 | N33: =IF(E33>0,E33-D33-F33-H33,IF(C33="",0,IF(C33="F",0,Årsarbetsschema!$H34))) -> 0 | O33: =ROUND(IF(N33>0,I33-G33,IF(C33="F",I33-G33,0)),15) -> 0 | P33: =Årsarbetsschema!V34 -> 2
B34: 2026-07-01 | I34: 0 | J34: + | K34: 0 | N34: =IF(E34>0,E34-D34-F34-H34,IF(C34="",0,IF(C34="F",0,Årsarbetsschema!$H35))) -> 0 | O34: 0 | P34: =WEEKDAY(B34,2) -> 3
H35: Månad | I35: 0 | J35: =IF(O35>=0,"+","-") -> + | K35: =IF(O35<0,-O35,O35) -> 0 | N35: =SUM(N4:N34) -> 0 | O35: =SUM(O4:O34) -> 0
H36: Totalt | I36: 0 | J36: =IF(O36>=0,"+","-") -> + | K36: =IF(O36<0,-O36,O36) -> 0 | N36: =N35+N3 -> 0 | O36: =O35+O3 -> 0
J37: = | K37: =O36*24 -> 0
B38: =IF(Uppgifter!$C$6="","",Uppgifter!$C$6) -> 

Sheet Juli
B1: =PROPER(TEXT(B4,"MMMM ÅÅÅÅ")) -> Juli 2026 | G1: =IF(Uppgifter!$C$6="","",Uppgifter!$C$6) -> 
N2: Dagsumma | O2: Dagbalans | P2: Vdag
B3: Datum | C3: Kod | D3: In | E3: Ut | F3: Lunch | G3: Planerat | H3: Ledighet | I3: Arbetstid | K3: Flextid | L3: Anteckningar | N3: =Juni!N36 -> 0 | O3: =Juni!O36 -> 0
B4: =DATEVALUE(Uppgifter!C4 & "-07-01") -> 2026-07-01 | I4: =IF(N4<0,-N4,N4) -> 0 | J4: =IF(O4>=0,"+","-") -> + | K4: =IF(O4<0,-O4,O4) -> 0 | N4: =IF(E4>0,E4-D4-F4-H4,IF(C4="",0,IF(C4="F",0,Årsarbetsschema!$I5))) -> 0 | O4: =ROUND(IF(N4>0,I4-G4,IF(C4="F",I4-G4,0)),15) -> 0 | P4: =Årsarbetsschema!W5 -> 3 | Q4: F
B5: =B4+1 -> 2026-07-02 | I5: =IF(N5<0,-N5,N5) -> 0 | J5: + | K5: 0 | N5: =IF(E5>0,E5-D5-F5-H5,IF(C5="",0,IF(C5="F",0,Årsarbetsschema!$I6))) -> 0 | O5: =ROUND(IF(N5>0,I5-G5,IF(C5="F",I5-G5,0)),15) -> 0 | P5: =Årsarbetsschema!W6 -> 4 | Q5: Se
B6: =B5+1 -> 2026-07-03 | I6: 0 | J6: + | K6: 0 | N6: =IF(E6>0,E6-D6-F6-H6,IF(C6="",0,IF(C6="F",0,Årsarbetsschema!$I7))) -> 0 | O6: 0 | P6: =Årsarbetsschema!W7 -> 5 | Q6: Sj
B7: 2026-07-04 | I7: 0 | J7: + | K7: 0 | N7: =IF(E7>0,E7-D7-F7-H7,IF(C7="",0,IF(C7="F",0,Årsarbetsschema!$I8))) -> 0 | O7: 0 | P7: =Årsarbetsschema!W8 -> 6 | Q7: Tj
B8: 2026-07-05 | I8: 0 | J8: + | K8: 0 | N8: =IF(E8>0,E8-D8-F8-H8,IF(C8="",0,IF(C8="F",0,Årsarbetsschema!$I9))) -> 0 | O8: 0 | P8: =Årsarbetsschema!W9 -> 7 | Q8: VB
B9: 2026-07-06 | I9: 0 | J9: + | K9: 0 | N9: =IF(E9>0,E9-D9-F9-H9,IF(C9="",0,IF(C9="F",0,Årsarbetsschema!$I10))) -> 0 | O9: 0 | P9: =Årsarbetsschema!W10 -> 1 | Q9: FL
B10: 2026-07-07 | I10: 0 | J10: + | K10: 0 | N10: =IF(E10>0,E10-D10-F10-H10,IF(C10="",0,IF(C10="F",0,Årsarbetsschema!$I11))) -> 0 | O10: 0 | P10: =Årsarbetsschema!W11 -> 2
B11: 2026-07-08 | I11: 0 | J11: + | K11: 0 | N11: =IF(E11>0,E11-D11-F11-H11,IF(C11="",0,IF(C11="F",0,Årsarbetsschema!$I12))) -> 0 | O11: 0 | P11: =Årsarbetsschema!W12 -> 3
B12: 2026-07-09 | I12: 0 | J12: + | K12: 0 | N12: =IF(E12>0,E12-D12-F12-H12,IF(C12="",0,IF(C12="F",0,Årsarbetsschema!$I13))) -> 0 | O12: 0 | P12: =Årsarbetsschema!W13 -> 4
B13: 2026-07-10 | I13: 0 | J13: + | K13: 0 | N13: =IF(E13>0,E13-D13-F13-H13,IF(C13="",0,IF(C13="F",0,Årsarbetsschema!$I14))) -> 0 | O13: 0 | P13: =Årsarbetsschema!W14 -> 5
B14: 2026-07-11 | I14: 0 | J14: + | K14: 0 | N14: =IF(E14>0,E14-D14-F14-H14,IF(C14="",0,IF(C14="F",0,Årsarbetsschema!$I15))) -> 0 | O14: 0 | P14: =Årsarbetsschema!W15 -> 6
B15: 2026-07-12 | I15: 0 | J15: + | K15: 0 | N15: =IF(E15>0,E15-D15-F15-H15,IF(C15="",0,IF(C15="F",0,Årsarbetsschema!$I16))) -> 0 | O15: 0 | P15: =Årsarbetsschema!W16 -> 7
B16: 2026-07-13 | I16: 0 | J16: + | K16: 0 | N16: =IF(E16>0,E16-D16-F16-H16,IF(C16="",0,IF(C16="F",0,Årsarbetsschema!$I17))) -> 0 | O16: 0 | P16: =Årsarbetsschema!W17 -> 1
B17: 2026-07-14 | I17: 0 | J17: + | K17: 0 | N17: =IF(E17>0,E17-D17-F17-H17,IF(C17="",0,IF(C17="F",0,Årsarbetsschema!$I18))) -> 0 | O17: 0 | P17: =Årsarbetsschema!W18 -> 2
B18: 2026-07-15 | I18: 0 | J18: + | K18: 0 | N18: =IF(E18>0,E18-D18-F18-H18,IF(C18="",0,IF(C18="F",0,Årsarbetsschema!$I19))) -> 0 | O18: 0 | P18: =Årsarbetsschema!W19 -> 3
B19: 2026-07-16 | I19: 0 | J19: + | K19: 0 | N19: =IF(E19>0,E19-D19-F19-H19,IF(C19="",0,IF(C19="F",0,Årsarbetsschema!$I20))) -> 0 | O19: 0 | P19: =Årsarbetsschema!W20 -> 4
B20: 2026-07-17 | I20: 0 | J20: + | K20: 0 | N20: =IF(E20>0,E20-D20-F20-H20,IF(C20="",0,IF(C20="F",0,Årsarbetsschema!$I21))) -> 0 | O20: 0 | P20: =Årsarbetsschema!W21 -> 5
B21: 2026-07-18 | I21: 0 | J21: + | K21: 0 | N21: =IF(E21>0,E21-D21-F21-H21,IF(C21="",0,IF(C21="F",0,Årsarbetsschema!$I22))) -> 0 | O21: 0 | P21: =Årsarbetsschema!W22 -> 6
B22: 2026-07-19 | I22: 0 | J22: + | K22: 0 | N22: =IF(E22>0,E22-D22-F22-H22,IF(C22="",0,IF(C22="F",0,Årsarbetsschema!$I23))) -> 0 | O22: 0 | P22: =Årsarbetsschema!W23 -> 7
B23: 2026-07-20 | I23: 0 | J23: + | K23: 0 | N23: =IF(E23>0,E23-D23-F23-H23,IF(C23="",0,IF(C23="F",0,Årsarbetsschema!$I24))) -> 0 | O23: 0 | P23: =Årsarbetsschema!W24 -> 1
B24: 2026-07-21 | I24: 0 | J24: + | K24: 0 | N24: =IF(E24>0,E24-D24-F24-H24,IF(C24="",0,IF(C24="F",0,Årsarbetsschema!$I25))) -> 0 | O24: 0 | P24: =Årsarbetsschema!W25 -> 2
B25: 2026-07-22 | I25: 0 | J25: + | K25: 0 | N25: =IF(E25>0,E25-D25-F25-H25,IF(C25="",0,IF(C25="F",0,Årsarbetsschema!$I26))) -> 0 | O25: 0 | P25: =Årsarbetsschema!W26 -> 3
B26: 2026-07-23 | I26: 0 | J26: + | K26: 0 | N26: =IF(E26>0,E26-D26-F26-H26,IF(C26="",0,IF(C26="F",0,Årsarbetsschema!$I27))) -> 0 | O26: 0 | P26: =Årsarbetsschema!W27 -> 4
B27: 2026-07-24 | I27: 0 | J27: + | K27: 0 | N27: =IF(E27>0,E27-D27-F27-H27,IF(C27="",0,IF(C27="F",0,Årsarbetsschema!$I28))) -> 0 | O27: 0 | P27: =Årsarbetsschema!W28 -> 5
B28: 2026-07-25 | I28: 0 | J28: + | K28: 0 | N28: =IF(E28>0,E28-D28-F28-H28,IF(C28="",0,IF(C28="F",0,Årsarbetsschema!$I29))) -> 0 | O28: 0 | P28: =Årsarbetsschema!W29 -> 6
B29: 2026-07-26 | I29: 0 | J29: + | K29: 0 | N29: =IF(E29>0,E29-D29-F29-H29,IF(C29="",0,IF(C29="F",0,Årsarbetsschema!$I30))) -> 0 | O29: 0 | P29: =Årsarbetsschema!W30 -> 7
B30: 2026-07-27 | I30: 0 | J30: + | K30: 0 | N30: =IF(E30>0,E30-D30-F30-H30,IF(C30="",0,IF(C30="F",0,Årsarbetsschema!$I31))) -> 0 | O30: 0 | P30: =Årsarbetsschema!W31 -> 1
B31: 2026-07-28 | I31: 0 | J31: + | K31: 0 | N31: =IF(E31>0,E31-D31-F31-H31,IF(C31="",0,IF(C31="F",0,Årsarbetsschema!$I32))) -> 0 | O31: 0 | P31: =Årsarbetsschema!W32 -> 2
B32: 2026-07-29 | I32: 0 | J32: + | K32: 0 | N32: =IF(E32>0,E32-D32-F32-H32,IF(C32="",0,IF(C32="F",0,Årsarbetsschema!$I33))) -> 0 | O32: 0 | P32: =Årsarbetsschema!W33 -> 3
B33: 2026-07-30 | I33: 0 | J33: + | K33: 0 | N33: =IF(E33>0,E33-D33-F33-H33,IF(C33="",0,IF(C33="F",0,Årsarbetsschema!$I34))) -> 0 | O33: 0 | P33: =Årsarbetsschema!W34 -> 4
B34: 2026-07-31 | I34: 0 | J34: + | K34: 0 | N34: =IF(E34>0,E34-D34-F34-H34,IF(C34="",0,IF(C34="F",0,Årsarbetsschema!$I35))) -> 0 | O34: 0 | P34: =Årsarbetsschema!W35 -> 5
H35: Månad | I35: 0 | J35: + | K35: =IF(O35<0,-O35,O35) -> 0 | N35: =SUM(N4:N34) -> 0 | O35: =SUM(O4:O34) -> 0
H36: Totalt | I36: 0 | J36: + | K36: =IF(O36<0,-O36,O36) -> 0 | N36: =N35+N3 -> 0 | O36: =O35+O3 -> 0
J37: = | K37: =O36*24 -> 0
B38: =IF(Uppgifter!$C$6="","",Uppgifter!$C$6) -> 

Sheet Augusti
B1: =PROPER(TEXT(B4,"MMMM ÅÅÅÅ")) -> Augusti 2026 | G1: =IF(Uppgifter!$C$6="","",Uppgifter!$C$6) -> 
N2: Dagsumma | O2: Dagbalans | P2: Vdag
B3: Datum | C3: Kod | D3: In | E3: Ut | F3: Lunch | G3: Planerat | H3: Ledighet | I3: Arbetstid | K3: Flextid | L3: Anteckningar | N3: =Juli!N36 -> 0 | O3: =Juli!O36 -> 0
B4: =DATEVALUE(Uppgifter!C4 & "-08-01") -> 2026-08-01 | I4: =IF(N4<0,-N4,N4) -> 0 | J4: =IF(O4>=0,"+","-") -> + | K4: =IF(O4<0,-O4,O4) -> 0 | N4: =IF(E4>0,E4-D4-F4-H4,IF(C4="",0,IF(C4="F",0,Årsarbetsschema!$J5))) -> 0 | O4: =ROUND(IF(N4>0,I4-G4,IF(C4="F",I4-G4,0)),15) -> 0 | P4: =Årsarbetsschema!X5 -> 6 | Q4: F
B5: =B4+1 -> 2026-08-02 | I5: =IF(N5<0,-N5,N5) -> 0 | J5: + | K5: 0 | N5: =IF(E5>0,E5-D5-F5-H5,IF(C5="",0,IF(C5="F",0,Årsarbetsschema!$J6))) -> 0 | O5: =ROUND(IF(N5>0,I5-G5,IF(C5="F",I5-G5,0)),15) -> 0 | P5: =Årsarbetsschema!X6 -> 7 | Q5: Se
B6: =B5+1 -> 2026-08-03 | I6: 0 | J6: + | K6: 0 | N6: =IF(E6>0,E6-D6-F6-H6,IF(C6="",0,IF(C6="F",0,Årsarbetsschema!$J7))) -> 0 | O6: 0 | P6: =Årsarbetsschema!X7 -> 1 | Q6: Sj
B7: 2026-08-04 | I7: 0 | J7: + | K7: 0 | N7: =IF(E7>0,E7-D7-F7-H7,IF(C7="",0,IF(C7="F",0,Årsarbetsschema!$J8))) -> 0 | O7: 0 | P7: =Årsarbetsschema!X8 -> 2 | Q7: Tj
B8: 2026-08-05 | I8: 0 | J8: + | K8: 0 | N8: =IF(E8>0,E8-D8-F8-H8,IF(C8="",0,IF(C8="F",0,Årsarbetsschema!$J9))) -> 0 | O8: 0 | P8: =Årsarbetsschema!X9 -> 3 | Q8: VB
B9: 2026-08-06 | I9: 0 | J9: + | K9: 0 | N9: =IF(E9>0,E9-D9-F9-H9,IF(C9="",0,IF(C9="F",0,Årsarbetsschema!$J10))) -> 0 | O9: 0 | P9: =Årsarbetsschema!X10 -> 4 | Q9: FL
B10: 2026-08-07 | I10: 0 | J10: + | K10: 0 | N10: =IF(E10>0,E10-D10-F10-H10,IF(C10="",0,IF(C10="F",0,Årsarbetsschema!$J11))) -> 0 | O10: 0 | P10: =Årsarbetsschema!X11 -> 5
B11: 2026-08-08 | I11: 0 | J11: + | K11: 0 | N11: =IF(E11>0,E11-D11-F11-H11,IF(C11="",0,IF(C11="F",0,Årsarbetsschema!$J12))) -> 0 | O11: 0 | P11: =Årsarbetsschema!X12 -> 6
B12: 2026-08-09 | I12: 0 | J12: + | K12: 0 | N12: =IF(E12>0,E12-D12-F12-H12,IF(C12="",0,IF(C12="F",0,Årsarbetsschema!$J13))) -> 0 | O12: 0 | P12: =Årsarbetsschema!X13 -> 7
B13: 2026-08-10 | I13: 0 | J13: + | K13: 0 | N13: =IF(E13>0,E13-D13-F13-H13,IF(C13="",0,IF(C13="F",0,Årsarbetsschema!$J14))) -> 0 | O13: 0 | P13: =Årsarbetsschema!X14 -> 1
B14: 2026-08-11 | I14: 0 | J14: + | K14: 0 | N14: =IF(E14>0,E14-D14-F14-H14,IF(C14="",0,IF(C14="F",0,Årsarbetsschema!$J15))) -> 0 | O14: 0 | P14: =Årsarbetsschema!X15 -> 2
B15: 2026-08-12 | I15: 0 | J15: + | K15: 0 | N15: =IF(E15>0,E15-D15-F15-H15,IF(C15="",0,IF(C15="F",0,Årsarbetsschema!$J16))) -> 0 | O15: 0 | P15: =Årsarbetsschema!X16 -> 3
B16: 2026-08-13 | I16: 0 | J16: + | K16: 0 | N16: =IF(E16>0,E16-D16-F16-H16,IF(C16="",0,IF(C16="F",0,Årsarbetsschema!$J17))) -> 0 | O16: 0 | P16: =Årsarbetsschema!X17 -> 4
B17: 2026-08-14 | I17: 0 | J17: + | K17: 0 | N17: =IF(E17>0,E17-D17-F17-H17,IF(C17="",0,IF(C17="F",0,Årsarbetsschema!$J18))) -> 0 | O17: 0 | P17: =Årsarbetsschema!X18 -> 5
B18: 2026-08-15 | I18: 0 | J18: + | K18: 0 | N18: =IF(E18>0,E18-D18-F18-H18,IF(C18="",0,IF(C18="F",0,Årsarbetsschema!$J19))) -> 0 | O18: 0 | P18: =Årsarbetsschema!X19 -> 6
B19: 2026-08-16 | I19: 0 | J19: + | K19: 0 | N19: =IF(E19>0,E19-D19-F19-H19,IF(C19="",0,IF(C19="F",0,Årsarbetsschema!$J20))) -> 0 | O19: 0 | P19: =Årsarbetsschema!X20 -> 7
B20: 2026-08-17 | I20: 0 | J20: + | K20: 0 | N20: =IF(E20>0,E20-D20-F20-H20,IF(C20="",0,IF(C20="F",0,Årsarbetsschema!$J21))) -> 0 | O20: 0 | P20: =Årsarbetsschema!X21 -> 1
B21: 2026-08-18 | I21: 0 | J21: + | K21: 0 | N21: =IF(E21>0,E21-D21-F21-H21,IF(C21="",0,IF(C21="F",0,Årsarbetsschema!$J22))) -> 0 | O21: 0 | P21: =Årsarbetsschema!X22 -> 2
B22: 2026-08-19 | I22: 0 | J22: + | K22: 0 | N22: =IF(E22>0,E22-D22-F22-H22,IF(C22="",0,IF(C22="F",0,Årsarbetsschema!$J23))) -> 0 | O22: 0 | P22: =Årsarbetsschema!X23 -> 3
B23: 2026-08-20 | I23: 0 | J23: + | K23: 0 | N23: =IF(E23>0,E23-D23-F23-H23,IF(C23="",0,IF(C23="F",0,Årsarbetsschema!$J24))) -> 0 | O23: 0 | P23: =Årsarbetsschema!X24 -> 4
B24: 2026-08-21 | I24: 0 | J24: + | K24: 0 | N24: =IF(E24>0,E24-D24-F24-H24,IF(C24="",0,IF(C24="F",0,Årsarbetsschema!$J25))) -> 0 | O24: 0 | P24: =Årsarbetsschema!X25 -> 5
B25: 2026-08-22 | I25: 0 | J25: + | K25: 0 | N25: =IF(E25>0,E25-D25-F25-H25,IF(C25="",0,IF(C25="F",0,Årsarbetsschema!$J26))) -> 0 | O25: 0 | P25: =Årsarbetsschema!X26 -> 6
B26: 2026-08-23 | I26: 0 | J26: + | K26: 0 | N26: =IF(E26>0,E26-D26-F26-H26,IF(C26="",0,IF(C26="F",0,Årsarbetsschema!$J27))) -> 0 | O26: 0 | P26: =Årsarbetsschema!X27 -> 7
B27: 2026-08-24 | I27: 0 | J27: + | K27: 0 | N27: =IF(E27>0,E27-D27-F27-H27,IF(C27="",0,IF(C27="F",0,Årsarbetsschema!$J28))) -> 0 | O27: 0 | P27: =Årsarbetsschema!X28 -> 1
B28: 2026-08-25 | I28: 0 | J28: + | K28: 0 | N28: =IF(E28>0,E28-D28-F28-H28,IF(C28="",0,IF(C28="F",0,Årsarbetsschema!$J29))) -> 0 | O28: 0 | P28: =Årsarbetsschema!X29 -> 2
B29: 2026-08-26 | I29: 0 | J29: + | K29: 0 | N29: =IF(E29>0,E29-D29-F29-H29,IF(C29="",0,IF(C29="F",0,Årsarbetsschema!$J30))) -> 0 | O29: 0 | P29: =Årsarbetsschema!X30 -> 3
B30: 2026-08-27 | I30: 0 | J30: + | K30: 0 | N30: =IF(E30>0,E30-D30-F30-H30,IF(C30="",0,IF(C30="F",0,Årsarbetsschema!$J31))) -> 0 | O30: 0 | P30: =Årsarbetsschema!X31 -> 4
B31: 2026-08-28 | I31: 0 | J31: + | K31: 0 | N31: =IF(E31>0,E31-D31-F31-H31,IF(C31="",0,IF(C31="F",0,Årsarbetsschema!$J32))) -> 0 | O31: 0 | P31: =Årsarbetsschema!X32 -> 5
B32: 2026-08-29 | I32: 0 | J32: + | K32: 0 | N32: =IF(E32>0,E32-D32-F32-H32,IF(C32="",0,IF(C32="F",0,Årsarbetsschema!$J33))) -> 0 | O32: 0 | P32: =Årsarbetsschema!X33 -> 6
B33: 2026-08-30 | I33: 0 | J33: + | K33: 0 | N33: =IF(E33>0,E33-D33-F33-H33,IF(C33="",0,IF(C33="F",0,Årsarbetsschema!$J34))) -> 0 | O33: 0 | P33: =Årsarbetsschema!X34 -> 7
B34: 2026-08-31 | I34: 0 | J34: + | K34: 0 | N34: =IF(E34>0,E34-D34-F34-H34,IF(C34="",0,IF(C34="F",0,Årsarbetsschema!$J35))) -> 0 | O34: 0 | P34: =Årsarbetsschema!X35 -> 1
H35: Månad | I35: 0 | J35: + | K35: =IF(O35<0,-O35,O35) -> 0 | N35: =SUM(N4:N34) -> 0 | O35: =SUM(O4:O34) -> 0
H36: Totalt | I36: 0 | J36: + | K36: =IF(O36<0,-O36,O36) -> 0 | N36: =N35+N3 -> 0 | O36: =O35+O3 -> 0
J37: = | K37: =O36*24 -> 0
B38: =IF(Uppgifter!$C$6="","",Uppgifter!$C$6) -> 

Sheet September
B1: =PROPER(TEXT(B4,"MMMM ÅÅÅÅ")) -> September 2026 | G1: =IF(Uppgifter!$C$6="","",Uppgifter!$C$6) -> 
N2: Dagsumma | O2: Dagbalans | P2: Vdag
B3: Datum | C3: Kod | D3: In | E3: Ut | F3: Lunch | G3: Planerat | H3: Ledighet | I3: Arbetstid | K3: Flextid | L3: Anteckningar | N3: =Augusti!N36 -> 0 | O3: =Augusti!O36 -> 0
B4: =DATEVALUE(Uppgifter!C4 & "-09-01") -> 2026-09-01 | I4: =IF(N4<0,-N4,N4) -> 0 | J4: =IF(O4>=0,"+","-") -> + | K4: =IF(O4<0,-O4,O4) -> 0 | N4: =IF(E4>0,E4-D4-F4-H4,IF(C4="",0,IF(C4="F",0,Årsarbetsschema!$K5))) -> 0 | O4: =ROUND(IF(N4>0,I4-G4,IF(C4="F",I4-G4,0)),15) -> 0 | P4: =Årsarbetsschema!Y5 -> 2 | Q4: F
B5: =B4+1 -> 2026-09-02 | I5: =IF(N5<0,-N5,N5) -> 0 | J5: + | K5: 0 | N5: =IF(E5>0,E5-D5-F5-H5,IF(C5="",0,IF(C5="F",0,Årsarbetsschema!$K6))) -> 0 | O5: =ROUND(IF(N5>0,I5-G5,IF(C5="F",I5-G5,0)),15) -> 0 | P5: =Årsarbetsschema!Y6 -> 3 | Q5: Se
B6: =B5+1 -> 2026-09-03 | I6: 0 | J6: + | K6: 0 | N6: =IF(E6>0,E6-D6-F6-H6,IF(C6="",0,IF(C6="F",0,Årsarbetsschema!$K7))) -> 0 | O6: 0 | P6: =Årsarbetsschema!Y7 -> 4 | Q6: Sj
B7: 2026-09-04 | I7: 0 | J7: + | K7: 0 | N7: =IF(E7>0,E7-D7-F7-H7,IF(C7="",0,IF(C7="F",0,Årsarbetsschema!$K8))) -> 0 | O7: 0 | P7: =Årsarbetsschema!Y8 -> 5 | Q7: Tj
B8: 2026-09-05 | I8: 0 | J8: + | K8: 0 | N8: =IF(E8>0,E8-D8-F8-H8,IF(C8="",0,IF(C8="F",0,Årsarbetsschema!$K9))) -> 0 | O8: 0 | P8: =Årsarbetsschema!Y9 -> 6 | Q8: VB
B9: 2026-09-06 | I9: 0 | J9: + | K9: 0 | N9: =IF(E9>0,E9-D9-F9-H9,IF(C9="",0,IF(C9="F",0,Årsarbetsschema!$K10))) -> 0 | O9: 0 | P9: =Årsarbetsschema!Y10 -> 7 | Q9: FL
B10: 2026-09-07 | I10: 0 | J10: + | K10: 0 | N10: =IF(E10>0,E10-D10-F10-H10,IF(C10="",0,IF(C10="F",0,Årsarbetsschema!$K11))) -> 0 | O10: 0 | P10: =Årsarbetsschema!Y11 -> 1
B11: 2026-09-08 | I11: 0 | J11: + | K11: 0 | N11: =IF(E11>0,E11-D11-F11-H11,IF(C11="",0,IF(C11="F",0,Årsarbetsschema!$K12))) -> 0 | O11: 0 | P11: =Årsarbetsschema!Y12 -> 2
B12: 2026-09-09 | I12: 0 | J12: + | K12: 0 | N12: =IF(E12>0,E12-D12-F12-H12,IF(C12="",0,IF(C12="F",0,Årsarbetsschema!$K13))) -> 0 | O12: 0 | P12: =Årsarbetsschema!Y13 -> 3
B13: 2026-09-10 | I13: 0 | J13: + | K13: 0 | N13: =IF(E13>0,E13-D13-F13-H13,IF(C13="",0,IF(C13="F",0,Årsarbetsschema!$K14))) -> 0 | O13: 0 | P13: =Årsarbetsschema!Y14 -> 4
B14: 2026-09-11 | I14: 0 | J14: + | K14: 0 | N14: =IF(E14>0,E14-D14-F14-H14,IF(C14="",0,IF(C14="F",0,Årsarbetsschema!$K15))) -> 0 | O14: 0 | P14: =Årsarbetsschema!Y15 -> 5
B15: 2026-09-12 | I15: 0 | J15: + | K15: 0 | N15: =IF(E15>0,E15-D15-F15-H15,IF(C15="",0,IF(C15="F",0,Årsarbetsschema!$K16))) -> 0 | O15: 0 | P15: =Årsarbetsschema!Y16 -> 6
B16: 2026-09-13 | I16: 0 | J16: + | K16: 0 | N16: =IF(E16>0,E16-D16-F16-H16,IF(C16="",0,IF(C16="F",0,Årsarbetsschema!$K17))) -> 0 | O16: 0 | P16: =Årsarbetsschema!Y17 -> 7
B17: 2026-09-14 | I17: 0 | J17: + | K17: 0 | N17: =IF(E17>0,E17-D17-F17-H17,IF(C17="",0,IF(C17="F",0,Årsarbetsschema!$K18))) -> 0 | O17: 0 | P17: =Årsarbetsschema!Y18 -> 1
B18: 2026-09-15 | I18: 0 | J18: + | K18: 0 | N18: =IF(E18>0,E18-D18-F18-H18,IF(C18="",0,IF(C18="F",0,Årsarbetsschema!$K19))) -> 0 | O18: 0 | P18: =Årsarbetsschema!Y19 -> 2
B19: 2026-09-16 | I19: 0 | J19: + | K19: 0 | N19: =IF(E19>0,E19-D19-F19-H19,IF(C19="",0,IF(C19="F",0,Årsarbetsschema!$K20))) -> 0 | O19: 0 | P19: =Årsarbetsschema!Y20 -> 3
B20: 2026-09-17 | I20: 0 | J20: + | K20: 0 | N20: =IF(E20>0,E20-D20-F20-H20,IF(C20="",0,IF(C20="F",0,Årsarbetsschema!$K21))) -> 0 | O20: 0 | P20: =Årsarbetsschema!Y21 -> 4
B21: 2026-09-18 | I21: 0 | J21: + | K21: 0 | N21: =IF(E21>0,E21-D21-F21-H21,IF(C21="",0,IF(C21="F",0,Årsarbetsschema!$K22))) -> 0 | O21: 0 | P21: =Årsarbetsschema!Y22 -> 5
B22: 2026-09-19 | I22: 0 | J22: + | K22: 0 | N22: =IF(E22>0,E22-D22-F22-H22,IF(C22="",0,IF(C22="F",0,Årsarbetsschema!$K23))) -> 0 | O22: 0 | P22: =Årsarbetsschema!Y23 -> 6
B23: 2026-09-20 | I23: 0 | J23: + | K23: 0 | N23: =IF(E23>0,E23-D23-F23-H23,IF(C23="",0,IF(C23="F",0,Årsarbetsschema!$K24))) -> 0 | O23: 0 | P23: =Årsarbetsschema!Y24 -> 7
B24: 2026-09-21 | I24: 0 | J24: + | K24: 0 | N24: =IF(E24>0,E24-D24-F24-H24,IF(C24="",0,IF(C24="F",0,Årsarbetsschema!$K25))) -> 0 | O24: 0 | P24: =Årsarbetsschema!Y25 -> 1
B25: 2026-09-22 | I25: 0 | J25: + | K25: 0 | N25: =IF(E25>0,E25-D25-F25-H25,IF(C25="",0,IF(C25="F",0,Årsarbetsschema!$K26))) -> 0 | O25: 0 | P25: =Årsarbetsschema!Y26 -> 2
B26: 2026-09-23 | I26: 0 | J26: + | K26: 0 | N26: =IF(E26>0,E26-D26-F26-H26,IF(C26="",0,IF(C26="F",0,Årsarbetsschema!$K27))) -> 0 | O26: 0 | P26: =Årsarbetsschema!Y27 -> 3
B27: 2026-09-24 | I27: 0 | J27: + | K27: 0 | N27: =IF(E27>0,E27-D27-F27-H27,IF(C27="",0,IF(C27="F",0,Årsarbetsschema!$K28))) -> 0 | O27: 0 | P27: =Årsarbetsschema!Y28 -> 4
B28: 2026-09-25 | I28: 0 | J28: + | K28: 0 | N28: =IF(E28>0,E28-D28-F28-H28,IF(C28="",0,IF(C28="F",0,Årsarbetsschema!$K29))) -> 0 | O28: 0 | P28: =Årsarbetsschema!Y29 -> 5
B29: 2026-09-26 | I29: 0 | J29: + | K29: 0 | N29: =IF(E29>0,E29-D29-F29-H29,IF(C29="",0,IF(C29="F",0,Årsarbetsschema!$K30))) -> 0 | O29: 0 | P29: =Årsarbetsschema!Y30 -> 6
B30: 2026-09-27 | I30: 0 | J30: + | K30: 0 | N30: =IF(E30>0,E30-D30-F30-H30,IF(C30="",0,IF(C30="F",0,Årsarbetsschema!$K31))) -> 0 | O30: 0 | P30: =Årsarbetsschema!Y31 -> 7
B31: 2026-09-28 | I31: 0 | J31: + | K31: 0 | N31: =IF(E31>0,E31-D31-F31-H31,IF(C31="",0,IF(C31="F",0,Årsarbetsschema!$K32))) -> 0 | O31: 0 | P31: =Årsarbetsschema!Y32 -> 1
B32: 2026-09-29 | I32: 0 | J32: + | K32: 0 | N32: =IF(E32>0,E32-D32-F32-H32,IF(C32="",0,IF(C32="F",0,Årsarbetsschema!$K33))) -> 0 | O32: =ROUND(IF(N32>0,I32-G32,IF(C32="F",I32-G32,0)),15) -> 0 | P32: =Årsarbetsschema!Y33 -> 2
B33: 2026-09-30 | I33: =IF(N33<0,-N33,N33) -> 0 | J33: =IF(O33>=0,"+","-") -> + | K33: =IF(O33<0,-O33,O33) -> 0 | N33: =IF(E33>0,E33-D33-F33-H33,IF(C33="",0,IF(C33="F",0,Årsarbetsschema!$K34))) -> 0 | O33: 0 | P33: =Årsarbetsschema!Y34 -> 3
B34: 2026-10-01 | I34: 0 | J34: + | K34: 0 | N34: =IF(E34>0,E34-D34-F34-H34,IF(C34="",0,IF(C34="F",0,Årsarbetsschema!$D$39))) -> 0 | O34: 0 | P34: =WEEKDAY(B34,2) -> 4
H35: Månad | I35: 0 | J35: =IF(O35>=0,"+","-") -> + | K35: =IF(O35<0,-O35,O35) -> 0 | N35: =SUM(N4:N34) -> 0 | O35: =SUM(O4:O34) -> 0
H36: Totalt | I36: 0 | J36: =IF(O36>=0,"+","-") -> + | K36: =IF(O36<0,-O36,O36) -> 0 | N36: =N35+N3 -> 0 | O36: =O35+O3 -> 0
J37: = | K37: =O36*24 -> 0
B38: =IF(Uppgifter!$C$6="","",Uppgifter!$C$6) -> 

Sheet Oktober
B1: =PROPER(TEXT(B4,"MMMM ÅÅÅÅ")) -> Oktober 2026 | G1: =IF(Uppgifter!$C$6="","",Uppgifter!$C$6) -> 
N2: Dagsumma | O2: Dagbalans | P2: Vdag
B3: Datum | C3: Kod | D3: In | E3: Ut | F3: Lunch | G3: Planerat | H3: Ledighet | I3: Arbetstid | K3: Flextid | L3: Anteckningar | N3: =September!N36 -> 0 | O3: =September!O36 -> 0
B4: =DATEVALUE(Uppgifter!C4 & "-10-01") -> 2026-10-01 | I4: =IF(N4<0,-N4,N4) -> 0 | J4: =IF(O4>=0,"+","-") -> + | K4: =IF(O4<0,-O4,O4) -> 0 | N4: =IF(E4>0,E4-D4-F4-H4,IF(C4="",0,IF(C4="F",0,Årsarbetsschema!$L5))) -> 0 | O4: =ROUND(IF(N4>0,I4-G4,IF(C4="F",I4-G4,0)),15) -> 0 | P4: =Årsarbetsschema!Z5 -> 4 | Q4: F
B5: =B4+1 -> 2026-10-02 | I5: 0 | J5: + | K5: 0 | N5: =IF(E5>0,E5-D5-F5-H5,IF(C5="",0,IF(C5="F",0,Årsarbetsschema!$L6))) -> 0 | O5: =ROUND(IF(N5>0,I5-G5,IF(C5="F",I5-G5,0)),15) -> 0 | P5: =Årsarbetsschema!Z6 -> 5 | Q5: Se
B6: =B5+1 -> 2026-10-03 | I6: 0 | J6: + | K6: 0 | N6: =IF(E6>0,E6-D6-F6-H6,IF(C6="",0,IF(C6="F",0,Årsarbetsschema!$L7))) -> 0 | O6: 0 | P6: =Årsarbetsschema!Z7 -> 6 | Q6: Sj
B7: 2026-10-04 | I7: 0 | J7: + | K7: 0 | N7: =IF(E7>0,E7-D7-F7-H7,IF(C7="",0,IF(C7="F",0,Årsarbetsschema!$L8))) -> 0 | O7: 0 | P7: =Årsarbetsschema!Z8 -> 7 | Q7: Tj
B8: 2026-10-05 | I8: 0 | J8: + | K8: 0 | N8: =IF(E8>0,E8-D8-F8-H8,IF(C8="",0,IF(C8="F",0,Årsarbetsschema!$L9))) -> 0 | O8: 0 | P8: =Årsarbetsschema!Z9 -> 1 | Q8: VB
B9: 2026-10-06 | I9: 0 | J9: + | K9: 0 | N9: =IF(E9>0,E9-D9-F9-H9,IF(C9="",0,IF(C9="F",0,Årsarbetsschema!$L10))) -> 0 | O9: 0 | P9: =Årsarbetsschema!Z10 -> 2 | Q9: FL
B10: 2026-10-07 | I10: 0 | J10: + | K10: 0 | N10: =IF(E10>0,E10-D10-F10-H10,IF(C10="",0,IF(C10="F",0,Årsarbetsschema!$L11))) -> 0 | O10: 0 | P10: =Årsarbetsschema!Z11 -> 3
B11: 2026-10-08 | I11: 0 | J11: + | K11: 0 | N11: =IF(E11>0,E11-D11-F11-H11,IF(C11="",0,IF(C11="F",0,Årsarbetsschema!$L12))) -> 0 | O11: 0 | P11: =Årsarbetsschema!Z12 -> 4
B12: 2026-10-09 | I12: 0 | J12: + | K12: 0 | N12: =IF(E12>0,E12-D12-F12-H12,IF(C12="",0,IF(C12="F",0,Årsarbetsschema!$L13))) -> 0 | O12: 0 | P12: =Årsarbetsschema!Z13 -> 5
B13: 2026-10-10 | I13: 0 | J13: + | K13: 0 | N13: =IF(E13>0,E13-D13-F13-H13,IF(C13="",0,IF(C13="F",0,Årsarbetsschema!$L14))) -> 0 | O13: 0 | P13: =Årsarbetsschema!Z14 -> 6
B14: 2026-10-11 | I14: 0 | J14: + | K14: 0 | N14: =IF(E14>0,E14-D14-F14-H14,IF(C14="",0,IF(C14="F",0,Årsarbetsschema!$L15))) -> 0 | O14: 0 | P14: =Årsarbetsschema!Z15 -> 7
B15: 2026-10-12 | I15: 0 | J15: + | K15: 0 | N15: =IF(E15>0,E15-D15-F15-H15,IF(C15="",0,IF(C15="F",0,Årsarbetsschema!$L16))) -> 0 | O15: 0 | P15: =Årsarbetsschema!Z16 -> 1
B16: 2026-10-13 | I16: 0 | J16: + | K16: 0 | N16: =IF(E16>0,E16-D16-F16-H16,IF(C16="",0,IF(C16="F",0,Årsarbetsschema!$L17))) -> 0 | O16: 0 | P16: =Årsarbetsschema!Z17 -> 2
B17: 2026-10-14 | I17: 0 | J17: + | K17: 0 | N17: =IF(E17>0,E17-D17-F17-H17,IF(C17="",0,IF(C17="F",0,Årsarbetsschema!$L18))) -> 0 | O17: 0 | P17: =Årsarbetsschema!Z18 -> 3
B18: 2026-10-15 | I18: 0 | J18: + | K18: 0 | N18: =IF(E18>0,E18-D18-F18-H18,IF(C18="",0,IF(C18="F",0,Årsarbetsschema!$L19))) -> 0 | O18: 0 | P18: =Årsarbetsschema!Z19 -> 4
B19: 2026-10-16 | I19: 0 | J19: + | K19: 0 | N19: =IF(E19>0,E19-D19-F19-H19,IF(C19="",0,IF(C19="F",0,Årsarbetsschema!$L20))) -> 0 | O19: 0 | P19: =Årsarbetsschema!Z20 -> 5
B20: 2026-10-17 | I20: 0 | J20: + | K20: 0 | N20: =IF(E20>0,E20-D20-F20-H20,IF(C20="",0,IF(C20="F",0,Årsarbetsschema!$L21))) -> 0 | O20: 0 | P20: =Årsarbetsschema!Z21 -> 6
B21: 2026-10-18 | I21: 0 | J21: + | K21: 0 | N21: =IF(E21>0,E21-D21-F21-H21,IF(C21="",0,IF(C21="F",0,Årsarbetsschema!$L22))) -> 0 | O21: 0 | P21: =Årsarbetsschema!Z22 -> 7
B22: 2026-10-19 | I22: 0 | J22: + | K22: 0 | N22: =IF(E22>0,E22-D22-F22-H22,IF(C22="",0,IF(C22="F",0,Årsarbetsschema!$L23))) -> 0 | O22: 0 | P22: =Årsarbetsschema!Z23 -> 1
B23: 2026-10-20 | I23: 0 | J23: + | K23: 0 | N23: =IF(E23>0,E23-D23-F23-H23,IF(C23="",0,IF(C23="F",0,Årsarbetsschema!$L24))) -> 0 | O23: 0 | P23: =Årsarbetsschema!Z24 -> 2
B24: 2026-10-21 | I24: 0 | J24: + | K24: 0 | N24: =IF(E24>0,E24-D24-F24-H24,IF(C24="",0,IF(C24="F",0,Årsarbetsschema!$L25))) -> 0 | O24: 0 | P24: =Årsarbetsschema!Z25 -> 3
B25: 2026-10-22 | I25: 0 | J25: + | K25: 0 | N25: =IF(E25>0,E25-D25-F25-H25,IF(C25="",0,IF(C25="F",0,Årsarbetsschema!$L26))) -> 0 | O25: 0 | P25: =Årsarbetsschema!Z26 -> 4
B26: 2026-10-23 | I26: 0 | J26: + | K26: 0 | N26: =IF(E26>0,E26-D26-F26-H26,IF(C26="",0,IF(C26="F",0,Årsarbetsschema!$L27))) -> 0 | O26: 0 | P26: =Årsarbetsschema!Z27 -> 5
B27: 2026-10-24 | I27: 0 | J27: + | K27: 0 | N27: =IF(E27>0,E27-D27-F27-H27,IF(C27="",0,IF(C27="F",0,Årsarbetsschema!$L28))) -> 0 | O27: 0 | P27: =Årsarbetsschema!Z28 -> 6
B28: 2026-10-25 | I28: 0 | J28: + | K28: 0 | N28: =IF(E28>0,E28-D28-F28-H28,IF(C28="",0,IF(C28="F",0,Årsarbetsschema!$L29))) -> 0 | O28: 0 | P28: =Årsarbetsschema!Z29 -> 7
B29: 2026-10-26 | I29: 0 | J29: + | K29: 0 | N29: =IF(E29>0,E29-D29-F29-H29,IF(C29="",0,IF(C29="F",0,Årsarbetsschema!$L30))) -> 0 | O29: 0 | P29: =Årsarbetsschema!Z30 -> 1
B30: 2026-10-27 | I30: 0 | J30: + | K30: 0 | N30: =IF(E30>0,E30-D30-F30-H30,IF(C30="",0,IF(C30="F",0,Årsarbetsschema!$L31))) -> 0 | O30: 0 | P30: =Årsarbetsschema!Z31 -> 2
B31: 2026-10-28 | I31: 0 | J31: + | K31: 0 | N31: =IF(E31>0,E31-D31-F31-H31,IF(C31="",0,IF(C31="F",0,Årsarbetsschema!$L32))) -> 0 | O31: 0 | P31: =Årsarbetsschema!Z32 -> 3
B32: 2026-10-29 | I32: 0 | J32: + | K32: 0 | N32: =IF(E32>0,E32-D32-F32-H32,IF(C32="",0,IF(C32="F",0,Årsarbetsschema!$L33))) -> 0 | O32: 0 | P32: =Årsarbetsschema!Z33 -> 4
B33: 2026-10-30 | I33: 0 | J33: + | K33: 0 | N33: =IF(E33>0,E33-D33-F33-H33,IF(C33="",0,IF(C33="F",0,Årsarbetsschema!$L34))) -> 0 | O33: 0 | P33: =Årsarbetsschema!Z34 -> 5
B34: 2026-10-31 | I34: 0 | J34: + | K34: 0 | N34: =IF(E34>0,E34-D34-F34-H34,IF(C34="",0,IF(C34="F",0,Årsarbetsschema!$L35))) -> 0 | O34: 0 | P34: =Årsarbetsschema!Z35 -> 6
H35: Månad | I35: 0 | J35: + | K35: 0 | N35: =SUM(N4:N34) -> 0 | O35: =SUM(O4:O34) -> 0
H36: Totalt | I36: 0 | J36: + | K36: 0 | N36: =N35+N3 -> 0 | O36: =O35+O3 -> 0
J37: = | K37: =O36*24 -> 0
B38: =IF(Uppgifter!$C$6="","",Uppgifter!$C$6) -> 

Sheet November
B1: =PROPER(TEXT(B4,"MMMM ÅÅÅÅ")) -> November 2026 | G1: =IF(Uppgifter!$C$6="","",Uppgifter!$C$6) -> 
N2: Dagsumma | O2: Dagbalans | P2: Vdag
B3: Datum | C3: Kod | D3: In | E3: Ut | F3: Lunch | G3: Planerat | H3: Ledighet | I3: Arbetstid | K3: Flextid | L3: Anteckningar | N3: =Oktober!N36 -> 0 | O3: =Oktober!O36 -> 0
B4: =DATEVALUE(Uppgifter!C4 & "-11-01") -> 2026-11-01 | I4: =IF(N4<0,-N4,N4) -> 0 | J4: =IF(O4>=0,"+","-") -> + | K4: =IF(O4<0,-O4,O4) -> 0 | N4: =IF(E4>0,E4-D4-F4-H4,IF(C4="",0,IF(C4="F",0,Årsarbetsschema!$M5))) -> 0 | O4: =ROUND(IF(N4>0,I4-G4,IF(C4="F",I4-G4,0)),15) -> 0 | P4: =Årsarbetsschema!AA5 -> 7 | Q4: F
B5: =B4+1 -> 2026-11-02 | I5: =IF(N5<0,-N5,N5) -> 0 | J5: + | K5: 0 | N5: =IF(E5>0,E5-D5-F5-H5,IF(C5="",0,IF(C5="F",0,Årsarbetsschema!$M6))) -> 0 | O5: =ROUND(IF(N5>0,I5-G5,IF(C5="F",I5-G5,0)),15) -> 0 | P5: =Årsarbetsschema!AA6 -> 1 | Q5: Se
B6: =B5+1 -> 2026-11-03 | I6: 0 | J6: + | K6: 0 | N6: =IF(E6>0,E6-D6-F6-H6,IF(C6="",0,IF(C6="F",0,Årsarbetsschema!$M7))) -> 0 | O6: 0 | P6: =Årsarbetsschema!AA7 -> 2 | Q6: Sj
B7: 2026-11-04 | I7: 0 | J7: + | K7: 0 | N7: =IF(E7>0,E7-D7-F7-H7,IF(C7="",0,IF(C7="F",0,Årsarbetsschema!$M8))) -> 0 | O7: 0 | P7: =Årsarbetsschema!AA8 -> 3 | Q7: Tj
B8: 2026-11-05 | I8: 0 | J8: + | K8: 0 | N8: =IF(E8>0,E8-D8-F8-H8,IF(C8="",0,IF(C8="F",0,Årsarbetsschema!$M9))) -> 0 | O8: 0 | P8: =Årsarbetsschema!AA9 -> 4 | Q8: VB
B9: 2026-11-06 | I9: 0 | J9: + | K9: 0 | N9: =IF(E9>0,E9-D9-F9-H9,IF(C9="",0,IF(C9="F",0,Årsarbetsschema!$M10))) -> 0 | O9: 0 | P9: =Årsarbetsschema!AA10 -> 5 | Q9: FL
B10: 2026-11-07 | I10: 0 | J10: + | K10: 0 | N10: =IF(E10>0,E10-D10-F10-H10,IF(C10="",0,IF(C10="F",0,Årsarbetsschema!$M11))) -> 0 | O10: 0 | P10: =Årsarbetsschema!AA11 -> 6
B11: 2026-11-08 | I11: 0 | J11: + | K11: 0 | N11: =IF(E11>0,E11-D11-F11-H11,IF(C11="",0,IF(C11="F",0,Årsarbetsschema!$M12))) -> 0 | O11: 0 | P11: =Årsarbetsschema!AA12 -> 7
B12: 2026-11-09 | I12: 0 | J12: + | K12: 0 | N12: =IF(E12>0,E12-D12-F12-H12,IF(C12="",0,IF(C12="F",0,Årsarbetsschema!$M13))) -> 0 | O12: 0 | P12: =Årsarbetsschema!AA13 -> 1
B13: 2026-11-10 | I13: 0 | J13: + | K13: 0 | N13: =IF(E13>0,E13-D13-F13-H13,IF(C13="",0,IF(C13="F",0,Årsarbetsschema!$M14))) -> 0 | O13: 0 | P13: =Årsarbetsschema!AA14 -> 2
B14: 2026-11-11 | I14: 0 | J14: + | K14: 0 | N14: =IF(E14>0,E14-D14-F14-H14,IF(C14="",0,IF(C14="F",0,Årsarbetsschema!$M15))) -> 0 | O14: 0 | P14: =Årsarbetsschema!AA15 -> 3
B15: 2026-11-12 | I15: 0 | J15: + | K15: 0 | N15: =IF(E15>0,E15-D15-F15-H15,IF(C15="",0,IF(C15="F",0,Årsarbetsschema!$M16))) -> 0 | O15: 0 | P15: =Årsarbetsschema!AA16 -> 4
B16: 2026-11-13 | I16: 0 | J16: + | K16: 0 | N16: =IF(E16>0,E16-D16-F16-H16,IF(C16="",0,IF(C16="F",0,Årsarbetsschema!$M17))) -> 0 | O16: 0 | P16: =Årsarbetsschema!AA17 -> 5
B17: 2026-11-14 | I17: 0 | J17: + | K17: 0 | N17: =IF(E17>0,E17-D17-F17-H17,IF(C17="",0,IF(C17="F",0,Årsarbetsschema!$M18))) -> 0 | O17: 0 | P17: =Årsarbetsschema!AA18 -> 6
B18: 2026-11-15 | I18: 0 | J18: + | K18: 0 | N18: =IF(E18>0,E18-D18-F18-H18,IF(C18="",0,IF(C18="F",0,Årsarbetsschema!$M19))) -> 0 | O18: 0 | P18: =Årsarbetsschema!AA19 -> 7
B19: 2026-11-16 | I19: 0 | J19: + | K19: 0 | N19: =IF(E19>0,E19-D19-F19-H19,IF(C19="",0,IF(C19="F",0,Årsarbetsschema!$M20))) -> 0 | O19: 0 | P19: =Årsarbetsschema!AA20 -> 1
B20: 2026-11-17 | I20: 0 | J20: + | K20: 0 | N20: =IF(E20>0,E20-D20-F20-H20,IF(C20="",0,IF(C20="F",0,Årsarbetsschema!$M21))) -> 0 | O20: 0 | P20: =Årsarbetsschema!AA21 -> 2
B21: 2026-11-18 | I21: 0 | J21: + | K21: 0 | N21: =IF(E21>0,E21-D21-F21-H21,IF(C21="",0,IF(C21="F",0,Årsarbetsschema!$M22))) -> 0 | O21: 0 | P21: =Årsarbetsschema!AA22 -> 3
B22: 2026-11-19 | I22: 0 | J22: + | K22: 0 | N22: =IF(E22>0,E22-D22-F22-H22,IF(C22="",0,IF(C22="F",0,Årsarbetsschema!$M23))) -> 0 | O22: 0 | P22: =Årsarbetsschema!AA23 -> 4
B23: 2026-11-20 | I23: 0 | J23: + | K23: 0 | N23: =IF(E23>0,E23-D23-F23-H23,IF(C23="",0,IF(C23="F",0,Årsarbetsschema!$M24))) -> 0 | O23: 0 | P23: =Årsarbetsschema!AA24 -> 5
B24: 2026-11-21 | I24: 0 | J24: + | K24: 0 | N24: =IF(E24>0,E24-D24-F24-H24,IF(C24="",0,IF(C24="F",0,Årsarbetsschema!$M25))) -> 0 | O24: 0 | P24: =Årsarbetsschema!AA25 -> 6
B25: 2026-11-22 | I25: 0 | J25: + | K25: 0 | N25: =IF(E25>0,E25-D25-F25-H25,IF(C25="",0,IF(C25="F",0,Årsarbetsschema!$M26))) -> 0 | O25: 0 | P25: =Årsarbetsschema!AA26 -> 7
B26: 2026-11-23 | I26: 0 | J26: + | K26: 0 | N26: =IF(E26>0,E26-D26-F26-H26,IF(C26="",0,IF(C26="F",0,Årsarbetsschema!$M27))) -> 0 | O26: 0 | P26: =Årsarbetsschema!AA27 -> 1
B27: 2026-11-24 | I27: 0 | J27: + | K27: 0 | N27: =IF(E27>0,E27-D27-F27-H27,IF(C27="",0,IF(C27="F",0,Årsarbetsschema!$M28))) -> 0 | O27: 0 | P27: =Årsarbetsschema!AA28 -> 2
B28: 2026-11-25 | I28: 0 | J28: + | K28: 0 | N28: =IF(E28>0,E28-D28-F28-H28,IF(C28="",0,IF(C28="F",0,Årsarbetsschema!$M29))) -> 0 | O28: 0 | P28: =Årsarbetsschema!AA29 -> 3
B29: 2026-11-26 | I29: 0 | J29: + | K29: 0 | N29: =IF(E29>0,E29-D29-F29-H29,IF(C29="",0,IF(C29="F",0,Årsarbetsschema!$M30))) -> 0 | O29: 0 | P29: =Årsarbetsschema!AA30 -> 4
B30: 2026-11-27 | I30: 0 | J30: + | K30: 0 | N30: =IF(E30>0,E30-D30-F30-H30,IF(C30="",0,IF(C30="F",0,Årsarbetsschema!$M31))) -> 0 | O30: 0 | P30: =Årsarbetsschema!AA31 -> 5
B31: 2026-11-28 | I31: 0 | J31: + | K31: 0 | N31: =IF(E31>0,E31-D31-F31-H31,IF(C31="",0,IF(C31="F",0,Årsarbetsschema!$M32))) -> 0 | O31: 0 | P31: =Årsarbetsschema!AA32 -> 6
B32: 2026-11-29 | I32: 0 | J32: + | K32: 0 | N32: =IF(E32>0,E32-D32-F32-H32,IF(C32="",0,IF(C32="F",0,Årsarbetsschema!$M33))) -> 0 | O32: 0 | P32: =Årsarbetsschema!AA33 -> 7
B33: 2026-11-30 | I33: =IF(N33<0,-N33,N33) -> 0 | J33: =IF(O33>=0,"+","-") -> + | K33: =IF(O33<0,-O33,O33) -> 0 | N33: =IF(E33>0,E33-D33-F33-H33,IF(C33="",0,IF(C33="F",0,Årsarbetsschema!$M34))) -> 0 | O33: =ROUND(IF(N33>0,I33-G33,IF(C33="F",I33-G33,0)),15) -> 0 | P33: =Årsarbetsschema!AA34 -> 1
B34: 2026-12-01 | I34: 0 | J34: + | K34: 0 | N34: =IF(E34>0,E34-D34-F34-H34,IF(C34="",0,IF(C34="F",0,Årsarbetsschema!$D$39))) -> 0 | O34: 0 | P34: =WEEKDAY(B34,2) -> 2
H35: Månad | I35: 0 | J35: =IF(O35>=0,"+","-") -> + | K35: =IF(O35<0,-O35,O35) -> 0 | N35: =SUM(N4:N34) -> 0 | O35: =SUM(O4:O34) -> 0
H36: Totalt | I36: 0 | J36: =IF(O36>=0,"+","-") -> + | K36: =IF(O36<0,-O36,O36) -> 0 | N36: =N35+N3 -> 0 | O36: =O35+O3 -> 0
J37: = | K37: =O36*24 -> 0
B38: =IF(Uppgifter!$C$6="","",Uppgifter!$C$6) -> 

Sheet December
B1: =PROPER(TEXT(B4,"MMMM ÅÅÅÅ")) -> December 2026 | G1: =IF(Uppgifter!$C$6="","",Uppgifter!$C$6) -> 
N2: Dagsumma | O2: Dagbalans | P2: Vdag
B3: Datum | C3: Kod | D3: In | E3: Ut | F3: Lunch | G3: Planerat | H3: Ledighet | I3: Arbetstid | K3: Flextid | L3: Anteckningar | N3: =November!N36 -> 0 | O3: =November!O36 -> 0
B4: =DATEVALUE(Uppgifter!C4 & "-12-01") -> 2026-12-01 | I4: =IF(N4<0,-N4,N4) -> 0 | J4: =IF(O4>=0,"+","-") -> + | K4: =IF(O4<0,-O4,O4) -> 0 | N4: =IF(E4>0,E4-D4-F4-H4,IF(C4="",0,IF(C4="F",0,Årsarbetsschema!N5))) -> 0 | O4: =ROUND(IF(N4>0,I4-G4,IF(C4="F",I4-G4,0)),15) -> 0 | P4: =Årsarbetsschema!AB5 -> 2 | Q4: F
B5: =B4+1 -> 2026-12-02 | I5: =IF(N5<0,-N5,N5) -> 0 | J5: + | K5: 0 | N5: =IF(E5>0,E5-D5-F5-H5,IF(C5="",0,IF(C5="F",0,Årsarbetsschema!N6))) -> 0 | O5: =ROUND(IF(N5>0,I5-G5,IF(C5="F",I5-G5,0)),15) -> 0 | P5: =Årsarbetsschema!AB6 -> 3 | Q5: Se
B6: =B5+1 -> 2026-12-03 | I6: 0 | J6: + | K6: 0 | N6: =IF(E6>0,E6-D6-F6-H6,IF(C6="",0,IF(C6="F",0,Årsarbetsschema!N7))) -> 0 | O6: 0 | P6: =Årsarbetsschema!AB7 -> 4 | Q6: Sj
B7: 2026-12-04 | I7: 0 | J7: + | K7: 0 | N7: =IF(E7>0,E7-D7-F7-H7,IF(C7="",0,IF(C7="F",0,Årsarbetsschema!N8))) -> 0 | O7: 0 | P7: =Årsarbetsschema!AB8 -> 5 | Q7: Tj
B8: 2026-12-05 | I8: 0 | J8: + | K8: 0 | N8: =IF(E8>0,E8-D8-F8-H8,IF(C8="",0,IF(C8="F",0,Årsarbetsschema!N9))) -> 0 | O8: 0 | P8: =Årsarbetsschema!AB9 -> 6 | Q8: VB
B9: 2026-12-06 | I9: 0 | J9: + | K9: 0 | N9: =IF(E9>0,E9-D9-F9-H9,IF(C9="",0,IF(C9="F",0,Årsarbetsschema!N10))) -> 0 | O9: 0 | P9: =Årsarbetsschema!AB10 -> 7 | Q9: FL
B10: 2026-12-07 | I10: 0 | J10: + | K10: 0 | N10: =IF(E10>0,E10-D10-F10-H10,IF(C10="",0,IF(C10="F",0,Årsarbetsschema!N11))) -> 0 | O10: 0 | P10: =Årsarbetsschema!AB11 -> 1
B11: 2026-12-08 | I11: 0 | J11: + | K11: 0 | N11: =IF(E11>0,E11-D11-F11-H11,IF(C11="",0,IF(C11="F",0,Årsarbetsschema!N12))) -> 0 | O11: 0 | P11: =Årsarbetsschema!AB12 -> 2
B12: 2026-12-09 | I12: 0 | J12: + | K12: 0 | N12: =IF(E12>0,E12-D12-F12-H12,IF(C12="",0,IF(C12="F",0,Årsarbetsschema!N13))) -> 0 | O12: 0 | P12: =Årsarbetsschema!AB13 -> 3
B13: 2026-12-10 | I13: 0 | J13: + | K13: 0 | N13: =IF(E13>0,E13-D13-F13-H13,IF(C13="",0,IF(C13="F",0,Årsarbetsschema!N14))) -> 0 | O13: 0 | P13: =Årsarbetsschema!AB14 -> 4
B14: 2026-12-11 | I14: 0 | J14: + | K14: 0 | N14: =IF(E14>0,E14-D14-F14-H14,IF(C14="",0,IF(C14="F",0,Årsarbetsschema!N15))) -> 0 | O14: 0 | P14: =Årsarbetsschema!AB15 -> 5
B15: 2026-12-12 | I15: 0 | J15: + | K15: 0 | N15: =IF(E15>0,E15-D15-F15-H15,IF(C15="",0,IF(C15="F",0,Årsarbetsschema!N16))) -> 0 | O15: 0 | P15: =Årsarbetsschema!AB16 -> 6
B16: 2026-12-13 | I16: 0 | J16: + | K16: 0 | N16: =IF(E16>0,E16-D16-F16-H16,IF(C16="",0,IF(C16="F",0,Årsarbetsschema!N17))) -> 0 | O16: 0 | P16: =Årsarbetsschema!AB17 -> 7
B17: 2026-12-14 | I17: 0 | J17: + | K17: 0 | N17: =IF(E17>0,E17-D17-F17-H17,IF(C17="",0,IF(C17="F",0,Årsarbetsschema!N18))) -> 0 | O17: 0 | P17: =Årsarbetsschema!AB18 -> 1
B18: 2026-12-15 | I18: 0 | J18: + | K18: 0 | N18: =IF(E18>0,E18-D18-F18-H18,IF(C18="",0,IF(C18="F",0,Årsarbetsschema!N19))) -> 0 | O18: 0 | P18: =Årsarbetsschema!AB19 -> 2
B19: 2026-12-16 | I19: 0 | J19: + | K19: 0 | N19: =IF(E19>0,E19-D19-F19-H19,IF(C19="",0,IF(C19="F",0,Årsarbetsschema!N20))) -> 0 | O19: 0 | P19: =Årsarbetsschema!AB20 -> 3
B20: 2026-12-17 | I20: 0 | J20: + | K20: 0 | N20: =IF(E20>0,E20-D20-F20-H20,IF(C20="",0,IF(C20="F",0,Årsarbetsschema!N21))) -> 0 | O20: 0 | P20: =Årsarbetsschema!AB21 -> 4
B21: 2026-12-18 | I21: 0 | J21: + | K21: 0 | N21: =IF(E21>0,E21-D21-F21-H21,IF(C21="",0,IF(C21="F",0,Årsarbetsschema!N22))) -> 0 | O21: 0 | P21: =Årsarbetsschema!AB22 -> 5
B22: 2026-12-19 | I22: 0 | J22: + | K22: 0 | N22: =IF(E22>0,E22-D22-F22-H22,IF(C22="",0,IF(C22="F",0,Årsarbetsschema!N23))) -> 0 | O22: 0 | P22: =Årsarbetsschema!AB23 -> 6
B23: 2026-12-20 | I23: 0 | J23: + | K23: 0 | N23: =IF(E23>0,E23-D23-F23-H23,IF(C23="",0,IF(C23="F",0,Årsarbetsschema!N24))) -> 0 | O23: 0 | P23: =Årsarbetsschema!AB24 -> 7
B24: 2026-12-21 | I24: 0 | J24: + | K24: 0 | N24: =IF(E24>0,E24-D24-F24-H24,IF(C24="",0,IF(C24="F",0,Årsarbetsschema!N25))) -> 0 | O24: 0 | P24: =Årsarbetsschema!AB25 -> 1
B25: 2026-12-22 | I25: 0 | J25: + | K25: 0 | N25: =IF(E25>0,E25-D25-F25-H25,IF(C25="",0,IF(C25="F",0,Årsarbetsschema!N26))) -> 0 | O25: 0 | P25: =Årsarbetsschema!AB26 -> 2
B26: 2026-12-23 | I26: 0 | J26: + | K26: 0 | N26: =IF(E26>0,E26-D26-F26-H26,IF(C26="",0,IF(C26="F",0,Årsarbetsschema!N27))) -> 0 | O26: 0 | P26: =Årsarbetsschema!AB27 -> 3
B27: 2026-12-24 | I27: 0 | J27: + | K27: 0 | N27: =IF(E27>0,E27-D27-F27-H27,IF(C27="",0,IF(C27="F",0,Årsarbetsschema!N28))) -> 0 | O27: 0 | P27: =Årsarbetsschema!AB28 -> -1
B28: 2026-12-25 | I28: 0 | J28: + | K28: 0 | N28: =IF(E28>0,E28-D28-F28-H28,IF(C28="",0,IF(C28="F",0,Årsarbetsschema!N29))) -> 0 | O28: 0 | P28: =Årsarbetsschema!AB29 -> -1
B29: 2026-12-26 | I29: 0 | J29: + | K29: 0 | N29: =IF(E29>0,E29-D29-F29-H29,IF(C29="",0,IF(C29="F",0,Årsarbetsschema!N30))) -> 0 | O29: 0 | P29: =Årsarbetsschema!AB30 -> 6
B30: 2026-12-27 | I30: 0 | J30: + | K30: 0 | N30: =IF(E30>0,E30-D30-F30-H30,IF(C30="",0,IF(C30="F",0,Årsarbetsschema!N31))) -> 0 | O30: 0 | P30: =Årsarbetsschema!AB31 -> 7
B31: 2026-12-28 | I31: =IF(N31<0,-N31,N31) -> 0 | J31: + | K31: 0 | N31: =IF(E31>0,E31-D31-F31-H31,IF(C31="",0,IF(C31="F",0,Årsarbetsschema!N32))) -> 0 | O31: 0 | P31: =Årsarbetsschema!AB32 -> 1
B32: 2026-12-29 | I32: 0 | J32: + | K32: 0 | N32: =IF(E32>0,E32-D32-F32-H32,IF(C32="",0,IF(C32="F",0,Årsarbetsschema!N33))) -> 0 | O32: 0 | P32: =Årsarbetsschema!AB33 -> 2
B33: 2026-12-30 | I33: 0 | J33: + | K33: 0 | N33: =IF(E33>0,E33-D33-F33-H33,IF(C33="",0,IF(C33="F",0,Årsarbetsschema!N34))) -> 0 | O33: 0 | P33: =Årsarbetsschema!AB34 -> 3
B34: 2026-12-31 | I34: 0 | J34: + | K34: 0 | N34: =IF(E34>0,E34-D34-F34-H34,IF(C34="",0,IF(C34="F",0,Årsarbetsschema!N35))) -> 0 | O34: 0 | P34: =Årsarbetsschema!AB35 -> -1
H35: Månad | I35: 0 | J35: + | K35: =IF(O35<0,-O35,O35) -> 0 | N35: =SUM(N4:N34) -> 0 | O35: =SUM(O4:O34) -> 0
H36: Totalt | I36: 0 | J36: + | K36: =IF(O36<0,-O36,O36) -> 0 | N36: =N35+N3 -> 0 | O36: =O35+O3 -> 0
J37: = | K37: =O36*24 -> 0
B38: =IF(Uppgifter!$C$6="","",Uppgifter!$C$6) -> 
